Department Family,Entity,Date,Expense Type,Expense Area,Supplier,Transaction Number,Amount,Item Description
BEIS,UKRI - AHRC,03/06/2019,T&S UK - Public Transport,International Development and Area Studies,Unspecified,98495319,2.50,T&S UK - Public Transport
BEIS,UKRI - AHRC,03/06/2019,T&S UK - Subsistence,International Development and Area Studies,Unspecified,98495319,24.45,T&S UK - Subsistence
BEIS,UKRI - AHRC,03/06/2019,T&S UK - Subsistence,International Development and Area Studies,Unspecified,98495319,5.00,T&S UK - Subsistence
BEIS,UKRI - AHRC,03/06/2019,T&S UK - Public Transport,International Development and Area Studies,Unspecified,98495320,5.00,T&S UK - Public Transport
BEIS,UKRI - AHRC,03/06/2019,T&S UK - Public Transport,International Development and Area Studies,Unspecified,98495321,2.50,T&S UK - Public Transport
BEIS,UKRI - AHRC,03/06/2019,T&S UK - Public Transport,International Development and Area Studies,Unspecified,98495321,18.40,T&S UK - Public Transport
BEIS,UKRI - AHRC,03/06/2019,T&S UK - Subsistence,International Development and Area Studies,Unspecified,98495321,25.00,T&S UK - Subsistence
BEIS,UKRI - AHRC,03/06/2019,T&S UK - Subsistence,International Development and Area Studies,Unspecified,98495321,5.00,T&S UK - Subsistence
BEIS,UKRI - AHRC,03/06/2019,T&S UK - Public Transport,International Development and Area Studies,Unspecified,98495322,2.50,T&S UK - Public Transport
BEIS,UKRI - AHRC,03/06/2019,T&S UK - Public Transport,International Development and Area Studies,Unspecified,98495322,18.70,T&S UK - Public Transport
BEIS,UKRI - AHRC,03/06/2019,T&S UK - Public Transport,International Development and Area Studies,Unspecified,98495322,2.00,T&S UK - Public Transport
BEIS,UKRI - AHRC,03/06/2019,T&S UK - Subsistence,International Development and Area Studies,Unspecified,98495322,20.95,T&S UK - Subsistence
BEIS,UKRI - AHRC,03/06/2019,T&S UK - Subsistence,International Development and Area Studies,Unspecified,98495322,4.49,T&S UK - Subsistence
BEIS,UKRI - AHRC,03/06/2019,T&S UK - Subsistence,International Development and Area Studies,Unspecified,98495322,5.00,T&S UK - Subsistence
BEIS,UKRI - AHRC,03/06/2019,T&S UK - Public Transport,International Development and Area Studies,Unspecified,98495323,2.50,T&S UK - Public Transport
BEIS,UKRI - AHRC,03/06/2019,T&S UK - Public Transport,International Development and Area Studies,Unspecified,98495323,40.10,T&S UK - Public Transport
BEIS,UKRI - AHRC,03/06/2019,T&S UK - Subsistence,International Development and Area Studies,Unspecified,98495323,25.00,T&S UK - Subsistence
BEIS,UKRI - AHRC,03/06/2019,T&S UK - Subsistence,International Development and Area Studies,Unspecified,98495323,3.00,T&S UK - Subsistence
BEIS,UKRI - AHRC,03/06/2019,T&S UK - Subsistence,International Development and Area Studies,Unspecified,98495323,5.00,T&S UK - Subsistence
BEIS,UKRI - AHRC,03/06/2019,T&S UK - Public Transport,International Development and Area Studies,Unspecified,98495324,13.00,T&S UK - Public Transport
BEIS,UKRI - AHRC,03/06/2019,T&S UK - Public Transport,International Development and Area Studies,Unspecified,98495324,22.80,T&S UK - Public Transport
BEIS,UKRI - AHRC,03/06/2019,T&S UK - Public Transport,International Development and Area Studies,Unspecified,98495324,8.00,T&S UK - Public Transport
BEIS,UKRI - AHRC,03/06/2019,T&S UK - Subsistence,International Development and Area Studies,Unspecified,98495324,22.00,T&S UK - Subsistence
BEIS,UKRI - AHRC,03/06/2019,T&S UK - Subsistence,International Development and Area Studies,Unspecified,98495324,7.50,T&S UK - Subsistence
BEIS,UKRI - AHRC,03/06/2019,T&S UK - Subsistence,International Development and Area Studies,Unspecified,98495324,5.00,T&S UK - Subsistence
BEIS,UKRI - AHRC,03/06/2019,Secondments,SMT,University of Oxford,98495833,18928.07,Secondments
BEIS,UKRI - AHRC,04/06/2019,Provision for Early Retirement Liability,Corporate Services,RCPS Pension,98450396,1482.28,Provision for Early Retirement Liability
BEIS,UKRI - AHRC,04/06/2019,Contract Staff,PSU JRS,Alexander Mann Solutions Ltd,98495488,3384.72,Contract Staff
BEIS,UKRI - AHRC,04/06/2019,Conferences & Seminars,Secretariat,CH and Co Catering Ltd,98496026,1782.00,Conferences & Seminars
BEIS,UKRI - AHRC,04/06/2019,Meetings & Catering,SMT,Baxter Storey Ltd,98497734,253.50,Meetings & Catering
BEIS,UKRI - AHRC,04/06/2019,T&S UK - Public Transport,Fund for International Collaboration,Unspecified,98497749,26.50,T&S UK - Public Transport
BEIS,UKRI - AHRC,04/06/2019,T&S UK - Subsistence,Fund for International Collaboration,Unspecified,98497749,15.00,T&S UK - Subsistence
BEIS,UKRI - AHRC,04/06/2019,T&S UK - Subsistence,International,Unspecified,98497749,8.70,T&S UK - Subsistence
BEIS,UKRI - AHRC,04/06/2019,T&S UK - Mileage,Digital Arts and Humanities and Creative Industries,Unspecified,98497751,18.90,T&S UK - Mileage
BEIS,UKRI - AHRC,04/06/2019,T&S UK - Other Charges,Digital Arts and Humanities and Creative Industries,Unspecified,98497751,3.10,T&S UK - Other Charges
BEIS,UKRI - AHRC,04/06/2019,T&S UK - Public Transport,Digital Arts and Humanities and Creative Industries,Unspecified,98497751,24.90,T&S UK - Public Transport
BEIS,UKRI - AHRC,04/06/2019,T&S UK - Subsistence,Digital Arts and Humanities and Creative Industries,Unspecified,98497751,8.00,T&S UK - Subsistence
BEIS,UKRI - AHRC,04/06/2019,T&S UK - Subsistence,Digital Arts and Humanities and Creative Industries,Unspecified,98497751,20.00,T&S UK - Subsistence
BEIS,UKRI - AHRC,04/06/2019,T&S UK - Subsistence,Digital Arts and Humanities and Creative Industries,Unspecified,98497751,1.99,T&S UK - Subsistence
BEIS,UKRI - AHRC,04/06/2019,T&S UK - Mileage,Digital Arts and Humanities and Creative Industries,Unspecified,98497752,6.75,T&S UK - Mileage
BEIS,UKRI - AHRC,04/06/2019,T&S UK - Other Charges,Digital Arts and Humanities and Creative Industries,Unspecified,98497752,2.10,T&S UK - Other Charges
BEIS,UKRI - AHRC,04/06/2019,T&S UK - Parking Tolls Congestion Charges,Digital Arts and Humanities and Creative Industries,Unspecified,98497752,57.00,T&S UK - Parking Tolls Congestion Charges
BEIS,UKRI - AHRC,04/06/2019,T&S UK - Subsistence,Digital Arts and Humanities and Creative Industries,Unspecified,98497752,19.00,T&S UK - Subsistence
BEIS,UKRI - AHRC,04/06/2019,T&S UK - Subsistence,Digital Arts and Humanities and Creative Industries,Unspecified,98497752,4.00,T&S UK - Subsistence
BEIS,UKRI - AHRC,04/06/2019,T&S UK - Subsistence,Digital Arts and Humanities and Creative Industries,Unspecified,98497752,10.00,T&S UK - Subsistence
BEIS,UKRI - AHRC,04/06/2019,T&S UK - Public Transport,International Development and Area Studies,Unspecified,98497753,7.00,T&S UK - Public Transport
BEIS,UKRI - AHRC,04/06/2019,T&S UK - Public Transport,International Development and Area Studies,Unspecified,98497753,9.10,T&S UK - Public Transport
BEIS,UKRI - AHRC,04/06/2019,T&S UK - Subsistence,International Development and Area Studies,Unspecified,98497753,5.34,T&S UK - Subsistence
BEIS,UKRI - AHRC,04/06/2019,T&S UK - Subsistence,International Development and Area Studies,Unspecified,98497753,19.05,T&S UK - Subsistence
BEIS,UKRI - AHRC,04/06/2019,T&S UK - Subsistence,"History, Heritage, Languages and Literature",Unspecified,98497754,23.10,T&S UK - Subsistence
BEIS,UKRI - AHRC,04/06/2019,T&S UK - Subsistence,"History, Heritage, Languages and Literature",Unspecified,98497754,10.00,T&S UK - Subsistence
BEIS,UKRI - AHRC,05/06/2019,Non-staff travel and subsistance,GCRF - Programme Delivery,Non Employee Expenses Supplier,98493016,328.47,Non-staff travel and subsistance
BEIS,UKRI - AHRC,05/06/2019,Non-staff travel and subsistance,GCRF - Programme Delivery,Non Employee Expenses Supplier,98493017,194.42,Non-staff travel and subsistance
BEIS,UKRI - AHRC,05/06/2019,Non-staff travel and subsistance,GCRF - Programme Delivery,Non Employee Expenses Supplier,98493018,183.25,Non-staff travel and subsistance
BEIS,UKRI - AHRC,05/06/2019,Non-staff travel and subsistance,GCRF - Programme Delivery,Non Employee Expenses Supplier,98493019,67.41,Non-staff travel and subsistance
BEIS,UKRI - AHRC,05/06/2019,Recruitment Costs,Corporate Services,Onefix Recruitment Ltd,98497743,150.00,Recruitment Costs
BEIS,UKRI - AHRC,05/06/2019,Legal & Professional Services,Industrial Strategy Challenge Fund (ISCF) - Creative Clusters,Lilley Associates Ltd,98498958,7862.70,Legal & Professional Services
BEIS,UKRI - AHRC,05/06/2019,Recruitment Costs,Corporate Services,Warwick University Services Ltd,98499006,245.00,Recruitment Costs
BEIS,UKRI - AHRC,05/06/2019,Conferences & Seminars,SMT,Westminster Forum Projects Ltd,98499061,331.20,Conferences & Seminars
BEIS,UKRI - AHRC,05/06/2019,Conferences & Seminars,SMT,Westminster Forum Projects Ltd,98499061,-9.20,Conferences & Seminars
BEIS,UKRI - AHRC,05/06/2019,Conferences & Seminars,SMT,Westminster Forum Projects Ltd,98499061,-46.00,Conferences & Seminars
BEIS,UKRI - AHRC,05/06/2019,T&S UK - Mileage,Public and Stakeholder Engagement,Unspecified,98499850,79.20,T&S UK - Mileage
BEIS,UKRI - AHRC,05/06/2019,T&S UK - Subsistence,Public and Stakeholder Engagement,Unspecified,98499850,6.45,T&S UK - Subsistence
BEIS,UKRI - AHRC,05/06/2019,T&S UK - Public Transport,International Partnership and Engagement,Unspecified,98499851,60.30,T&S UK - Public Transport
BEIS,UKRI - AHRC,05/06/2019,T&S UK - Subsistence,International Partnership and Engagement,Unspecified,98499851,19.58,T&S UK - Subsistence
BEIS,UKRI - AHRC,06/06/2019,Recruitment Costs,Corporate Services,Agenda Resource Management Ltd,98498680,155.91,Recruitment Costs
BEIS,UKRI - AHRC,06/06/2019,Provisions ( Food etc),HR,Agenda Resource Management Ltd,98498682,155.91,Provisions ( Food etc)
BEIS,UKRI - AHRC,06/06/2019,Hospitality,Public and Stakeholder Engagement,House of Commons,98499674,500.00,Hospitality
BEIS,UKRI - AHRC,06/06/2019,Non-staff travel and subsistance,International Development and Area Studies,Non Employee Expenses Supplier,98499860,105.00,Non-staff travel and subsistance
BEIS,UKRI - AHRC,06/06/2019,Council & Committee Honoraria,New Programme Development,Unspecified,98501197,170.00,Council & Committee Honoraria
BEIS,UKRI - AHRC,06/06/2019,Council & Committee Honoraria,New Programme Development,Unspecified,98501198,170.00,Council & Committee Honoraria
BEIS,UKRI - AHRC,06/06/2019,Council & Committee Honoraria,New Programme Development,Unspecified,98501199,170.00,Council & Committee Honoraria
BEIS,UKRI - AHRC,06/06/2019,Council & Committee Honoraria,New Programme Development,Unspecified,98501200,170.00,Council & Committee Honoraria
BEIS,UKRI - AHRC,06/06/2019,Council & Committee Honoraria,New Programme Development,Unspecified,98501201,170.00,Council & Committee Honoraria
BEIS,UKRI - AHRC,06/06/2019,Council & Committee Honoraria,New Programme Development,Unspecified,98501203,170.00,Council & Committee Honoraria
BEIS,UKRI - AHRC,06/06/2019,Provisions ( Food etc),HR,Premier Farnell UK Ltd T/A Farnell Onecall,98501242,231.91,Provisions ( Food etc)
BEIS,UKRI - AHRC,06/06/2019,Hospitality,GCRF - Programme Delivery,Calder Conference Ltd,98501704,4224.00,Hospitality
BEIS,UKRI - AHRC,06/06/2019,T&S UK - Subsistence,Digital Arts and Humanities and Creative Industries,Unspecified,98501969,6.70,T&S UK - Subsistence
BEIS,UKRI - AHRC,06/06/2019,T&S UK - Subsistence,Digital Arts and Humanities and Creative Industries,Unspecified,98501969,5.00,T&S UK - Subsistence
BEIS,UKRI - AHRC,06/06/2019,T&S UK - Public Transport,Digital Arts and Humanities and Creative Industries,Unspecified,98501970,3.90,T&S UK - Public Transport
BEIS,UKRI - AHRC,06/06/2019,T&S UK - Subsistence,Digital Arts and Humanities and Creative Industries,Unspecified,98501970,35.28,T&S UK - Subsistence
BEIS,UKRI - AHRC,06/06/2019,T&S UK - Subsistence,Digital Arts and Humanities and Creative Industries,Unspecified,98501970,5.00,T&S UK - Subsistence
BEIS,UKRI - AHRC,06/06/2019,T&S UK - Other Charges,Public and Stakeholder Engagement,Unspecified,98501971,2.85,T&S UK - Other Charges
BEIS,UKRI - AHRC,06/06/2019,T&S UK - Subsistence,Public and Stakeholder Engagement,Unspecified,98501971,25.95,T&S UK - Subsistence
BEIS,UKRI - AHRC,06/06/2019,T&S UK - Subsistence,Public and Stakeholder Engagement,Unspecified,98501971,3.99,T&S UK - Subsistence
BEIS,UKRI - AHRC,06/06/2019,T&S UK - Subsistence,Public and Stakeholder Engagement,Unspecified,98501971,4.10,T&S UK - Subsistence
BEIS,UKRI - AHRC,07/06/2019,Asset Clearing,Corporate Services,Via-Vox Ltd T/A Powwownow,98181528,25.98,Asset Clearing
BEIS,UKRI - AHRC,07/06/2019,Asset Clearing,Corporate Services,Via-Vox Ltd T/A Powwownow,98207158,50.68,Asset Clearing
BEIS,UKRI - AHRC,07/06/2019,Asset Clearing,Corporate Services,Via-Vox Ltd T/A Powwownow,98254728,18.56,Asset Clearing
BEIS,UKRI - AHRC,07/06/2019,Asset Clearing,Corporate Services,Via-Vox Ltd T/A Powwownow,98281045,23.96,Asset Clearing
BEIS,UKRI - AHRC,07/06/2019,Asset Clearing,Corporate Services,Via-Vox Ltd T/A Powwownow,98397565,113.04,Asset Clearing
BEIS,UKRI - AHRC,07/06/2019,Asset Clearing,Corporate Services,Via-Vox Ltd T/A Powwownow,98477541,68.23,Asset Clearing
BEIS,UKRI - AHRC,07/06/2019,Asset Clearing,Corporate Services,Via-Vox Ltd T/A Powwownow,98495161,59.02,Asset Clearing
BEIS,UKRI - AHRC,07/06/2019,Recruitment Costs,Corporate Services,Onefix Recruitment Ltd,98501415,150.00,Recruitment Costs
BEIS,UKRI - AHRC,07/06/2019,Recruitment Costs,Corporate Services,Onefix Recruitment Ltd,98504952,120.00,Recruitment Costs
BEIS,UKRI - AHRC,07/06/2019,Health & Safety (inc. Medicals & Opticians),HR,Swindon Occupational Medical Services Ltd,98505163,1225.00,Health & Safety (inc. Medicals & Opticians)
BEIS,UKRI - AHRC,10/06/2019,Data Storage & Recovery,Corporate Services,Iron Mountain (UK) PLC,98506291,1033.62,Data Storage & Recovery
BEIS,UKRI - AHRC,10/06/2019,Legal & Professional Services,HR,Unspecified,98507226,54.00,Legal & Professional Services
BEIS,UKRI - AHRC,11/06/2019,Computer Software,Corporate Services,UKRI - Engineering & Physical Sciences Research Council,98439435,20818.00,Computer Software
BEIS,UKRI - AHRC,11/06/2019,Recharges From Councils - General,Industrial Strategy Challenge Fund (ISCF) - Creative Clusters,UKRI - Engineering & Physical Sciences Research Council,98449838,-8036.12,Recharges From Councils - General
BEIS,UKRI - AHRC,11/06/2019,Other Programme Costs,Commissioned Research,UKRI - Engineering & Physical Sciences Research Council,98450665,3750.00,Other Programme Costs
BEIS,UKRI - AHRC,11/06/2019,Recharges From Councils - General,Corporate Services,UKRI - Engineering & Physical Sciences Research Council,98451601,49091.00,Recharges From Councils - General
BEIS,UKRI - AHRC,11/06/2019,Other Programme Costs,RCUK Other,UKRI - Engineering & Physical Sciences Research Council,98454815,-232758.16,Other Programme Costs
BEIS,UKRI - AHRC,11/06/2019,Recharges From Councils - General,Corporate Services,UKRI - Engineering & Physical Sciences Research Council,98461887,25120.98,Recharges From Councils - General
BEIS,UKRI - AHRC,11/06/2019,Other Programme Costs,RCUK Other,UKRI - Engineering & Physical Sciences Research Council,98498442,234607.77,Other Programme Costs
BEIS,UKRI - AHRC,11/06/2019,Other Programme Costs,Commissioned Research,UKRI - Engineering & Physical Sciences Research Council,98498454,3750.00,Other Programme Costs
BEIS,UKRI - AHRC,11/06/2019,Advertising & Promotion,Public and Stakeholder Engagement,Steven Haywood T/A sghaywood photography,98506053,500.00,Advertising & Promotion
BEIS,UKRI - AHRC,11/06/2019,T&S UK - Public Transport,Public and Stakeholder Engagement,Steven Haywood T/A sghaywood photography,98506053,218.32,T&S UK - Public Transport
BEIS,UKRI - AHRC,11/06/2019,Council & Committee Honoraria,New Programme Development,Unspecified,98507262,170.00,Council & Committee Honoraria
BEIS,UKRI - AHRC,11/06/2019,Council & Committee Honoraria,New Programme Development,Unspecified,98507263,170.00,Council & Committee Honoraria
BEIS,UKRI - AHRC,11/06/2019,Council & Committee Honoraria,New Programme Development,Unspecified,98507264,230.00,Council & Committee Honoraria
BEIS,UKRI - AHRC,11/06/2019,Council & Committee Honoraria,New Programme Development,Unspecified,98507266,170.00,Council & Committee Honoraria
BEIS,UKRI - AHRC,11/06/2019,T&S UK - Subsistence,"History, Heritage, Languages and Literature",Unspecified,98507362,25.00,T&S UK - Subsistence
BEIS,UKRI - AHRC,11/06/2019,T&S UK - Public Transport,"History, Heritage, Languages and Literature",Unspecified,98509254,5.00,T&S UK - Public Transport
BEIS,UKRI - AHRC,11/06/2019,T&S UK - Public Transport,"History, Heritage, Languages and Literature",Unspecified,98509254,26.13,T&S UK - Public Transport
BEIS,UKRI - AHRC,11/06/2019,T&S UK - Subsistence,"History, Heritage, Languages and Literature",Unspecified,98509254,46.65,T&S UK - Subsistence
BEIS,UKRI - AHRC,11/06/2019,T&S UK - Subsistence,"History, Heritage, Languages and Literature",Unspecified,98509254,12.70,T&S UK - Subsistence
BEIS,UKRI - AHRC,11/06/2019,T&S UK - Subsistence,"History, Heritage, Languages and Literature",Unspecified,98509254,15.00,T&S UK - Subsistence
BEIS,UKRI - AHRC,11/06/2019,Fellowships,Public Policy,UKRI - Economic & Social Research Council,98509836,7150.31,Fellowships
BEIS,UKRI - AHRC,11/06/2019,Non-staff travel and subsistance,Public and Stakeholder Engagement,Non Employee Expenses Supplier,98509838,190.10,Non-staff travel and subsistance
BEIS,UKRI - AHRC,11/06/2019,Non-staff travel and subsistance,Executive Office,Non Employee Expenses Supplier,98509839,32.10,Non-staff travel and subsistance
BEIS,UKRI - AHRC,11/06/2019,Non-staff travel and subsistance,Executive Office,Non Employee Expenses Supplier,98509840,136.10,Non-staff travel and subsistance
BEIS,UKRI - AHRC,11/06/2019,Non-staff travel and subsistance,International Development and Area Studies,Non Employee Expenses Supplier,98509841,70.20,Non-staff travel and subsistance
BEIS,UKRI - AHRC,11/06/2019,Non-staff travel and subsistance,International Development and Area Studies,Non Employee Expenses Supplier,98509842,128.00,Non-staff travel and subsistance
BEIS,UKRI - AHRC,11/06/2019,Non-staff travel and subsistance,International Development and Area Studies,Non Employee Expenses Supplier,98509843,100.73,Non-staff travel and subsistance
BEIS,UKRI - AHRC,11/06/2019,Non-staff travel and subsistance,International Development and Area Studies,Non Employee Expenses Supplier,98509844,139.39,Non-staff travel and subsistance
BEIS,UKRI - AHRC,11/06/2019,Non-staff travel and subsistance,Executive Office,Non Employee Expenses Supplier,98509845,121.50,Non-staff travel and subsistance
BEIS,UKRI - AHRC,11/06/2019,Non-staff travel and subsistance,Executive Office,Non Employee Expenses Supplier,98509846,263.24,Non-staff travel and subsistance
BEIS,UKRI - AHRC,11/06/2019,Non-staff travel and subsistance,Digital Arts and Humanities and Creative Industries,Non Employee Expenses Supplier,98509847,157.66,Non-staff travel and subsistance
BEIS,UKRI - AHRC,11/06/2019,Non-staff travel and subsistance,GCRF - Programme Delivery,Non Employee Expenses Supplier,98509848,23.70,Non-staff travel and subsistance
BEIS,UKRI - AHRC,11/06/2019,Non-staff travel and subsistance,GCRF - Programme Delivery,Non Employee Expenses Supplier,98509849,325.13,Non-staff travel and subsistance
BEIS,UKRI - AHRC,11/06/2019,Non-staff travel and subsistance,Public and Stakeholder Engagement,Non Employee Expenses Supplier,98509850,34.10,Non-staff travel and subsistance
BEIS,UKRI - AHRC,11/06/2019,Non-staff travel and subsistance,GCRF - Programme Delivery,Non Employee Expenses Supplier,98509851,65.60,Non-staff travel and subsistance
BEIS,UKRI - AHRC,11/06/2019,Non-staff travel and subsistance,GCRF - Programme Delivery,Non Employee Expenses Supplier,98509852,37.30,Non-staff travel and subsistance
BEIS,UKRI - AHRC,11/06/2019,Non-staff travel and subsistance,GCRF - Programme Delivery,Non Employee Expenses Supplier,98509853,27.60,Non-staff travel and subsistance
BEIS,UKRI - AHRC,11/06/2019,Non-staff travel and subsistance,GCRF - Programme Delivery,Non Employee Expenses Supplier,98509854,144.95,Non-staff travel and subsistance
BEIS,UKRI - AHRC,11/06/2019,Non-staff travel and subsistance,GCRF - Programme Delivery,Non Employee Expenses Supplier,98509855,84.50,Non-staff travel and subsistance
BEIS,UKRI - AHRC,11/06/2019,Non-staff travel and subsistance,GCRF - Programme Delivery,Non Employee Expenses Supplier,98509856,103.23,Non-staff travel and subsistance
BEIS,UKRI - AHRC,11/06/2019,Non-staff travel and subsistance,GCRF - Programme Delivery,Non Employee Expenses Supplier,98509857,52.51,Non-staff travel and subsistance
BEIS,UKRI - AHRC,11/06/2019,Non-staff travel and subsistance,GCRF - Programme Delivery,Non Employee Expenses Supplier,98509858,118.10,Non-staff travel and subsistance
BEIS,UKRI - AHRC,11/06/2019,Non-staff travel and subsistance,GCRF - Programme Delivery,Non Employee Expenses Supplier,98509859,1125.53,Non-staff travel and subsistance
BEIS,UKRI - AHRC,11/06/2019,Fellowships,Public Policy,UKRI - Economic & Social Research Council,98509860,8503.88,Fellowships
BEIS,UKRI - AHRC,11/06/2019,Fellowships,Public Policy,UKRI - Economic & Social Research Council,98509862,10059.12,Fellowships
BEIS,UKRI - AHRC,11/06/2019,Fellowships,Public Policy,UKRI - Economic & Social Research Council,98509863,7765.04,Fellowships
BEIS,UKRI - AHRC,11/06/2019,Research Grant Expenditure,RCUK Global Challenges Research Fund (RCUK GCRF),UKRI - Natural Environment Research Council,98509880,17334.50,Research Grant Expenditure
BEIS,UKRI - AHRC,11/06/2019,Research Grant Expenditure,RCUK Global Challenges Research Fund (RCUK GCRF),UKRI - Natural Environment Research Council,98509925,178913.97,Research Grant Expenditure
BEIS,UKRI - AHRC,11/06/2019,Research Grant Expenditure,RCUK Global Challenges Research Fund (RCUK GCRF),UKRI - Natural Environment Research Council,98509932,225687.18,Research Grant Expenditure
BEIS,UKRI - AHRC,11/06/2019,Research Grant Expenditure,RCUK Global Challenges Research Fund (RCUK GCRF),UKRI - Natural Environment Research Council,98509940,86913.44,Research Grant Expenditure
BEIS,UKRI - AHRC,12/06/2019,Non-staff travel and subsistance,GCRF - Programme Delivery,Non Employee Expenses Supplier,98499325,2565.93,Non-staff travel and subsistance
BEIS,UKRI - AHRC,12/06/2019,Non-staff travel and subsistance,GCRF - Programme Delivery,Non Employee Expenses Supplier,98499326,1541.10,Non-staff travel and subsistance
BEIS,UKRI - AHRC,12/06/2019,T&S UK - Flights,International Partnership and Engagement,Unspecified,98505432,140.62,T&S UK - Flights
BEIS,UKRI - AHRC,12/06/2019,T&S UK - Public Transport,International Partnership and Engagement,Unspecified,98505433,8.50,T&S UK - Public Transport
BEIS,UKRI - AHRC,12/06/2019,T&S UK - Public Transport,International Partnership and Engagement,Unspecified,98505433,7.85,T&S UK - Public Transport
BEIS,UKRI - AHRC,12/06/2019,T&S UK - Public Transport,GCRF - Programme Delivery,Unspecified,98509255,28.60,T&S UK - Public Transport
BEIS,UKRI - AHRC,12/06/2019,T&S UK - Subsistence,GCRF - Programme Delivery,Unspecified,98509255,11.57,T&S UK - Subsistence
BEIS,UKRI - AHRC,12/06/2019,Contract Staff,PSU JRS,Alexander Mann Solutions Ltd,98509569,2030.83,Contract Staff
BEIS,UKRI - AHRC,12/06/2019,Contract Staff,PSU Project Office,Alexander Mann Solutions Ltd,98509577,5032.04,Contract Staff
BEIS,UKRI - AHRC,12/06/2019,Conferences & Seminars,SMT,Clio Enterprises Ltd,98509677,546.30,Conferences & Seminars
BEIS,UKRI - AHRC,12/06/2019,Non-staff travel and subsistance,GCRF - Programme Delivery,Non Employee Expenses Supplier,98509873,383.27,Non-staff travel and subsistance
BEIS,UKRI - AHRC,12/06/2019,Non-staff travel and subsistance,GCRF - Programme Delivery,Non Employee Expenses Supplier,98509874,820.40,Non-staff travel and subsistance
BEIS,UKRI - AHRC,12/06/2019,NI Payable Salaries,Balance Sheet,HM Revenue & Customs,98510077,87043.12,NI Payable Salaries
BEIS,UKRI - AHRC,12/06/2019,PAYE Payable Salaries,Balance Sheet,HM Revenue & Customs,98510078,58890.52,PAYE Payable Salaries
BEIS,UKRI - AHRC,12/06/2019,Student Loans,Balance Sheet,HM Revenue & Customs,98510079,5126.00,Student Loans
BEIS,UKRI - AHRC,12/06/2019,Apprenticeship Levy,Corporate Services,HM Revenue & Customs,98510080,2211.00,Apprenticeship Levy
BEIS,UKRI - AHRC,12/06/2019,Other Pension Deductions,Balance Sheet,Standard Life Assurance Ltd,98510081,100.00,Other Pension Deductions
BEIS,UKRI - AHRC,12/06/2019,Voluntary Deductions,Balance Sheet,Civil Service Benevolent Fund,98510082,3.00,Voluntary Deductions
BEIS,UKRI - AHRC,12/06/2019,Voluntary Deductions,Balance Sheet,Chargive,98510083,2.00,Voluntary Deductions
BEIS,UKRI - AHRC,12/06/2019,Union Deductions,Balance Sheet,PCS Union,98510085,142.62,Union Deductions
BEIS,UKRI - AHRC,12/06/2019,Ees Pension Deductions - JSS,Balance Sheet,RCPS Pension,98510086,18908.75,Ees Pension Deductions - JSS
BEIS,UKRI - AHRC,12/06/2019,Ers Pension Deductions - JSS,Balance Sheet,RCPS Pension,98510087,77895.98,Ers Pension Deductions - JSS
BEIS,UKRI - AHRC,12/06/2019,Partnership Pension Deductions,Balance Sheet,Scottish Widows,98510088,660.74,Partnership Pension Deductions
BEIS,UKRI - AHRC,12/06/2019,Ers Pension Deductions - JSS,Balance Sheet,Cabinet Office RM Shared Services,98510089,12.83,Ers Pension Deductions - JSS
BEIS,UKRI - AHRC,12/06/2019,Ees Pension Deductions - MyCSP,Balance Sheet,Cabinet Office RM Shared Services,98510090,7589.98,Ees Pension Deductions - MyCSP
BEIS,UKRI - AHRC,12/06/2019,Ers Pension Deductions - MyCSP,Balance Sheet,Cabinet Office RM Shared Services,98510091,39251.00,Ers Pension Deductions - MyCSP
BEIS,UKRI - AHRC,12/06/2019,Hospitality,Public and Stakeholder Engagement,House of Commons,98510195,3170.00,Hospitality
BEIS,UKRI - AHRC,12/06/2019,T&S UK - Mileage,Digital Arts and Humanities and Creative Industries,Unspecified,98510901,59.40,T&S UK - Mileage
BEIS,UKRI - AHRC,12/06/2019,T&S UK - Other Charges,Digital Arts and Humanities and Creative Industries,Unspecified,98510901,3.20,T&S UK - Other Charges
BEIS,UKRI - AHRC,12/06/2019,T&S UK - Public Transport,Digital Arts and Humanities and Creative Industries,Unspecified,98510901,16.40,T&S UK - Public Transport
BEIS,UKRI - AHRC,12/06/2019,T&S UK - Subsistence,Digital Arts and Humanities and Creative Industries,Unspecified,98510901,5.90,T&S UK - Subsistence
BEIS,UKRI - AHRC,12/06/2019,T&S UK - Subsistence,Digital Arts and Humanities and Creative Industries,Unspecified,98510901,15.00,T&S UK - Subsistence
BEIS,UKRI - AHRC,12/06/2019,T&S UK - Subsistence,Digital Arts and Humanities and Creative Industries,Unspecified,98510901,10.00,T&S UK - Subsistence
BEIS,UKRI - AHRC,12/06/2019,T&S UK - Public Transport,Operations,Unspecified,98510902,9.80,T&S UK - Public Transport
BEIS,UKRI - AHRC,12/06/2019,T&S UK - Public Transport,Public and Stakeholder Engagement,Unspecified,98510903,11.00,T&S UK - Public Transport
BEIS,UKRI - AHRC,12/06/2019,T&S UK - Subsistence,Public and Stakeholder Engagement,Unspecified,98510903,31.70,T&S UK - Subsistence
BEIS,UKRI - AHRC,12/06/2019,T&S UK - Subsistence,Public and Stakeholder Engagement,Unspecified,98510903,6.28,T&S UK - Subsistence
BEIS,UKRI - AHRC,13/06/2019,T&S UK - Public Transport,Digital Arts and Humanities and Creative Industries,Unspecified,98443369,7.83,T&S UK - Public Transport
BEIS,UKRI - AHRC,13/06/2019,T&S UK - Subsistence,Digital Arts and Humanities and Creative Industries,Unspecified,98443369,18.08,T&S UK - Subsistence
BEIS,UKRI - AHRC,13/06/2019,T&S UK - Subsistence,Digital Arts and Humanities and Creative Industries,Unspecified,98443369,74.64,T&S UK - Subsistence
BEIS,UKRI - AHRC,13/06/2019,T&S UK - Subsistence,Digital Arts and Humanities and Creative Industries,Unspecified,98443369,78.58,T&S UK - Subsistence
BEIS,UKRI - AHRC,13/06/2019,T&S UK - Public Transport,Skills Strategy,Unspecified,98483030,31.24,T&S UK - Public Transport
BEIS,UKRI - AHRC,13/06/2019,Contract Staff,PSU JRS,Alexander Mann Solutions Ltd,98505116,3384.72,Contract Staff
BEIS,UKRI - AHRC,13/06/2019,Catering Contracts,Public and Stakeholder Engagement,University of Leeds,98506421,227.65,Catering Contracts
BEIS,UKRI - AHRC,13/06/2019,Recruitment Costs,Corporate Services,Onefix Recruitment Ltd,98509613,150.00,Recruitment Costs
BEIS,UKRI - AHRC,13/06/2019,Ees Pension Deductions - MRC,Balance Sheet,UKRI - Medical Research Council,98510092,544.96,Ees Pension Deductions - MRC
BEIS,UKRI - AHRC,13/06/2019,Ers Pension Deductions - MRC,Balance Sheet,UKRI - Medical Research Council,98510093,1257.59,Ers Pension Deductions - MRC
BEIS,UKRI - AHRC,13/06/2019,Conferences & Seminars,GCRF - Programme Delivery,Calder Conference Ltd,98510478,1480.00,Conferences & Seminars
BEIS,UKRI - AHRC,13/06/2019,Staff Training,Corporate Services,ACAS,98511807,1032.00,Staff Training
BEIS,UKRI - AHRC,13/06/2019,T&S UK - Public Transport,International Partnership and Engagement,Unspecified,98512226,7.20,T&S UK - Public Transport
BEIS,UKRI - AHRC,13/06/2019,T&S UK - Subsistence,International Partnership and Engagement,Unspecified,98512226,8.95,T&S UK - Subsistence
BEIS,UKRI - AHRC,14/06/2019,Council & Committee Honoraria,New Programme Development,Unspecified,98511046,170.00,Council & Committee Honoraria
BEIS,UKRI - AHRC,14/06/2019,Council & Committee Honoraria,New Programme Development,Unspecified,98511047,170.00,Council & Committee Honoraria
BEIS,UKRI - AHRC,14/06/2019,Conferences & Seminars,SMT,Alt-Legal Ltd t/a Alpaca,98511241,3474.00,Conferences & Seminars
BEIS,UKRI - AHRC,14/06/2019,Hospitality,Operations,QA Ltd,98511287,968.14,Hospitality
BEIS,UKRI - AHRC,14/06/2019,T&S UK - Mileage,SMT,Unspecified,98513036,36.00,T&S UK - Mileage
BEIS,UKRI - AHRC,14/06/2019,T&S UK - Subsistence,Operations,Unspecified,98513037,25.00,T&S UK - Subsistence
BEIS,UKRI - AHRC,14/06/2019,T&S UK - Subsistence,Operations,Unspecified,98513037,5.50,T&S UK - Subsistence
BEIS,UKRI - AHRC,14/06/2019,T&S UK - Public Transport,Digital Arts and Humanities and Creative Industries,Unspecified,98513038,3.50,T&S UK - Public Transport
BEIS,UKRI - AHRC,17/06/2019,Council & Committee Honoraria,New Programme Development,Unspecified,98507265,170.00,Council & Committee Honoraria
BEIS,UKRI - AHRC,17/06/2019,Contract Staff,PSU JRS,Alexander Mann Solutions Ltd,98513315,75714.30,Contract Staff
BEIS,UKRI - AHRC,17/06/2019,Contract Staff,PSU JRS,Alexander Mann Solutions Ltd,98513315,2332.84,Contract Staff
BEIS,UKRI - AHRC,17/06/2019,Contract Staff,PSU JRS,Alexander Mann Solutions Ltd,98513320,-32887.43,Contract Staff
BEIS,UKRI - AHRC,17/06/2019,Contract Staff,PSU JRS,Alexander Mann Solutions Ltd,98513338,-6711.72,Contract Staff
BEIS,UKRI - AHRC,17/06/2019,Contract Staff,PSU JRS,Alexander Mann Solutions Ltd,98513342,-10067.58,Contract Staff
BEIS,UKRI - AHRC,17/06/2019,Contract Staff,PSU JRS,Alexander Mann Solutions Ltd,98513347,-21849.96,Contract Staff
BEIS,UKRI - AHRC,17/06/2019,Contract Staff,PSU JRS,Alexander Mann Solutions Ltd,98513347,-1843.08,Contract Staff
BEIS,UKRI - AHRC,17/06/2019,T&S UK - Subsistence,Digital Arts and Humanities and Creative Industries,Unspecified,98513537,34.96,T&S UK - Subsistence
BEIS,UKRI - AHRC,17/06/2019,Non-staff travel and subsistance,GCRF - Programme Delivery,Non Employee Expenses Supplier,98513849,130.79,Non-staff travel and subsistance
BEIS,UKRI - AHRC,17/06/2019,Non-staff travel and subsistance,Fund for International Collaboration,Non Employee Expenses Supplier,98513850,266.50,Non-staff travel and subsistance
BEIS,UKRI - AHRC,18/06/2019,Research Grant Expenditure,NPIF Research Talent (RCUK Innovation Fellowships),UKRI - Engineering & Physical Sciences Research Council,98511827,12345.07,Research Grant Expenditure
BEIS,UKRI - AHRC,18/06/2019,Research Grant Expenditure,NPIF Research Talent (RCUK Innovation Fellowships),UKRI - Engineering & Physical Sciences Research Council,98511839,13825.97,Research Grant Expenditure
BEIS,UKRI - AHRC,18/06/2019,Research Grant Expenditure,NPIF Research Talent (RCUK Innovation Fellowships),UKRI - Engineering & Physical Sciences Research Council,98511841,21516.37,Research Grant Expenditure
BEIS,UKRI - AHRC,18/06/2019,Research Grant Expenditure,NPIF Research Talent (RCUK Innovation Fellowships),UKRI - Engineering & Physical Sciences Research Council,98511843,7006.61,Research Grant Expenditure
BEIS,UKRI - AHRC,18/06/2019,Other Staff Benefits,HR,UKRI - Medical Research Council,98511854,737.88,Other Staff Benefits
BEIS,UKRI - AHRC,18/06/2019,Recruitment Costs,SMT,Onefix Recruitment Ltd,98513830,150.00,Recruitment Costs
BEIS,UKRI - AHRC,18/06/2019,Research Grant Expenditure,Digital Economy,UKRI - Engineering & Physical Sciences Research Council,98513936,21065.71,Research Grant Expenditure
BEIS,UKRI - AHRC,18/06/2019,Research Grant Expenditure,Digital Economy,UKRI - Engineering & Physical Sciences Research Council,98513958,6203.54,Research Grant Expenditure
BEIS,UKRI - AHRC,18/06/2019,Research Grant Expenditure,Digital Economy,UKRI - Engineering & Physical Sciences Research Council,98513966,13971.40,Research Grant Expenditure
BEIS,UKRI - AHRC,18/06/2019,Research Grant Expenditure,Digital Economy,UKRI - Engineering & Physical Sciences Research Council,98514076,25681.85,Research Grant Expenditure
BEIS,UKRI - AHRC,18/06/2019,Research Grant Expenditure,Digital Economy,UKRI - Engineering & Physical Sciences Research Council,98514135,17620.49,Research Grant Expenditure
BEIS,UKRI - AHRC,18/06/2019,Research Grant Expenditure,Digital Economy,UKRI - Engineering & Physical Sciences Research Council,98514141,25597.49,Research Grant Expenditure
BEIS,UKRI - AHRC,18/06/2019,Research Grant Expenditure,Digital Economy,UKRI - Engineering & Physical Sciences Research Council,98514146,10485.34,Research Grant Expenditure
BEIS,UKRI - AHRC,18/06/2019,Research Grant Expenditure,Global Challenges Research Fund (GCRF),UKRI - Economic & Social Research Council,98514183,16559.90,Research Grant Expenditure
BEIS,UKRI - AHRC,18/06/2019,Research Grant Expenditure,Commissioned Research,UKRI - Economic & Social Research Council,98514185,6153.64,Research Grant Expenditure
BEIS,UKRI - AHRC,18/06/2019,Research Grant Expenditure,Commissioned Research,UKRI - Economic & Social Research Council,98514189,6728.90,Research Grant Expenditure
BEIS,UKRI - AHRC,18/06/2019,Research Grant Expenditure,Cross Council Responsive Mode Awards,UKRI - Economic & Social Research Council,98514196,12601.65,Research Grant Expenditure
BEIS,UKRI - AHRC,18/06/2019,Research Grant Expenditure,Digital Transformations,UKRI - Economic & Social Research Council,98514197,5081.33,Research Grant Expenditure
BEIS,UKRI - AHRC,18/06/2019,Research Grant Expenditure,Global Challenges Research Fund (GCRF),UKRI - Economic & Social Research Council,98514204,6370.06,Research Grant Expenditure
BEIS,UKRI - AHRC,18/06/2019,Research Grant Expenditure,Commissioned Research,UKRI - Economic & Social Research Council,98514206,8010.77,Research Grant Expenditure
BEIS,UKRI - AHRC,18/06/2019,Research Grant Expenditure,Digital Transformations,UKRI - Economic & Social Research Council,98514212,5632.76,Research Grant Expenditure
BEIS,UKRI - AHRC,18/06/2019,Research Grant Expenditure,Cross Council Responsive Mode Awards,UKRI - Economic & Social Research Council,98514214,41739.96,Research Grant Expenditure
BEIS,UKRI - AHRC,18/06/2019,Research Grant Expenditure,Global Challenges Research Fund (GCRF),UKRI - Economic & Social Research Council,98514219,17232.61,Research Grant Expenditure
BEIS,UKRI - AHRC,18/06/2019,Research Grant Expenditure,RCUK Global Challenges Research Fund (RCUK GCRF),UKRI - Economic & Social Research Council,98514224,369297.55,Research Grant Expenditure
BEIS,UKRI - AHRC,18/06/2019,Research Grant Expenditure,RCUK Global Challenges Research Fund (RCUK GCRF),UKRI - Economic & Social Research Council,98514229,21842.65,Research Grant Expenditure
BEIS,UKRI - AHRC,18/06/2019,Research Grant Expenditure,Digital Transformations,UKRI - Economic & Social Research Council,98514231,6321.46,Research Grant Expenditure
BEIS,UKRI - AHRC,18/06/2019,Research Grant Expenditure,RCUK Global Challenges Research Fund (RCUK GCRF),UKRI - Economic & Social Research Council,98514233,36744.00,Research Grant Expenditure
BEIS,UKRI - AHRC,18/06/2019,Research Grant Expenditure,Digital Transformations,UKRI - Economic & Social Research Council,98514235,8697.38,Research Grant Expenditure
BEIS,UKRI - AHRC,18/06/2019,Research Grant Expenditure,Commissioned Research,UKRI - Economic & Social Research Council,98514277,7295.78,Research Grant Expenditure
BEIS,UKRI - AHRC,18/06/2019,Research Grant Expenditure,Global Challenges Research Fund (GCRF),UKRI - Economic & Social Research Council,98514285,4821.09,Research Grant Expenditure
BEIS,UKRI - AHRC,18/06/2019,Research Grant Expenditure,RCUK Global Challenges Research Fund (RCUK GCRF),UKRI - Economic & Social Research Council,98514292,46571.80,Research Grant Expenditure
BEIS,UKRI - AHRC,18/06/2019,Research Grant Expenditure,RCUK Global Challenges Research Fund (RCUK GCRF),UKRI - Economic & Social Research Council,98514295,21828.10,Research Grant Expenditure
BEIS,UKRI - AHRC,18/06/2019,Research Grant Expenditure,Global Uncertainties Programme,UKRI - Economic & Social Research Council,98514297,4457.43,Research Grant Expenditure
BEIS,UKRI - AHRC,18/06/2019,Research Grant Expenditure,Anti-microbial Resistance (AMR),UKRI - Economic & Social Research Council,98514301,25704.96,Research Grant Expenditure
BEIS,UKRI - AHRC,18/06/2019,Research Grant Expenditure,RCUK Global Challenges Research Fund (RCUK GCRF),UKRI - Economic & Social Research Council,98514311,182346.00,Research Grant Expenditure
BEIS,UKRI - AHRC,18/06/2019,Research Grant Expenditure,RCUK Global Challenges Research Fund (RCUK GCRF),UKRI - Economic & Social Research Council,98514333,18896.35,Research Grant Expenditure
BEIS,UKRI - AHRC,18/06/2019,Research Grant Expenditure,Commissioned Research,UKRI - Economic & Social Research Council,98514339,8959.66,Research Grant Expenditure
BEIS,UKRI - AHRC,18/06/2019,Research Grant Expenditure,Commissioned Research,UKRI - Economic & Social Research Council,98514348,6741.89,Research Grant Expenditure
BEIS,UKRI - AHRC,18/06/2019,Research Grant Expenditure,Global Uncertainties Programme,UKRI - Economic & Social Research Council,98514357,1449.27,Research Grant Expenditure
BEIS,UKRI - AHRC,18/06/2019,Research Grant Expenditure,RCUK Global Challenges Research Fund (RCUK GCRF),UKRI - Economic & Social Research Council,98514360,38826.50,Research Grant Expenditure
BEIS,UKRI - AHRC,18/06/2019,Research Grant Expenditure,Digital Transformations,UKRI - Economic & Social Research Council,98514366,5543.41,Research Grant Expenditure
BEIS,UKRI - AHRC,18/06/2019,Research Grant Expenditure,Digital Transformations,UKRI - Economic & Social Research Council,98514367,7315.58,Research Grant Expenditure
BEIS,UKRI - AHRC,18/06/2019,Research Grant Expenditure,Global Challenges Research Fund (GCRF),UKRI - Economic & Social Research Council,98514370,13933.95,Research Grant Expenditure
BEIS,UKRI - AHRC,18/06/2019,Research Grant Expenditure,Commissioned Research,UKRI - Economic & Social Research Council,98514376,6727.53,Research Grant Expenditure
BEIS,UKRI - AHRC,18/06/2019,Research Grant Expenditure,RCUK Global Challenges Research Fund (RCUK GCRF),UKRI - Economic & Social Research Council,98514383,89708.76,Research Grant Expenditure
BEIS,UKRI - AHRC,18/06/2019,Research Grant Expenditure,Global Challenges Research Fund (GCRF),UKRI - Economic & Social Research Council,98514390,9932.34,Research Grant Expenditure
BEIS,UKRI - AHRC,18/06/2019,Research Grant Expenditure,RCUK Global Challenges Research Fund (RCUK GCRF),UKRI - Economic & Social Research Council,98514397,47131.10,Research Grant Expenditure
BEIS,UKRI - AHRC,18/06/2019,Research Grant Expenditure,RCUK Global Challenges Research Fund (RCUK GCRF),UKRI - Economic & Social Research Council,98514403,51129.90,Research Grant Expenditure
BEIS,UKRI - AHRC,18/06/2019,Research Grant Expenditure,Global Challenges Research Fund (GCRF),UKRI - Economic & Social Research Council,98514407,35041.02,Research Grant Expenditure
BEIS,UKRI - AHRC,18/06/2019,Conferences & Seminars,Secretariat,Culture and Sport Glasgow and Culture and Sport (Trading) CIC T/A Glasgow Life,98514652,4650.00,Conferences & Seminars
BEIS,UKRI - AHRC,18/06/2019,Recruitment Costs,Corporate Services,Onefix Recruitment Ltd,98514727,150.00,Recruitment Costs
BEIS,UKRI - AHRC,19/06/2019,Nursery Deductions,Balance Sheet,EDENRED (UK GROUP) LTD,98516318,2702.73,Nursery Deductions
BEIS,UKRI - AHRC,19/06/2019,T&S UK - Subsistence,SMT,Unspecified,98518079,8.10,T&S UK - Subsistence
BEIS,UKRI - AHRC,19/06/2019,T&S UK - Subsistence,SMT,Unspecified,98518079,32.20,T&S UK - Subsistence
BEIS,UKRI - AHRC,19/06/2019,T&S UK - Subsistence,SMT,Unspecified,98518079,28.80,T&S UK - Subsistence
BEIS,UKRI - AHRC,19/06/2019,T&S UK - Subsistence,SMT,Unspecified,98518079,5.00,T&S UK - Subsistence
BEIS,UKRI - AHRC,19/06/2019,Education Fees & Study Materials,Public and Stakeholder Engagement,Unspecified,98518080,9.99,Education Fees & Study Materials
BEIS,UKRI - AHRC,19/06/2019,T&S UK - Mileage,Public and Stakeholder Engagement,Unspecified,98518080,30.60,T&S UK - Mileage
BEIS,UKRI - AHRC,19/06/2019,T&S UK - Other Charges,Public and Stakeholder Engagement,Unspecified,98518080,1.59,T&S UK - Other Charges
BEIS,UKRI - AHRC,19/06/2019,T&S UK - Public Transport,Public and Stakeholder Engagement,Unspecified,98518080,12.80,T&S UK - Public Transport
BEIS,UKRI - AHRC,19/06/2019,T&S UK - Subsistence,Public and Stakeholder Engagement,Unspecified,98518080,10.15,T&S UK - Subsistence
BEIS,UKRI - AHRC,19/06/2019,T&S UK - Subsistence,Public and Stakeholder Engagement,Unspecified,98518080,1.50,T&S UK - Subsistence
BEIS,UKRI - AHRC,19/06/2019,T&S UK - Other Charges,"History, Heritage, Languages and Literature",Unspecified,98518081,9.99,T&S UK - Other Charges
BEIS,UKRI - AHRC,19/06/2019,T&S UK - Parking Tolls Congestion Charges,"History, Heritage, Languages and Literature",Unspecified,98518081,6.60,T&S UK - Parking Tolls Congestion Charges
BEIS,UKRI - AHRC,19/06/2019,T&S UK - Subsistence,"History, Heritage, Languages and Literature",Unspecified,98518081,8.70,T&S UK - Subsistence
BEIS,UKRI - AHRC,19/06/2019,T&S UK - Subsistence,"History, Heritage, Languages and Literature",Unspecified,98518081,15.00,T&S UK - Subsistence
BEIS,UKRI - AHRC,20/06/2019,T&S UK - Mileage,PSU Project Office,Unspecified,98473348,58.59,T&S UK - Mileage
BEIS,UKRI - AHRC,20/06/2019,T&S UK - Parking Tolls Congestion Charges,PSU Project Office,Unspecified,98473348,10.00,T&S UK - Parking Tolls Congestion Charges
BEIS,UKRI - AHRC,20/06/2019,T&S UK - Subsistence,Operations,Unspecified,98473350,21.54,T&S UK - Subsistence
BEIS,UKRI - AHRC,20/06/2019,T&S UK - Subsistence,Operations,Unspecified,98473350,5.65,T&S UK - Subsistence
BEIS,UKRI - AHRC,20/06/2019,Cleaning & Sterilisation,Corporate Services,Banner Group Ltd,98514844,1.96,Cleaning & Sterilisation
BEIS,UKRI - AHRC,20/06/2019,Non-staff travel and subsistance,GCRF - Programme Delivery,Corporate Travel Management (North) Ltd,98518192,0.50,Non-staff travel and subsistance
BEIS,UKRI - AHRC,20/06/2019,Non-staff travel and subsistance,GCRF - Programme Delivery,Corporate Travel Management (North) Ltd,98518192,150.00,Non-staff travel and subsistance
BEIS,UKRI - AHRC,20/06/2019,Non-staff travel and subsistance,GCRF - Programme Delivery,Corporate Travel Management (North) Ltd,98518192,0.50,Non-staff travel and subsistance
BEIS,UKRI - AHRC,20/06/2019,Non-staff travel and subsistance,GCRF - Programme Delivery,Corporate Travel Management (North) Ltd,98518192,150.00,Non-staff travel and subsistance
BEIS,UKRI - AHRC,20/06/2019,Non-staff travel and subsistance,GCRF - Programme Delivery,Corporate Travel Management (North) Ltd,98518192,0.50,Non-staff travel and subsistance
BEIS,UKRI - AHRC,20/06/2019,Non-staff travel and subsistance,GCRF - Programme Delivery,Corporate Travel Management (North) Ltd,98518192,75.00,Non-staff travel and subsistance
BEIS,UKRI - AHRC,20/06/2019,Non-staff travel and subsistance,GCRF - Programme Delivery,Corporate Travel Management (North) Ltd,98518192,1.00,Non-staff travel and subsistance
BEIS,UKRI - AHRC,20/06/2019,Non-staff travel and subsistance,GCRF - Programme Delivery,Corporate Travel Management (North) Ltd,98518192,1.44,Non-staff travel and subsistance
BEIS,UKRI - AHRC,20/06/2019,Non-staff travel and subsistance,GCRF - Programme Delivery,Corporate Travel Management (North) Ltd,98518192,75.00,Non-staff travel and subsistance
BEIS,UKRI - AHRC,20/06/2019,Non-staff travel and subsistance,GCRF - Programme Delivery,Corporate Travel Management (North) Ltd,98518192,0.50,Non-staff travel and subsistance
BEIS,UKRI - AHRC,20/06/2019,Non-staff travel and subsistance,GCRF - Programme Delivery,Corporate Travel Management (North) Ltd,98518192,65.00,Non-staff travel and subsistance
BEIS,UKRI - AHRC,20/06/2019,Non-staff travel and subsistance,GCRF - Programme Delivery,Corporate Travel Management (North) Ltd,98518192,0.50,Non-staff travel and subsistance
BEIS,UKRI - AHRC,20/06/2019,Non-staff travel and subsistance,GCRF - Programme Delivery,Corporate Travel Management (North) Ltd,98518192,65.00,Non-staff travel and subsistance
BEIS,UKRI - AHRC,20/06/2019,Non-staff travel and subsistance,GCRF - Programme Delivery,Corporate Travel Management (North) Ltd,98518192,0.50,Non-staff travel and subsistance
BEIS,UKRI - AHRC,20/06/2019,Non-staff travel and subsistance,GCRF - Programme Delivery,Corporate Travel Management (North) Ltd,98518192,65.00,Non-staff travel and subsistance
BEIS,UKRI - AHRC,20/06/2019,Non-staff travel and subsistance,GCRF - Programme Delivery,Corporate Travel Management (North) Ltd,98518192,0.50,Non-staff travel and subsistance
BEIS,UKRI - AHRC,20/06/2019,Non-staff travel and subsistance,GCRF - Programme Delivery,Corporate Travel Management (North) Ltd,98518192,65.00,Non-staff travel and subsistance
BEIS,UKRI - AHRC,20/06/2019,Non-staff travel and subsistance,GCRF - Programme Delivery,Corporate Travel Management (North) Ltd,98518192,0.50,Non-staff travel and subsistance
BEIS,UKRI - AHRC,20/06/2019,Non-staff travel and subsistance,GCRF - Programme Delivery,Corporate Travel Management (North) Ltd,98518192,65.00,Non-staff travel and subsistance
BEIS,UKRI - AHRC,20/06/2019,Non-staff travel and subsistance,GCRF - Programme Delivery,Corporate Travel Management (North) Ltd,98518192,1.29,Non-staff travel and subsistance
BEIS,UKRI - AHRC,20/06/2019,T&S Overseas - Accommodation,HR,Corporate Travel Management (North) Ltd,98518192,263.50,T&S Overseas - Accommodation
BEIS,UKRI - AHRC,20/06/2019,T&S Overseas - Accommodation,"History, Heritage, Languages and Literature",Corporate Travel Management (North) Ltd,98518192,145.85,T&S Overseas - Accommodation
BEIS,UKRI - AHRC,20/06/2019,T&S Overseas - Accommodation,International,Corporate Travel Management (North) Ltd,98518192,0.50,T&S Overseas - Accommodation
BEIS,UKRI - AHRC,20/06/2019,T&S Overseas - Accommodation,International,Corporate Travel Management (North) Ltd,98518192,686.58,T&S Overseas - Accommodation
BEIS,UKRI - AHRC,20/06/2019,T&S Overseas - Accommodation,International,Corporate Travel Management (North) Ltd,98518192,686.58,T&S Overseas - Accommodation
BEIS,UKRI - AHRC,20/06/2019,T&S Overseas - Accommodation,International,Corporate Travel Management (North) Ltd,98518192,0.10,T&S Overseas - Accommodation
BEIS,UKRI - AHRC,20/06/2019,T&S Overseas - Accommodation,SMT,Corporate Travel Management (North) Ltd,98518192,188.69,T&S Overseas - Accommodation
BEIS,UKRI - AHRC,20/06/2019,T&S Overseas - Accommodation,SMT,Corporate Travel Management (North) Ltd,98518192,166.25,T&S Overseas - Accommodation
BEIS,UKRI - AHRC,20/06/2019,T&S Overseas - Flights,Digital Arts and Humanities and Creative Industries,Corporate Travel Management (North) Ltd,98518192,10.00,T&S Overseas - Flights
BEIS,UKRI - AHRC,20/06/2019,T&S Overseas - Flights,Digital Arts and Humanities and Creative Industries,Corporate Travel Management (North) Ltd,98518192,90.00,T&S Overseas - Flights
BEIS,UKRI - AHRC,20/06/2019,T&S Overseas - Flights,Digital Arts and Humanities and Creative Industries,Corporate Travel Management (North) Ltd,98518192,30.00,T&S Overseas - Flights
BEIS,UKRI - AHRC,20/06/2019,T&S Overseas - Flights,Digital Arts and Humanities and Creative Industries,Corporate Travel Management (North) Ltd,98518192,20.00,T&S Overseas - Flights
BEIS,UKRI - AHRC,20/06/2019,T&S Overseas - Flights,Fund for International Collaboration,Corporate Travel Management (North) Ltd,98518192,165.64,T&S Overseas - Flights
BEIS,UKRI - AHRC,20/06/2019,T&S Overseas - Flights,GCRF - Programme Delivery,Corporate Travel Management (North) Ltd,98518192,2.16,T&S Overseas - Flights
BEIS,UKRI - AHRC,20/06/2019,T&S Overseas - Flights,GCRF - Programme Delivery,Corporate Travel Management (North) Ltd,98518192,808.24,T&S Overseas - Flights
BEIS,UKRI - AHRC,20/06/2019,T&S Overseas - Flights,GCRF - Programme Delivery,Corporate Travel Management (North) Ltd,98518192,119.00,T&S Overseas - Flights
BEIS,UKRI - AHRC,20/06/2019,T&S Overseas - Flights,GCRF - Programme Delivery,Corporate Travel Management (North) Ltd,98518192,2.16,T&S Overseas - Flights
BEIS,UKRI - AHRC,20/06/2019,T&S Overseas - Flights,GCRF - Programme Delivery,Corporate Travel Management (North) Ltd,98518192,152.80,T&S Overseas - Flights
BEIS,UKRI - AHRC,20/06/2019,T&S Overseas - Flights,International,Corporate Travel Management (North) Ltd,98518192,2110.72,T&S Overseas - Flights
BEIS,UKRI - AHRC,20/06/2019,T&S Overseas - Flights,International,Corporate Travel Management (North) Ltd,98518192,128.40,T&S Overseas - Flights
BEIS,UKRI - AHRC,20/06/2019,T&S Overseas - Flights,International,Corporate Travel Management (North) Ltd,98518192,194.44,T&S Overseas - Flights
BEIS,UKRI - AHRC,20/06/2019,T&S Overseas - Flights,International,Corporate Travel Management (North) Ltd,98518192,64.90,T&S Overseas - Flights
BEIS,UKRI - AHRC,20/06/2019,T&S Overseas - Flights,International,Corporate Travel Management (North) Ltd,98518192,227.44,T&S Overseas - Flights
BEIS,UKRI - AHRC,20/06/2019,T&S Overseas - Flights,International Development and Area Studies,Corporate Travel Management (North) Ltd,98518192,567.22,T&S Overseas - Flights
BEIS,UKRI - AHRC,20/06/2019,T&S Overseas - Flights,International Development and Area Studies,Corporate Travel Management (North) Ltd,98518192,534.90,T&S Overseas - Flights
BEIS,UKRI - AHRC,20/06/2019,T&S Overseas - Flights,SMT,Corporate Travel Management (North) Ltd,98518192,371.24,T&S Overseas - Flights
BEIS,UKRI - AHRC,20/06/2019,T&S Overseas - Other Charges,International,Corporate Travel Management (North) Ltd,98518192,2.16,T&S Overseas - Other Charges
BEIS,UKRI - AHRC,20/06/2019,T&S Overseas - Other Charges,International,Corporate Travel Management (North) Ltd,98518192,221.00,T&S Overseas - Other Charges
BEIS,UKRI - AHRC,20/06/2019,T&S Overseas - Other Charges,International,Corporate Travel Management (North) Ltd,98518192,1373.70,T&S Overseas - Other Charges
BEIS,UKRI - AHRC,20/06/2019,T&S Overseas - Public Transport,HERA JRP Project,Corporate Travel Management (North) Ltd,98518192,60.40,T&S Overseas - Public Transport
BEIS,UKRI - AHRC,20/06/2019,T&S Overseas - Public Transport,HERA JRP Project,Corporate Travel Management (North) Ltd,98518192,87.50,T&S Overseas - Public Transport
BEIS,UKRI - AHRC,20/06/2019,T&S Overseas - Public Transport,HR,Corporate Travel Management (North) Ltd,98518192,114.40,T&S Overseas - Public Transport
BEIS,UKRI - AHRC,20/06/2019,T&S UK - Accommodation,Digital Arts and Humanities and Creative Industries,Corporate Travel Management (North) Ltd,98518192,0.50,T&S UK - Accommodation
BEIS,UKRI - AHRC,20/06/2019,T&S UK - Accommodation,Digital Arts and Humanities and Creative Industries,Corporate Travel Management (North) Ltd,98518192,68.00,T&S UK - Accommodation
BEIS,UKRI - AHRC,20/06/2019,T&S UK - Accommodation,Digital Arts and Humanities and Creative Industries,Corporate Travel Management (North) Ltd,98518192,0.50,T&S UK - Accommodation
BEIS,UKRI - AHRC,20/06/2019,T&S UK - Accommodation,Digital Arts and Humanities and Creative Industries,Corporate Travel Management (North) Ltd,98518192,130.00,T&S UK - Accommodation
BEIS,UKRI - AHRC,20/06/2019,T&S UK - Accommodation,Digital Arts and Humanities and Creative Industries,Corporate Travel Management (North) Ltd,98518192,0.20,T&S UK - Accommodation
BEIS,UKRI - AHRC,20/06/2019,T&S UK - Accommodation,GCRF - Programme Delivery,Corporate Travel Management (North) Ltd,98518192,0.50,T&S UK - Accommodation
BEIS,UKRI - AHRC,20/06/2019,T&S UK - Accommodation,GCRF - Programme Delivery,Corporate Travel Management (North) Ltd,98518192,162.04,T&S UK - Accommodation
BEIS,UKRI - AHRC,20/06/2019,T&S UK - Accommodation,GCRF - Programme Delivery,Corporate Travel Management (North) Ltd,98518192,0.50,T&S UK - Accommodation
BEIS,UKRI - AHRC,20/06/2019,T&S UK - Accommodation,GCRF - Programme Delivery,Corporate Travel Management (North) Ltd,98518192,75.00,T&S UK - Accommodation
BEIS,UKRI - AHRC,20/06/2019,T&S UK - Accommodation,GCRF - Programme Delivery,Corporate Travel Management (North) Ltd,98518192,0.50,T&S UK - Accommodation
BEIS,UKRI - AHRC,20/06/2019,T&S UK - Accommodation,GCRF - Programme Delivery,Corporate Travel Management (North) Ltd,98518192,150.00,T&S UK - Accommodation
BEIS,UKRI - AHRC,20/06/2019,T&S UK - Accommodation,GCRF - Programme Delivery,Corporate Travel Management (North) Ltd,98518192,0.50,T&S UK - Accommodation
BEIS,UKRI - AHRC,20/06/2019,T&S UK - Accommodation,GCRF - Programme Delivery,Corporate Travel Management (North) Ltd,98518192,150.00,T&S UK - Accommodation
BEIS,UKRI - AHRC,20/06/2019,T&S UK - Accommodation,GCRF - Programme Delivery,Corporate Travel Management (North) Ltd,98518192,0.50,T&S UK - Accommodation
BEIS,UKRI - AHRC,20/06/2019,T&S UK - Accommodation,GCRF - Programme Delivery,Corporate Travel Management (North) Ltd,98518192,75.00,T&S UK - Accommodation
BEIS,UKRI - AHRC,20/06/2019,T&S UK - Accommodation,GCRF - Programme Delivery,Corporate Travel Management (North) Ltd,98518192,0.50,T&S UK - Accommodation
BEIS,UKRI - AHRC,20/06/2019,T&S UK - Accommodation,GCRF - Programme Delivery,Corporate Travel Management (North) Ltd,98518192,75.00,T&S UK - Accommodation
BEIS,UKRI - AHRC,20/06/2019,T&S UK - Accommodation,GCRF - Programme Delivery,Corporate Travel Management (North) Ltd,98518192,0.50,T&S UK - Accommodation
BEIS,UKRI - AHRC,20/06/2019,T&S UK - Accommodation,GCRF - Programme Delivery,Corporate Travel Management (North) Ltd,98518192,92.00,T&S UK - Accommodation
BEIS,UKRI - AHRC,20/06/2019,T&S UK - Accommodation,GCRF - Programme Delivery,Corporate Travel Management (North) Ltd,98518192,0.50,T&S UK - Accommodation
BEIS,UKRI - AHRC,20/06/2019,T&S UK - Accommodation,GCRF - Programme Delivery,Corporate Travel Management (North) Ltd,98518192,1.44,T&S UK - Accommodation
BEIS,UKRI - AHRC,20/06/2019,T&S UK - Accommodation,GCRF - Programme Delivery,Corporate Travel Management (North) Ltd,98518192,75.00,T&S UK - Accommodation
BEIS,UKRI - AHRC,20/06/2019,T&S UK - Accommodation,GCRF - Programme Delivery,Corporate Travel Management (North) Ltd,98518192,0.50,T&S UK - Accommodation
BEIS,UKRI - AHRC,20/06/2019,T&S UK - Accommodation,GCRF - Programme Delivery,Corporate Travel Management (North) Ltd,98518192,150.00,T&S UK - Accommodation
BEIS,UKRI - AHRC,20/06/2019,T&S UK - Accommodation,GCRF - Programme Delivery,Corporate Travel Management (North) Ltd,98518192,1.19,T&S UK - Accommodation
BEIS,UKRI - AHRC,20/06/2019,T&S UK - Accommodation,HR,Corporate Travel Management (North) Ltd,98518192,0.50,T&S UK - Accommodation
BEIS,UKRI - AHRC,20/06/2019,T&S UK - Accommodation,HR,Corporate Travel Management (North) Ltd,98518192,83.50,T&S UK - Accommodation
BEIS,UKRI - AHRC,20/06/2019,T&S UK - Accommodation,HR,Corporate Travel Management (North) Ltd,98518192,0.10,T&S UK - Accommodation
BEIS,UKRI - AHRC,20/06/2019,T&S UK - Accommodation,"History, Heritage, Languages and Literature",Corporate Travel Management (North) Ltd,98518192,0.50,T&S UK - Accommodation
BEIS,UKRI - AHRC,20/06/2019,T&S UK - Accommodation,"History, Heritage, Languages and Literature",Corporate Travel Management (North) Ltd,98518192,56.50,T&S UK - Accommodation
BEIS,UKRI - AHRC,20/06/2019,T&S UK - Accommodation,"History, Heritage, Languages and Literature",Corporate Travel Management (North) Ltd,98518192,0.50,T&S UK - Accommodation
BEIS,UKRI - AHRC,20/06/2019,T&S UK - Accommodation,"History, Heritage, Languages and Literature",Corporate Travel Management (North) Ltd,98518192,130.00,T&S UK - Accommodation
BEIS,UKRI - AHRC,20/06/2019,T&S UK - Accommodation,"History, Heritage, Languages and Literature",Corporate Travel Management (North) Ltd,98518192,0.50,T&S UK - Accommodation
BEIS,UKRI - AHRC,20/06/2019,T&S UK - Accommodation,"History, Heritage, Languages and Literature",Corporate Travel Management (North) Ltd,98518192,53.29,T&S UK - Accommodation
BEIS,UKRI - AHRC,20/06/2019,T&S UK - Accommodation,"History, Heritage, Languages and Literature",Corporate Travel Management (North) Ltd,98518192,0.30,T&S UK - Accommodation
BEIS,UKRI - AHRC,20/06/2019,T&S UK - Accommodation,Industrial Strategy Challenge Fund (ISCF) - Creative Clusters,Corporate Travel Management (North) Ltd,98518192,0.50,T&S UK - Accommodation
BEIS,UKRI - AHRC,20/06/2019,T&S UK - Accommodation,Industrial Strategy Challenge Fund (ISCF) - Creative Clusters,Corporate Travel Management (North) Ltd,98518192,68.00,T&S UK - Accommodation
BEIS,UKRI - AHRC,20/06/2019,T&S UK - Accommodation,Industrial Strategy Challenge Fund (ISCF) - Creative Clusters,Corporate Travel Management (North) Ltd,98518192,0.50,T&S UK - Accommodation
BEIS,UKRI - AHRC,20/06/2019,T&S UK - Accommodation,Industrial Strategy Challenge Fund (ISCF) - Creative Clusters,Corporate Travel Management (North) Ltd,98518192,69.00,T&S UK - Accommodation
BEIS,UKRI - AHRC,20/06/2019,T&S UK - Accommodation,Industrial Strategy Challenge Fund (ISCF) - Creative Clusters,Corporate Travel Management (North) Ltd,98518192,0.50,T&S UK - Accommodation
BEIS,UKRI - AHRC,20/06/2019,T&S UK - Accommodation,Industrial Strategy Challenge Fund (ISCF) - Creative Clusters,Corporate Travel Management (North) Ltd,98518192,69.00,T&S UK - Accommodation
BEIS,UKRI - AHRC,20/06/2019,T&S UK - Accommodation,Industrial Strategy Challenge Fund (ISCF) - Creative Clusters,Corporate Travel Management (North) Ltd,98518192,0.30,T&S UK - Accommodation
BEIS,UKRI - AHRC,20/06/2019,T&S UK - Accommodation,International Development and Area Studies,Corporate Travel Management (North) Ltd,98518192,0.50,T&S UK - Accommodation
BEIS,UKRI - AHRC,20/06/2019,T&S UK - Accommodation,International Development and Area Studies,Corporate Travel Management (North) Ltd,98518192,75.00,T&S UK - Accommodation
BEIS,UKRI - AHRC,20/06/2019,T&S UK - Accommodation,International Development and Area Studies,Corporate Travel Management (North) Ltd,98518192,0.50,T&S UK - Accommodation
BEIS,UKRI - AHRC,20/06/2019,T&S UK - Accommodation,International Development and Area Studies,Corporate Travel Management (North) Ltd,98518192,75.00,T&S UK - Accommodation
BEIS,UKRI - AHRC,20/06/2019,T&S UK - Accommodation,International Development and Area Studies,Corporate Travel Management (North) Ltd,98518192,0.50,T&S UK - Accommodation
BEIS,UKRI - AHRC,20/06/2019,T&S UK - Accommodation,International Development and Area Studies,Corporate Travel Management (North) Ltd,98518192,75.00,T&S UK - Accommodation
BEIS,UKRI - AHRC,20/06/2019,T&S UK - Accommodation,International Development and Area Studies,Corporate Travel Management (North) Ltd,98518192,0.50,T&S UK - Accommodation
BEIS,UKRI - AHRC,20/06/2019,T&S UK - Accommodation,International Development and Area Studies,Corporate Travel Management (North) Ltd,98518192,75.00,T&S UK - Accommodation
BEIS,UKRI - AHRC,20/06/2019,T&S UK - Accommodation,International Development and Area Studies,Corporate Travel Management (North) Ltd,98518192,0.50,T&S UK - Accommodation
BEIS,UKRI - AHRC,20/06/2019,T&S UK - Accommodation,International Development and Area Studies,Corporate Travel Management (North) Ltd,98518192,75.00,T&S UK - Accommodation
BEIS,UKRI - AHRC,20/06/2019,T&S UK - Accommodation,International Development and Area Studies,Corporate Travel Management (North) Ltd,98518192,0.50,T&S UK - Accommodation
BEIS,UKRI - AHRC,20/06/2019,T&S UK - Accommodation,International Development and Area Studies,Corporate Travel Management (North) Ltd,98518192,75.00,T&S UK - Accommodation
BEIS,UKRI - AHRC,20/06/2019,T&S UK - Accommodation,International Development and Area Studies,Corporate Travel Management (North) Ltd,98518192,0.50,T&S UK - Accommodation
BEIS,UKRI - AHRC,20/06/2019,T&S UK - Accommodation,International Development and Area Studies,Corporate Travel Management (North) Ltd,98518192,75.00,T&S UK - Accommodation
BEIS,UKRI - AHRC,20/06/2019,T&S UK - Accommodation,International Development and Area Studies,Corporate Travel Management (North) Ltd,98518192,0.50,T&S UK - Accommodation
BEIS,UKRI - AHRC,20/06/2019,T&S UK - Accommodation,International Development and Area Studies,Corporate Travel Management (North) Ltd,98518192,75.00,T&S UK - Accommodation
BEIS,UKRI - AHRC,20/06/2019,T&S UK - Accommodation,International Development and Area Studies,Corporate Travel Management (North) Ltd,98518192,0.50,T&S UK - Accommodation
BEIS,UKRI - AHRC,20/06/2019,T&S UK - Accommodation,International Development and Area Studies,Corporate Travel Management (North) Ltd,98518192,0.90,T&S UK - Accommodation
BEIS,UKRI - AHRC,20/06/2019,T&S UK - Accommodation,International Partnership and Engagement,Corporate Travel Management (North) Ltd,98518192,0.50,T&S UK - Accommodation
BEIS,UKRI - AHRC,20/06/2019,T&S UK - Accommodation,International Partnership and Engagement,Corporate Travel Management (North) Ltd,98518192,175.00,T&S UK - Accommodation
BEIS,UKRI - AHRC,20/06/2019,T&S UK - Accommodation,International Partnership and Engagement,Corporate Travel Management (North) Ltd,98518192,0.10,T&S UK - Accommodation
BEIS,UKRI - AHRC,20/06/2019,T&S UK - Accommodation,Operations,Corporate Travel Management (North) Ltd,98518192,0.50,T&S UK - Accommodation
BEIS,UKRI - AHRC,20/06/2019,T&S UK - Accommodation,Operations,Corporate Travel Management (North) Ltd,98518192,47.25,T&S UK - Accommodation
BEIS,UKRI - AHRC,20/06/2019,T&S UK - Accommodation,Operations,Corporate Travel Management (North) Ltd,98518192,0.10,T&S UK - Accommodation
BEIS,UKRI - AHRC,20/06/2019,T&S UK - Accommodation,PSU Project Office,Corporate Travel Management (North) Ltd,98518192,0.50,T&S UK - Accommodation
BEIS,UKRI - AHRC,20/06/2019,T&S UK - Accommodation,PSU Project Office,Corporate Travel Management (North) Ltd,98518192,53.25,T&S UK - Accommodation
BEIS,UKRI - AHRC,20/06/2019,T&S UK - Accommodation,PSU Project Office,Corporate Travel Management (North) Ltd,98518192,0.10,T&S UK - Accommodation
BEIS,UKRI - AHRC,20/06/2019,T&S UK - Accommodation,Public and Stakeholder Engagement,Corporate Travel Management (North) Ltd,98518192,0.50,T&S UK - Accommodation
BEIS,UKRI - AHRC,20/06/2019,T&S UK - Accommodation,Public and Stakeholder Engagement,Corporate Travel Management (North) Ltd,98518192,69.00,T&S UK - Accommodation
BEIS,UKRI - AHRC,20/06/2019,T&S UK - Accommodation,Public and Stakeholder Engagement,Corporate Travel Management (North) Ltd,98518192,0.50,T&S UK - Accommodation
BEIS,UKRI - AHRC,20/06/2019,T&S UK - Accommodation,Public and Stakeholder Engagement,Corporate Travel Management (North) Ltd,98518192,69.00,T&S UK - Accommodation
BEIS,UKRI - AHRC,20/06/2019,T&S UK - Accommodation,Public and Stakeholder Engagement,Corporate Travel Management (North) Ltd,98518192,0.50,T&S UK - Accommodation
BEIS,UKRI - AHRC,20/06/2019,T&S UK - Accommodation,Public and Stakeholder Engagement,Corporate Travel Management (North) Ltd,98518192,75.00,T&S UK - Accommodation
BEIS,UKRI - AHRC,20/06/2019,T&S UK - Accommodation,Public and Stakeholder Engagement,Corporate Travel Management (North) Ltd,98518192,0.30,T&S UK - Accommodation
BEIS,UKRI - AHRC,20/06/2019,T&S UK - Accommodation,SMT,Corporate Travel Management (North) Ltd,98518192,0.50,T&S UK - Accommodation
BEIS,UKRI - AHRC,20/06/2019,T&S UK - Accommodation,SMT,Corporate Travel Management (North) Ltd,98518192,82.00,T&S UK - Accommodation
BEIS,UKRI - AHRC,20/06/2019,T&S UK - Accommodation,SMT,Corporate Travel Management (North) Ltd,98518192,0.50,T&S UK - Accommodation
BEIS,UKRI - AHRC,20/06/2019,T&S UK - Accommodation,SMT,Corporate Travel Management (North) Ltd,98518192,242.66,T&S UK - Accommodation
BEIS,UKRI - AHRC,20/06/2019,T&S UK - Accommodation,SMT,Corporate Travel Management (North) Ltd,98518192,0.50,T&S UK - Accommodation
BEIS,UKRI - AHRC,20/06/2019,T&S UK - Accommodation,SMT,Corporate Travel Management (North) Ltd,98518192,82.00,T&S UK - Accommodation
BEIS,UKRI - AHRC,20/06/2019,T&S UK - Accommodation,SMT,Corporate Travel Management (North) Ltd,98518192,0.50,T&S UK - Accommodation
BEIS,UKRI - AHRC,20/06/2019,T&S UK - Accommodation,SMT,Corporate Travel Management (North) Ltd,98518192,65.00,T&S UK - Accommodation
BEIS,UKRI - AHRC,20/06/2019,T&S UK - Accommodation,SMT,Corporate Travel Management (North) Ltd,98518192,0.40,T&S UK - Accommodation
BEIS,UKRI - AHRC,20/06/2019,T&S UK - Accommodation,Secretariat,Corporate Travel Management (North) Ltd,98518192,0.50,T&S UK - Accommodation
BEIS,UKRI - AHRC,20/06/2019,T&S UK - Accommodation,Secretariat,Corporate Travel Management (North) Ltd,98518192,180.00,T&S UK - Accommodation
BEIS,UKRI - AHRC,20/06/2019,T&S UK - Accommodation,Secretariat,Corporate Travel Management (North) Ltd,98518192,0.50,T&S UK - Accommodation
BEIS,UKRI - AHRC,20/06/2019,T&S UK - Accommodation,Secretariat,Corporate Travel Management (North) Ltd,98518192,180.00,T&S UK - Accommodation
BEIS,UKRI - AHRC,20/06/2019,T&S UK - Accommodation,Secretariat,Corporate Travel Management (North) Ltd,98518192,0.50,T&S UK - Accommodation
BEIS,UKRI - AHRC,20/06/2019,T&S UK - Accommodation,Secretariat,Corporate Travel Management (North) Ltd,98518192,180.00,T&S UK - Accommodation
BEIS,UKRI - AHRC,20/06/2019,T&S UK - Accommodation,Secretariat,Corporate Travel Management (North) Ltd,98518192,1.00,T&S UK - Accommodation
BEIS,UKRI - AHRC,20/06/2019,T&S UK - Accommodation,Secretariat,Corporate Travel Management (North) Ltd,98518192,416.50,T&S UK - Accommodation
BEIS,UKRI - AHRC,20/06/2019,T&S UK - Accommodation,Secretariat,Corporate Travel Management (North) Ltd,98518192,0.50,T&S UK - Accommodation
BEIS,UKRI - AHRC,20/06/2019,T&S UK - Accommodation,Secretariat,Corporate Travel Management (North) Ltd,98518192,180.00,T&S UK - Accommodation
BEIS,UKRI - AHRC,20/06/2019,T&S UK - Accommodation,Secretariat,Corporate Travel Management (North) Ltd,98518192,0.60,T&S UK - Accommodation
BEIS,UKRI - AHRC,20/06/2019,T&S UK - Accommodation,Skills Strategy,Corporate Travel Management (North) Ltd,98518192,0.50,T&S UK - Accommodation
BEIS,UKRI - AHRC,20/06/2019,T&S UK - Accommodation,Skills Strategy,Corporate Travel Management (North) Ltd,98518192,80.00,T&S UK - Accommodation
BEIS,UKRI - AHRC,20/06/2019,T&S UK - Accommodation,Skills Strategy,Corporate Travel Management (North) Ltd,98518192,0.10,T&S UK - Accommodation
BEIS,UKRI - AHRC,20/06/2019,T&S UK - Flights,Digital Arts and Humanities and Creative Industries,Corporate Travel Management (North) Ltd,98518192,101.85,T&S UK - Flights
BEIS,UKRI - AHRC,20/06/2019,T&S UK - Flights,"History, Heritage, Languages and Literature",Corporate Travel Management (North) Ltd,98518192,264.76,T&S UK - Flights
BEIS,UKRI - AHRC,20/06/2019,T&S UK - Flights,"History, Heritage, Languages and Literature",Corporate Travel Management (North) Ltd,98518192,78.78,T&S UK - Flights
BEIS,UKRI - AHRC,20/06/2019,T&S UK - Flights,Industrial Strategy Challenge Fund (ISCF) - Creative Clusters,Corporate Travel Management (North) Ltd,98518192,2.16,T&S UK - Flights
BEIS,UKRI - AHRC,20/06/2019,T&S UK - Flights,Industrial Strategy Challenge Fund (ISCF) - Creative Clusters,Corporate Travel Management (North) Ltd,98518192,407.76,T&S UK - Flights
BEIS,UKRI - AHRC,20/06/2019,T&S UK - Flights,International Development and Area Studies,Corporate Travel Management (North) Ltd,98518192,94.78,T&S UK - Flights
BEIS,UKRI - AHRC,20/06/2019,T&S UK - Flights,JPI Cultural Heritage Project,Corporate Travel Management (North) Ltd,98518192,128.88,T&S UK - Flights
BEIS,UKRI - AHRC,20/06/2019,T&S UK - Flights,JPI Cultural Heritage Project,Corporate Travel Management (North) Ltd,98518192,80.00,T&S UK - Flights
BEIS,UKRI - AHRC,20/06/2019,T&S UK - Flights,PSU Project Office,Corporate Travel Management (North) Ltd,98518192,225.31,T&S UK - Flights
BEIS,UKRI - AHRC,20/06/2019,T&S UK - Flights,PSU Project Office,Corporate Travel Management (North) Ltd,98518192,164.31,T&S UK - Flights
BEIS,UKRI - AHRC,20/06/2019,T&S UK - Flights,PSU Project Office,Corporate Travel Management (North) Ltd,98518192,164.62,T&S UK - Flights
BEIS,UKRI - AHRC,20/06/2019,T&S UK - Flights,PSU Project Office,Corporate Travel Management (North) Ltd,98518192,66.94,T&S UK - Flights
BEIS,UKRI - AHRC,20/06/2019,T&S UK - Flights,PSU Project Office,Corporate Travel Management (North) Ltd,98518192,64.48,T&S UK - Flights
BEIS,UKRI - AHRC,20/06/2019,T&S UK - Flights,PSU Project Office,Corporate Travel Management (North) Ltd,98518192,2.16,T&S UK - Flights
BEIS,UKRI - AHRC,20/06/2019,T&S UK - Flights,PSU Project Office,Corporate Travel Management (North) Ltd,98518192,30.99,T&S UK - Flights
BEIS,UKRI - AHRC,20/06/2019,T&S UK - Flights,PSU Project Office,Corporate Travel Management (North) Ltd,98518192,66.94,T&S UK - Flights
BEIS,UKRI - AHRC,20/06/2019,T&S UK - Flights,PSU Project Office,Corporate Travel Management (North) Ltd,98518192,64.48,T&S UK - Flights
BEIS,UKRI - AHRC,20/06/2019,T&S UK - Flights,PSU Project Office,Corporate Travel Management (North) Ltd,98518192,63.42,T&S UK - Flights
BEIS,UKRI - AHRC,20/06/2019,T&S UK - Flights,SMT,Corporate Travel Management (North) Ltd,98518192,154.44,T&S UK - Flights
BEIS,UKRI - AHRC,20/06/2019,T&S UK - Flights,SMT,Corporate Travel Management (North) Ltd,98518192,169.87,T&S UK - Flights
BEIS,UKRI - AHRC,20/06/2019,T&S UK - Flights,SMT,Corporate Travel Management (North) Ltd,98518192,178.28,T&S UK - Flights
BEIS,UKRI - AHRC,20/06/2019,T&S UK - Flights,Skills Strategy,Corporate Travel Management (North) Ltd,98518192,101.85,T&S UK - Flights
BEIS,UKRI - AHRC,20/06/2019,T&S UK - Other Charges,International,Corporate Travel Management (North) Ltd,98518192,79.90,T&S UK - Other Charges
BEIS,UKRI - AHRC,20/06/2019,T&S UK - Other Charges,Public and Stakeholder Engagement,Corporate Travel Management (North) Ltd,98518192,40.19,T&S UK - Other Charges
BEIS,UKRI - AHRC,20/06/2019,T&S UK - Other Charges,Public and Stakeholder Engagement,Corporate Travel Management (North) Ltd,98518192,12.50,T&S UK - Other Charges
BEIS,UKRI - AHRC,20/06/2019,T&S UK - Other Charges,Public and Stakeholder Engagement,Corporate Travel Management (North) Ltd,98518192,12.50,T&S UK - Other Charges
BEIS,UKRI - AHRC,20/06/2019,T&S UK - Public Transport,Digital Arts and Humanities and Creative Industries,Corporate Travel Management (North) Ltd,98518192,1.00,T&S UK - Public Transport
BEIS,UKRI - AHRC,20/06/2019,T&S UK - Public Transport,Digital Arts and Humanities and Creative Industries,Corporate Travel Management (North) Ltd,98518192,71.20,T&S UK - Public Transport
BEIS,UKRI - AHRC,20/06/2019,T&S UK - Public Transport,Digital Arts and Humanities and Creative Industries,Corporate Travel Management (North) Ltd,98518192,122.90,T&S UK - Public Transport
BEIS,UKRI - AHRC,20/06/2019,T&S UK - Public Transport,Digital Arts and Humanities and Creative Industries,Corporate Travel Management (North) Ltd,98518192,36.00,T&S UK - Public Transport
BEIS,UKRI - AHRC,20/06/2019,T&S UK - Public Transport,Digital Arts and Humanities and Creative Industries,Corporate Travel Management (North) Ltd,98518192,168.40,T&S UK - Public Transport
BEIS,UKRI - AHRC,20/06/2019,T&S UK - Public Transport,Digital Arts and Humanities and Creative Industries,Corporate Travel Management (North) Ltd,98518192,144.40,T&S UK - Public Transport
BEIS,UKRI - AHRC,20/06/2019,T&S UK - Public Transport,Digital Arts and Humanities and Creative Industries,Corporate Travel Management (North) Ltd,98518192,126.00,T&S UK - Public Transport
BEIS,UKRI - AHRC,20/06/2019,T&S UK - Public Transport,Digital Arts and Humanities and Creative Industries,Corporate Travel Management (North) Ltd,98518192,36.00,T&S UK - Public Transport
BEIS,UKRI - AHRC,20/06/2019,T&S UK - Public Transport,Digital Arts and Humanities and Creative Industries,Corporate Travel Management (North) Ltd,98518192,1.00,T&S UK - Public Transport
BEIS,UKRI - AHRC,20/06/2019,T&S UK - Public Transport,Digital Arts and Humanities and Creative Industries,Corporate Travel Management (North) Ltd,98518192,71.20,T&S UK - Public Transport
BEIS,UKRI - AHRC,20/06/2019,T&S UK - Public Transport,Digital Arts and Humanities and Creative Industries,Corporate Travel Management (North) Ltd,98518192,139.50,T&S UK - Public Transport
BEIS,UKRI - AHRC,20/06/2019,T&S UK - Public Transport,Digital Arts and Humanities and Creative Industries,Corporate Travel Management (North) Ltd,98518192,165.10,T&S UK - Public Transport
BEIS,UKRI - AHRC,20/06/2019,T&S UK - Public Transport,Digital Arts and Humanities and Creative Industries,Corporate Travel Management (North) Ltd,98518192,29.35,T&S UK - Public Transport
BEIS,UKRI - AHRC,20/06/2019,T&S UK - Public Transport,Digital Arts and Humanities and Creative Industries,Corporate Travel Management (North) Ltd,98518192,22.80,T&S UK - Public Transport
BEIS,UKRI - AHRC,20/06/2019,T&S UK - Public Transport,Digital Arts and Humanities and Creative Industries,Corporate Travel Management (North) Ltd,98518192,1.00,T&S UK - Public Transport
BEIS,UKRI - AHRC,20/06/2019,T&S UK - Public Transport,Digital Arts and Humanities and Creative Industries,Corporate Travel Management (North) Ltd,98518192,23.70,T&S UK - Public Transport
BEIS,UKRI - AHRC,20/06/2019,T&S UK - Public Transport,Digital Arts and Humanities and Creative Industries,Corporate Travel Management (North) Ltd,98518192,1.00,T&S UK - Public Transport
BEIS,UKRI - AHRC,20/06/2019,T&S UK - Public Transport,Digital Arts and Humanities and Creative Industries,Corporate Travel Management (North) Ltd,98518192,12.90,T&S UK - Public Transport
BEIS,UKRI - AHRC,20/06/2019,T&S UK - Public Transport,Digital Arts and Humanities and Creative Industries,Corporate Travel Management (North) Ltd,98518192,46.60,T&S UK - Public Transport
BEIS,UKRI - AHRC,20/06/2019,T&S UK - Public Transport,Digital Arts and Humanities and Creative Industries,Corporate Travel Management (North) Ltd,98518192,89.70,T&S UK - Public Transport
BEIS,UKRI - AHRC,20/06/2019,T&S UK - Public Transport,Digital Arts and Humanities and Creative Industries,Corporate Travel Management (North) Ltd,98518192,83.90,T&S UK - Public Transport
BEIS,UKRI - AHRC,20/06/2019,T&S UK - Public Transport,Digital Arts and Humanities and Creative Industries,Corporate Travel Management (North) Ltd,98518192,265.00,T&S UK - Public Transport
BEIS,UKRI - AHRC,20/06/2019,T&S UK - Public Transport,Digital Arts and Humanities and Creative Industries,Corporate Travel Management (North) Ltd,98518192,1.00,T&S UK - Public Transport
BEIS,UKRI - AHRC,20/06/2019,T&S UK - Public Transport,Digital Arts and Humanities and Creative Industries,Corporate Travel Management (North) Ltd,98518192,144.00,T&S UK - Public Transport
BEIS,UKRI - AHRC,20/06/2019,T&S UK - Public Transport,Digital Arts and Humanities and Creative Industries,Corporate Travel Management (North) Ltd,98518192,221.00,T&S UK - Public Transport
BEIS,UKRI - AHRC,20/06/2019,T&S UK - Public Transport,Digital Arts and Humanities and Creative Industries,Corporate Travel Management (North) Ltd,98518192,1.00,T&S UK - Public Transport
BEIS,UKRI - AHRC,20/06/2019,T&S UK - Public Transport,Digital Arts and Humanities and Creative Industries,Corporate Travel Management (North) Ltd,98518192,71.80,T&S UK - Public Transport
BEIS,UKRI - AHRC,20/06/2019,T&S UK - Public Transport,Digital Arts and Humanities and Creative Industries,Corporate Travel Management (North) Ltd,98518192,126.00,T&S UK - Public Transport
BEIS,UKRI - AHRC,20/06/2019,T&S UK - Public Transport,Digital Arts and Humanities and Creative Industries,Corporate Travel Management (North) Ltd,98518192,94.50,T&S UK - Public Transport
BEIS,UKRI - AHRC,20/06/2019,T&S UK - Public Transport,Digital Arts and Humanities and Creative Industries,Corporate Travel Management (North) Ltd,98518192,69.80,T&S UK - Public Transport
BEIS,UKRI - AHRC,20/06/2019,T&S UK - Public Transport,Digital Arts and Humanities and Creative Industries,Corporate Travel Management (North) Ltd,98518192,1.00,T&S UK - Public Transport
BEIS,UKRI - AHRC,20/06/2019,T&S UK - Public Transport,Digital Arts and Humanities and Creative Industries,Corporate Travel Management (North) Ltd,98518192,114.40,T&S UK - Public Transport
BEIS,UKRI - AHRC,20/06/2019,T&S UK - Public Transport,Digital Arts and Humanities and Creative Industries,Corporate Travel Management (North) Ltd,98518192,1.00,T&S UK - Public Transport
BEIS,UKRI - AHRC,20/06/2019,T&S UK - Public Transport,Digital Arts and Humanities and Creative Industries,Corporate Travel Management (North) Ltd,98518192,59.10,T&S UK - Public Transport
BEIS,UKRI - AHRC,20/06/2019,T&S UK - Public Transport,Digital Arts and Humanities and Creative Industries,Corporate Travel Management (North) Ltd,98518192,51.00,T&S UK - Public Transport
BEIS,UKRI - AHRC,20/06/2019,T&S UK - Public Transport,Executive Office,Corporate Travel Management (North) Ltd,98518192,41.60,T&S UK - Public Transport
BEIS,UKRI - AHRC,20/06/2019,T&S UK - Public Transport,Executive Office,Corporate Travel Management (North) Ltd,98518192,89.85,T&S UK - Public Transport
BEIS,UKRI - AHRC,20/06/2019,T&S UK - Public Transport,Executive Office,Corporate Travel Management (North) Ltd,98518192,1.00,T&S UK - Public Transport
BEIS,UKRI - AHRC,20/06/2019,T&S UK - Public Transport,Executive Office,Corporate Travel Management (North) Ltd,98518192,107.00,T&S UK - Public Transport
BEIS,UKRI - AHRC,20/06/2019,T&S UK - Public Transport,Finance,Corporate Travel Management (North) Ltd,98518192,23.70,T&S UK - Public Transport
BEIS,UKRI - AHRC,20/06/2019,T&S UK - Public Transport,Finance,Corporate Travel Management (North) Ltd,98518192,23.70,T&S UK - Public Transport
BEIS,UKRI - AHRC,20/06/2019,T&S UK - Public Transport,Finance,Corporate Travel Management (North) Ltd,98518192,23.70,T&S UK - Public Transport
BEIS,UKRI - AHRC,20/06/2019,T&S UK - Public Transport,Finance,Corporate Travel Management (North) Ltd,98518192,23.70,T&S UK - Public Transport
BEIS,UKRI - AHRC,20/06/2019,T&S UK - Public Transport,GCRF - Programme Delivery,Corporate Travel Management (North) Ltd,98518192,62.65,T&S UK - Public Transport
BEIS,UKRI - AHRC,20/06/2019,T&S UK - Public Transport,GCRF - Programme Delivery,Corporate Travel Management (North) Ltd,98518192,128.80,T&S UK - Public Transport
BEIS,UKRI - AHRC,20/06/2019,T&S UK - Public Transport,GCRF - Programme Delivery,Corporate Travel Management (North) Ltd,98518192,24.50,T&S UK - Public Transport
BEIS,UKRI - AHRC,20/06/2019,T&S UK - Public Transport,GCRF - Programme Delivery,Corporate Travel Management (North) Ltd,98518192,50.00,T&S UK - Public Transport
BEIS,UKRI - AHRC,20/06/2019,T&S UK - Public Transport,GCRF - Programme Delivery,Corporate Travel Management (North) Ltd,98518192,-26.80,T&S UK - Public Transport
BEIS,UKRI - AHRC,20/06/2019,T&S UK - Public Transport,GCRF - Programme Delivery,Corporate Travel Management (North) Ltd,98518192,-33.40,T&S UK - Public Transport
BEIS,UKRI - AHRC,20/06/2019,T&S UK - Public Transport,GCRF - Programme Delivery,Corporate Travel Management (North) Ltd,98518192,81.30,T&S UK - Public Transport
BEIS,UKRI - AHRC,20/06/2019,T&S UK - Public Transport,GCRF - Programme Delivery,Corporate Travel Management (North) Ltd,98518192,100.35,T&S UK - Public Transport
BEIS,UKRI - AHRC,20/06/2019,T&S UK - Public Transport,GCRF - Programme Delivery,Corporate Travel Management (North) Ltd,98518192,54.00,T&S UK - Public Transport
BEIS,UKRI - AHRC,20/06/2019,T&S UK - Public Transport,GCRF - Programme Delivery,Corporate Travel Management (North) Ltd,98518192,46.15,T&S UK - Public Transport
BEIS,UKRI - AHRC,20/06/2019,T&S UK - Public Transport,GCRF - Programme Delivery,Corporate Travel Management (North) Ltd,98518192,25.00,T&S UK - Public Transport
BEIS,UKRI - AHRC,20/06/2019,T&S UK - Public Transport,GCRF - Programme Delivery,Corporate Travel Management (North) Ltd,98518192,10.00,T&S UK - Public Transport
BEIS,UKRI - AHRC,20/06/2019,T&S UK - Public Transport,GCRF - Programme Delivery,Corporate Travel Management (North) Ltd,98518192,-155.10,T&S UK - Public Transport
BEIS,UKRI - AHRC,20/06/2019,T&S UK - Public Transport,GCRF - Programme Delivery,Corporate Travel Management (North) Ltd,98518192,-67.60,T&S UK - Public Transport
BEIS,UKRI - AHRC,20/06/2019,T&S UK - Public Transport,GCRF - Programme Delivery,Corporate Travel Management (North) Ltd,98518192,-43.40,T&S UK - Public Transport
BEIS,UKRI - AHRC,20/06/2019,T&S UK - Public Transport,HERA JRP Project,Corporate Travel Management (North) Ltd,98518192,66.40,T&S UK - Public Transport
BEIS,UKRI - AHRC,20/06/2019,T&S UK - Public Transport,HR,Corporate Travel Management (North) Ltd,98518192,114.40,T&S UK - Public Transport
BEIS,UKRI - AHRC,20/06/2019,T&S UK - Public Transport,HR,Corporate Travel Management (North) Ltd,98518192,10.00,T&S UK - Public Transport
BEIS,UKRI - AHRC,20/06/2019,T&S UK - Public Transport,HR,Corporate Travel Management (North) Ltd,98518192,-208.80,T&S UK - Public Transport
BEIS,UKRI - AHRC,20/06/2019,T&S UK - Public Transport,HR,Corporate Travel Management (North) Ltd,98518192,10.90,T&S UK - Public Transport
BEIS,UKRI - AHRC,20/06/2019,T&S UK - Public Transport,HR,Corporate Travel Management (North) Ltd,98518192,10.90,T&S UK - Public Transport
BEIS,UKRI - AHRC,20/06/2019,T&S UK - Public Transport,HR,Corporate Travel Management (North) Ltd,98518192,10.90,T&S UK - Public Transport
BEIS,UKRI - AHRC,20/06/2019,T&S UK - Public Transport,HR,Corporate Travel Management (North) Ltd,98518192,177.00,T&S UK - Public Transport
BEIS,UKRI - AHRC,20/06/2019,T&S UK - Public Transport,HR,Corporate Travel Management (North) Ltd,98518192,103.80,T&S UK - Public Transport
BEIS,UKRI - AHRC,20/06/2019,T&S UK - Public Transport,HR,Corporate Travel Management (North) Ltd,98518192,121.50,T&S UK - Public Transport
BEIS,UKRI - AHRC,20/06/2019,T&S UK - Public Transport,HR,Corporate Travel Management (North) Ltd,98518192,1.00,T&S UK - Public Transport
BEIS,UKRI - AHRC,20/06/2019,T&S UK - Public Transport,HR,Corporate Travel Management (North) Ltd,98518192,177.00,T&S UK - Public Transport
BEIS,UKRI - AHRC,20/06/2019,T&S UK - Public Transport,HR,Corporate Travel Management (North) Ltd,98518192,16.50,T&S UK - Public Transport
BEIS,UKRI - AHRC,20/06/2019,T&S UK - Public Transport,HR,Corporate Travel Management (North) Ltd,98518192,32.10,T&S UK - Public Transport
BEIS,UKRI - AHRC,20/06/2019,T&S UK - Public Transport,HR,Corporate Travel Management (North) Ltd,98518192,23.70,T&S UK - Public Transport
BEIS,UKRI - AHRC,20/06/2019,T&S UK - Public Transport,HR,Corporate Travel Management (North) Ltd,98518192,23.70,T&S UK - Public Transport
BEIS,UKRI - AHRC,20/06/2019,T&S UK - Public Transport,HR,Corporate Travel Management (North) Ltd,98518192,1.00,T&S UK - Public Transport
BEIS,UKRI - AHRC,20/06/2019,T&S UK - Public Transport,HR,Corporate Travel Management (North) Ltd,98518192,45.20,T&S UK - Public Transport
BEIS,UKRI - AHRC,20/06/2019,T&S UK - Public Transport,HR,Corporate Travel Management (North) Ltd,98518192,72.60,T&S UK - Public Transport
BEIS,UKRI - AHRC,20/06/2019,T&S UK - Public Transport,HR,Corporate Travel Management (North) Ltd,98518192,51.00,T&S UK - Public Transport
BEIS,UKRI - AHRC,20/06/2019,T&S UK - Public Transport,HR,Corporate Travel Management (North) Ltd,98518192,72.60,T&S UK - Public Transport
BEIS,UKRI - AHRC,20/06/2019,T&S UK - Public Transport,HR,Corporate Travel Management (North) Ltd,98518192,51.00,T&S UK - Public Transport
BEIS,UKRI - AHRC,20/06/2019,T&S UK - Public Transport,HR,Corporate Travel Management (North) Ltd,98518192,23.70,T&S UK - Public Transport
BEIS,UKRI - AHRC,20/06/2019,T&S UK - Public Transport,HR,Corporate Travel Management (North) Ltd,98518192,1.00,T&S UK - Public Transport
BEIS,UKRI - AHRC,20/06/2019,T&S UK - Public Transport,HR,Corporate Travel Management (North) Ltd,98518192,96.10,T&S UK - Public Transport
BEIS,UKRI - AHRC,20/06/2019,T&S UK - Public Transport,HR,Corporate Travel Management (North) Ltd,98518192,23.70,T&S UK - Public Transport
BEIS,UKRI - AHRC,20/06/2019,T&S UK - Public Transport,"History, Heritage, Languages and Literature",Corporate Travel Management (North) Ltd,98518192,86.40,T&S UK - Public Transport
BEIS,UKRI - AHRC,20/06/2019,T&S UK - Public Transport,"History, Heritage, Languages and Literature",Corporate Travel Management (North) Ltd,98518192,1.00,T&S UK - Public Transport
BEIS,UKRI - AHRC,20/06/2019,T&S UK - Public Transport,"History, Heritage, Languages and Literature",Corporate Travel Management (North) Ltd,98518192,159.00,T&S UK - Public Transport
BEIS,UKRI - AHRC,20/06/2019,T&S UK - Public Transport,"History, Heritage, Languages and Literature",Corporate Travel Management (North) Ltd,98518192,28.80,T&S UK - Public Transport
BEIS,UKRI - AHRC,20/06/2019,T&S UK - Public Transport,"History, Heritage, Languages and Literature",Corporate Travel Management (North) Ltd,98518192,89.95,T&S UK - Public Transport
BEIS,UKRI - AHRC,20/06/2019,T&S UK - Public Transport,"History, Heritage, Languages and Literature",Corporate Travel Management (North) Ltd,98518192,98.15,T&S UK - Public Transport
BEIS,UKRI - AHRC,20/06/2019,T&S UK - Public Transport,"History, Heritage, Languages and Literature",Corporate Travel Management (North) Ltd,98518192,1.00,T&S UK - Public Transport
BEIS,UKRI - AHRC,20/06/2019,T&S UK - Public Transport,"History, Heritage, Languages and Literature",Corporate Travel Management (North) Ltd,98518192,159.00,T&S UK - Public Transport
BEIS,UKRI - AHRC,20/06/2019,T&S UK - Public Transport,"History, Heritage, Languages and Literature",Corporate Travel Management (North) Ltd,98518192,1.00,T&S UK - Public Transport
BEIS,UKRI - AHRC,20/06/2019,T&S UK - Public Transport,"History, Heritage, Languages and Literature",Corporate Travel Management (North) Ltd,98518192,144.00,T&S UK - Public Transport
BEIS,UKRI - AHRC,20/06/2019,T&S UK - Public Transport,"History, Heritage, Languages and Literature",Corporate Travel Management (North) Ltd,98518192,162.95,T&S UK - Public Transport
BEIS,UKRI - AHRC,20/06/2019,T&S UK - Public Transport,"History, Heritage, Languages and Literature",Corporate Travel Management (North) Ltd,98518192,155.00,T&S UK - Public Transport
BEIS,UKRI - AHRC,20/06/2019,T&S UK - Public Transport,"History, Heritage, Languages and Literature",Corporate Travel Management (North) Ltd,98518192,-37.70,T&S UK - Public Transport
BEIS,UKRI - AHRC,20/06/2019,T&S UK - Public Transport,"History, Heritage, Languages and Literature",Corporate Travel Management (North) Ltd,98518192,113.00,T&S UK - Public Transport
BEIS,UKRI - AHRC,20/06/2019,T&S UK - Public Transport,"History, Heritage, Languages and Literature",Corporate Travel Management (North) Ltd,98518192,50.50,T&S UK - Public Transport
BEIS,UKRI - AHRC,20/06/2019,T&S UK - Public Transport,"History, Heritage, Languages and Literature",Corporate Travel Management (North) Ltd,98518192,123.70,T&S UK - Public Transport
BEIS,UKRI - AHRC,20/06/2019,T&S UK - Public Transport,"History, Heritage, Languages and Literature",Corporate Travel Management (North) Ltd,98518192,5.00,T&S UK - Public Transport
BEIS,UKRI - AHRC,20/06/2019,T&S UK - Public Transport,"History, Heritage, Languages and Literature",Corporate Travel Management (North) Ltd,98518192,-156.10,T&S UK - Public Transport
BEIS,UKRI - AHRC,20/06/2019,T&S UK - Public Transport,"History, Heritage, Languages and Literature",Corporate Travel Management (North) Ltd,98518192,-139.00,T&S UK - Public Transport
BEIS,UKRI - AHRC,20/06/2019,T&S UK - Public Transport,"History, Heritage, Languages and Literature",Corporate Travel Management (North) Ltd,98518192,5.00,T&S UK - Public Transport
BEIS,UKRI - AHRC,20/06/2019,T&S UK - Public Transport,"History, Heritage, Languages and Literature",Corporate Travel Management (North) Ltd,98518192,-74.65,T&S UK - Public Transport
BEIS,UKRI - AHRC,20/06/2019,T&S UK - Public Transport,"History, Heritage, Languages and Literature",Corporate Travel Management (North) Ltd,98518192,63.70,T&S UK - Public Transport
BEIS,UKRI - AHRC,20/06/2019,T&S UK - Public Transport,"History, Heritage, Languages and Literature",Corporate Travel Management (North) Ltd,98518192,81.10,T&S UK - Public Transport
BEIS,UKRI - AHRC,20/06/2019,T&S UK - Public Transport,"History, Heritage, Languages and Literature",Corporate Travel Management (North) Ltd,98518192,187.10,T&S UK - Public Transport
BEIS,UKRI - AHRC,20/06/2019,T&S UK - Public Transport,"History, Heritage, Languages and Literature",Corporate Travel Management (North) Ltd,98518192,148.00,T&S UK - Public Transport
BEIS,UKRI - AHRC,20/06/2019,T&S UK - Public Transport,"History, Heritage, Languages and Literature",Corporate Travel Management (North) Ltd,98518192,60.40,T&S UK - Public Transport
BEIS,UKRI - AHRC,20/06/2019,T&S UK - Public Transport,"History, Heritage, Languages and Literature",Corporate Travel Management (North) Ltd,98518192,69.90,T&S UK - Public Transport
BEIS,UKRI - AHRC,20/06/2019,T&S UK - Public Transport,IS,Corporate Travel Management (North) Ltd,98518192,16.50,T&S UK - Public Transport
BEIS,UKRI - AHRC,20/06/2019,T&S UK - Public Transport,Industrial Strategy Challenge Fund (ISCF) - Creative Clusters,Corporate Travel Management (North) Ltd,98518192,1.00,T&S UK - Public Transport
BEIS,UKRI - AHRC,20/06/2019,T&S UK - Public Transport,Industrial Strategy Challenge Fund (ISCF) - Creative Clusters,Corporate Travel Management (North) Ltd,98518192,171.00,T&S UK - Public Transport
BEIS,UKRI - AHRC,20/06/2019,T&S UK - Public Transport,Industrial Strategy Challenge Fund (ISCF) - Creative Clusters,Corporate Travel Management (North) Ltd,98518192,1.00,T&S UK - Public Transport
BEIS,UKRI - AHRC,20/06/2019,T&S UK - Public Transport,Industrial Strategy Challenge Fund (ISCF) - Creative Clusters,Corporate Travel Management (North) Ltd,98518192,66.50,T&S UK - Public Transport
BEIS,UKRI - AHRC,20/06/2019,T&S UK - Public Transport,Industrial Strategy Challenge Fund (ISCF) - Creative Clusters,Corporate Travel Management (North) Ltd,98518192,1.00,T&S UK - Public Transport
BEIS,UKRI - AHRC,20/06/2019,T&S UK - Public Transport,Industrial Strategy Challenge Fund (ISCF) - Creative Clusters,Corporate Travel Management (North) Ltd,98518192,171.00,T&S UK - Public Transport
BEIS,UKRI - AHRC,20/06/2019,T&S UK - Public Transport,Industrial Strategy Challenge Fund (ISCF) - Creative Clusters,Corporate Travel Management (North) Ltd,98518192,1.00,T&S UK - Public Transport
BEIS,UKRI - AHRC,20/06/2019,T&S UK - Public Transport,Industrial Strategy Challenge Fund (ISCF) - Creative Clusters,Corporate Travel Management (North) Ltd,98518192,39.40,T&S UK - Public Transport
BEIS,UKRI - AHRC,20/06/2019,T&S UK - Public Transport,International,Corporate Travel Management (North) Ltd,98518192,144.00,T&S UK - Public Transport
BEIS,UKRI - AHRC,20/06/2019,T&S UK - Public Transport,International,Corporate Travel Management (North) Ltd,98518192,73.40,T&S UK - Public Transport
BEIS,UKRI - AHRC,20/06/2019,T&S UK - Public Transport,International,Corporate Travel Management (North) Ltd,98518192,94.50,T&S UK - Public Transport
BEIS,UKRI - AHRC,20/06/2019,T&S UK - Public Transport,International Development and Area Studies,Corporate Travel Management (North) Ltd,98518192,1.00,T&S UK - Public Transport
BEIS,UKRI - AHRC,20/06/2019,T&S UK - Public Transport,International Development and Area Studies,Corporate Travel Management (North) Ltd,98518192,209.10,T&S UK - Public Transport
BEIS,UKRI - AHRC,20/06/2019,T&S UK - Public Transport,International Development and Area Studies,Corporate Travel Management (North) Ltd,98518192,1.00,T&S UK - Public Transport
BEIS,UKRI - AHRC,20/06/2019,T&S UK - Public Transport,International Development and Area Studies,Corporate Travel Management (North) Ltd,98518192,35.10,T&S UK - Public Transport
BEIS,UKRI - AHRC,20/06/2019,T&S UK - Public Transport,International Partnership and Engagement,Corporate Travel Management (North) Ltd,98518192,-20.10,T&S UK - Public Transport
BEIS,UKRI - AHRC,20/06/2019,T&S UK - Public Transport,International Partnership and Engagement,Corporate Travel Management (North) Ltd,98518192,-52.80,T&S UK - Public Transport
BEIS,UKRI - AHRC,20/06/2019,T&S UK - Public Transport,International Partnership and Engagement,Corporate Travel Management (North) Ltd,98518192,195.25,T&S UK - Public Transport
BEIS,UKRI - AHRC,20/06/2019,T&S UK - Public Transport,International Partnership and Engagement,Corporate Travel Management (North) Ltd,98518192,26.50,T&S UK - Public Transport
BEIS,UKRI - AHRC,20/06/2019,T&S UK - Public Transport,International Partnership and Engagement,Corporate Travel Management (North) Ltd,98518192,24.50,T&S UK - Public Transport
BEIS,UKRI - AHRC,20/06/2019,T&S UK - Public Transport,International Partnership and Engagement,Corporate Travel Management (North) Ltd,98518192,24.50,T&S UK - Public Transport
BEIS,UKRI - AHRC,20/06/2019,T&S UK - Public Transport,International Partnership and Engagement,Corporate Travel Management (North) Ltd,98518192,28.80,T&S UK - Public Transport
BEIS,UKRI - AHRC,20/06/2019,T&S UK - Public Transport,Operations,Corporate Travel Management (North) Ltd,98518192,77.00,T&S UK - Public Transport
BEIS,UKRI - AHRC,20/06/2019,T&S UK - Public Transport,Operations,Corporate Travel Management (North) Ltd,98518192,77.00,T&S UK - Public Transport
BEIS,UKRI - AHRC,20/06/2019,T&S UK - Public Transport,PSU JRS,Corporate Travel Management (North) Ltd,98518192,36.00,T&S UK - Public Transport
BEIS,UKRI - AHRC,20/06/2019,T&S UK - Public Transport,PSU JRS,Corporate Travel Management (North) Ltd,98518192,36.00,T&S UK - Public Transport
BEIS,UKRI - AHRC,20/06/2019,T&S UK - Public Transport,PSU JRS,Corporate Travel Management (North) Ltd,98518192,36.00,T&S UK - Public Transport
BEIS,UKRI - AHRC,20/06/2019,T&S UK - Public Transport,PSU JRS,Corporate Travel Management (North) Ltd,98518192,36.00,T&S UK - Public Transport
BEIS,UKRI - AHRC,20/06/2019,T&S UK - Public Transport,PSU JRS,Corporate Travel Management (North) Ltd,98518192,36.00,T&S UK - Public Transport
BEIS,UKRI - AHRC,20/06/2019,T&S UK - Public Transport,PSU JRS,Corporate Travel Management (North) Ltd,98518192,36.00,T&S UK - Public Transport
BEIS,UKRI - AHRC,20/06/2019,T&S UK - Public Transport,PSU JRS,Corporate Travel Management (North) Ltd,98518192,36.00,T&S UK - Public Transport
BEIS,UKRI - AHRC,20/06/2019,T&S UK - Public Transport,PSU JRS,Corporate Travel Management (North) Ltd,98518192,36.00,T&S UK - Public Transport
BEIS,UKRI - AHRC,20/06/2019,T&S UK - Public Transport,PSU JRS,Corporate Travel Management (North) Ltd,98518192,36.00,T&S UK - Public Transport
BEIS,UKRI - AHRC,20/06/2019,T&S UK - Public Transport,PSU JRS,Corporate Travel Management (North) Ltd,98518192,36.00,T&S UK - Public Transport
BEIS,UKRI - AHRC,20/06/2019,T&S UK - Public Transport,PSU JRS,Corporate Travel Management (North) Ltd,98518192,144.70,T&S UK - Public Transport
BEIS,UKRI - AHRC,20/06/2019,T&S UK - Public Transport,PSU Project Office,Corporate Travel Management (North) Ltd,98518192,144.00,T&S UK - Public Transport
BEIS,UKRI - AHRC,20/06/2019,T&S UK - Public Transport,PSU Project Office,Corporate Travel Management (North) Ltd,98518192,144.70,T&S UK - Public Transport
BEIS,UKRI - AHRC,20/06/2019,T&S UK - Public Transport,PSU Project Office,Corporate Travel Management (North) Ltd,98518192,144.00,T&S UK - Public Transport
BEIS,UKRI - AHRC,20/06/2019,T&S UK - Public Transport,PSU Project Office,Corporate Travel Management (North) Ltd,98518192,18.60,T&S UK - Public Transport
BEIS,UKRI - AHRC,20/06/2019,T&S UK - Public Transport,PSU Project Office,Corporate Travel Management (North) Ltd,98518192,48.40,T&S UK - Public Transport
BEIS,UKRI - AHRC,20/06/2019,T&S UK - Public Transport,PSU Project Office,Corporate Travel Management (North) Ltd,98518192,79.70,T&S UK - Public Transport
BEIS,UKRI - AHRC,20/06/2019,T&S UK - Public Transport,PSU Project Office,Corporate Travel Management (North) Ltd,98518192,48.40,T&S UK - Public Transport
BEIS,UKRI - AHRC,20/06/2019,T&S UK - Public Transport,PSU Project Office,Corporate Travel Management (North) Ltd,98518192,48.40,T&S UK - Public Transport
BEIS,UKRI - AHRC,20/06/2019,T&S UK - Public Transport,PSU Project Office,Corporate Travel Management (North) Ltd,98518192,13.10,T&S UK - Public Transport
BEIS,UKRI - AHRC,20/06/2019,T&S UK - Public Transport,PSU Project Office,Corporate Travel Management (North) Ltd,98518192,138.00,T&S UK - Public Transport
BEIS,UKRI - AHRC,20/06/2019,T&S UK - Public Transport,PSU Project Office,Corporate Travel Management (North) Ltd,98518192,26.20,T&S UK - Public Transport
BEIS,UKRI - AHRC,20/06/2019,T&S UK - Public Transport,PSU Project Office,Corporate Travel Management (North) Ltd,98518192,276.00,T&S UK - Public Transport
BEIS,UKRI - AHRC,20/06/2019,T&S UK - Public Transport,PSU Project Office,Corporate Travel Management (North) Ltd,98518192,264.00,T&S UK - Public Transport
BEIS,UKRI - AHRC,20/06/2019,T&S UK - Public Transport,PSU Project Office,Corporate Travel Management (North) Ltd,98518192,264.00,T&S UK - Public Transport
BEIS,UKRI - AHRC,20/06/2019,T&S UK - Public Transport,PSU Project Office,Corporate Travel Management (North) Ltd,98518192,144.70,T&S UK - Public Transport
BEIS,UKRI - AHRC,20/06/2019,T&S UK - Public Transport,PSU Project Office,Corporate Travel Management (North) Ltd,98518192,288.00,T&S UK - Public Transport
BEIS,UKRI - AHRC,20/06/2019,T&S UK - Public Transport,PSU Project Office,Corporate Travel Management (North) Ltd,98518192,144.00,T&S UK - Public Transport
BEIS,UKRI - AHRC,20/06/2019,T&S UK - Public Transport,PSU Project Office,Corporate Travel Management (North) Ltd,98518192,-43.40,T&S UK - Public Transport
BEIS,UKRI - AHRC,20/06/2019,T&S UK - Public Transport,PSU Project Office,Corporate Travel Management (North) Ltd,98518192,15.65,T&S UK - Public Transport
BEIS,UKRI - AHRC,20/06/2019,T&S UK - Public Transport,Public and Stakeholder Engagement,Corporate Travel Management (North) Ltd,98518192,87.00,T&S UK - Public Transport
BEIS,UKRI - AHRC,20/06/2019,T&S UK - Public Transport,Public and Stakeholder Engagement,Corporate Travel Management (North) Ltd,98518192,-82.00,T&S UK - Public Transport
BEIS,UKRI - AHRC,20/06/2019,T&S UK - Public Transport,Public and Stakeholder Engagement,Corporate Travel Management (North) Ltd,98518192,36.55,T&S UK - Public Transport
BEIS,UKRI - AHRC,20/06/2019,T&S UK - Public Transport,Public and Stakeholder Engagement,Corporate Travel Management (North) Ltd,98518192,122.90,T&S UK - Public Transport
BEIS,UKRI - AHRC,20/06/2019,T&S UK - Public Transport,Public and Stakeholder Engagement,Corporate Travel Management (North) Ltd,98518192,81.10,T&S UK - Public Transport
BEIS,UKRI - AHRC,20/06/2019,T&S UK - Public Transport,SMT,Corporate Travel Management (North) Ltd,98518192,1.00,T&S UK - Public Transport
BEIS,UKRI - AHRC,20/06/2019,T&S UK - Public Transport,SMT,Corporate Travel Management (North) Ltd,98518192,20.50,T&S UK - Public Transport
BEIS,UKRI - AHRC,20/06/2019,T&S UK - Public Transport,SMT,Corporate Travel Management (North) Ltd,98518192,109.00,T&S UK - Public Transport
BEIS,UKRI - AHRC,20/06/2019,T&S UK - Public Transport,SMT,Corporate Travel Management (North) Ltd,98518192,97.80,T&S UK - Public Transport
BEIS,UKRI - AHRC,20/06/2019,T&S UK - Public Transport,SMT,Corporate Travel Management (North) Ltd,98518192,1.00,T&S UK - Public Transport
BEIS,UKRI - AHRC,20/06/2019,T&S UK - Public Transport,SMT,Corporate Travel Management (North) Ltd,98518192,28.80,T&S UK - Public Transport
BEIS,UKRI - AHRC,20/06/2019,T&S UK - Public Transport,SMT,Corporate Travel Management (North) Ltd,98518192,15.50,T&S UK - Public Transport
BEIS,UKRI - AHRC,20/06/2019,T&S UK - Public Transport,SMT,Corporate Travel Management (North) Ltd,98518192,167.40,T&S UK - Public Transport
BEIS,UKRI - AHRC,20/06/2019,T&S UK - Public Transport,SMT,Corporate Travel Management (North) Ltd,98518192,144.40,T&S UK - Public Transport
BEIS,UKRI - AHRC,20/06/2019,T&S UK - Public Transport,SMT,Corporate Travel Management (North) Ltd,98518192,57.60,T&S UK - Public Transport
BEIS,UKRI - AHRC,20/06/2019,T&S UK - Public Transport,SMT,Corporate Travel Management (North) Ltd,98518192,167.40,T&S UK - Public Transport
BEIS,UKRI - AHRC,20/06/2019,T&S UK - Public Transport,SMT,Corporate Travel Management (North) Ltd,98518192,108.70,T&S UK - Public Transport
BEIS,UKRI - AHRC,20/06/2019,T&S UK - Public Transport,SMT,Corporate Travel Management (North) Ltd,98518192,50.50,T&S UK - Public Transport
BEIS,UKRI - AHRC,20/06/2019,T&S UK - Public Transport,SMT,Corporate Travel Management (North) Ltd,98518192,190.75,T&S UK - Public Transport
BEIS,UKRI - AHRC,20/06/2019,T&S UK - Public Transport,SMT,Corporate Travel Management (North) Ltd,98518192,28.80,T&S UK - Public Transport
BEIS,UKRI - AHRC,20/06/2019,T&S UK - Public Transport,SMT,Corporate Travel Management (North) Ltd,98518192,159.10,T&S UK - Public Transport
BEIS,UKRI - AHRC,20/06/2019,T&S UK - Public Transport,SMT,Corporate Travel Management (North) Ltd,98518192,178.00,T&S UK - Public Transport
BEIS,UKRI - AHRC,20/06/2019,T&S UK - Public Transport,SMT,Corporate Travel Management (North) Ltd,98518192,88.50,T&S UK - Public Transport
BEIS,UKRI - AHRC,20/06/2019,T&S UK - Public Transport,SMT,Corporate Travel Management (North) Ltd,98518192,28.80,T&S UK - Public Transport
BEIS,UKRI - AHRC,20/06/2019,T&S UK - Public Transport,SMT,Corporate Travel Management (North) Ltd,98518192,1.00,T&S UK - Public Transport
BEIS,UKRI - AHRC,20/06/2019,T&S UK - Public Transport,SMT,Corporate Travel Management (North) Ltd,98518192,143.95,T&S UK - Public Transport
BEIS,UKRI - AHRC,20/06/2019,T&S UK - Public Transport,SMT,Corporate Travel Management (North) Ltd,98518192,108.40,T&S UK - Public Transport
BEIS,UKRI - AHRC,20/06/2019,T&S UK - Public Transport,SMT,Corporate Travel Management (North) Ltd,98518192,1.00,T&S UK - Public Transport
BEIS,UKRI - AHRC,20/06/2019,T&S UK - Public Transport,SMT,Corporate Travel Management (North) Ltd,98518192,15.45,T&S UK - Public Transport
BEIS,UKRI - AHRC,20/06/2019,T&S UK - Public Transport,SMT,Corporate Travel Management (North) Ltd,98518192,97.80,T&S UK - Public Transport
BEIS,UKRI - AHRC,20/06/2019,T&S UK - Public Transport,SMT,Corporate Travel Management (North) Ltd,98518192,1.00,T&S UK - Public Transport
BEIS,UKRI - AHRC,20/06/2019,T&S UK - Public Transport,SMT,Corporate Travel Management (North) Ltd,98518192,69.00,T&S UK - Public Transport
BEIS,UKRI - AHRC,20/06/2019,T&S UK - Public Transport,SMT,Corporate Travel Management (North) Ltd,98518192,28.80,T&S UK - Public Transport
BEIS,UKRI - AHRC,20/06/2019,T&S UK - Public Transport,SMT,Corporate Travel Management (North) Ltd,98518192,76.70,T&S UK - Public Transport
BEIS,UKRI - AHRC,20/06/2019,T&S UK - Public Transport,SMT,Corporate Travel Management (North) Ltd,98518192,218.00,T&S UK - Public Transport
BEIS,UKRI - AHRC,20/06/2019,T&S UK - Public Transport,SMT,Corporate Travel Management (North) Ltd,98518192,23.40,T&S UK - Public Transport
BEIS,UKRI - AHRC,20/06/2019,T&S UK - Public Transport,SMT,Corporate Travel Management (North) Ltd,98518192,44.10,T&S UK - Public Transport
BEIS,UKRI - AHRC,20/06/2019,T&S UK - Public Transport,SMT,Corporate Travel Management (North) Ltd,98518192,159.90,T&S UK - Public Transport
BEIS,UKRI - AHRC,20/06/2019,T&S UK - Public Transport,SMT,Corporate Travel Management (North) Ltd,98518192,69.00,T&S UK - Public Transport
BEIS,UKRI - AHRC,20/06/2019,T&S UK - Public Transport,SMT,Corporate Travel Management (North) Ltd,98518192,1.00,T&S UK - Public Transport
BEIS,UKRI - AHRC,20/06/2019,T&S UK - Public Transport,SMT,Corporate Travel Management (North) Ltd,98518192,97.80,T&S UK - Public Transport
BEIS,UKRI - AHRC,20/06/2019,T&S UK - Public Transport,SMT,Corporate Travel Management (North) Ltd,98518192,22.00,T&S UK - Public Transport
BEIS,UKRI - AHRC,20/06/2019,T&S UK - Public Transport,SMT,Corporate Travel Management (North) Ltd,98518192,53.80,T&S UK - Public Transport
BEIS,UKRI - AHRC,20/06/2019,T&S UK - Public Transport,SMT,Corporate Travel Management (North) Ltd,98518192,97.80,T&S UK - Public Transport
BEIS,UKRI - AHRC,20/06/2019,T&S UK - Public Transport,SMT,Corporate Travel Management (North) Ltd,98518192,27.30,T&S UK - Public Transport
BEIS,UKRI - AHRC,20/06/2019,T&S UK - Public Transport,SMT,Corporate Travel Management (North) Ltd,98518192,15.00,T&S UK - Public Transport
BEIS,UKRI - AHRC,20/06/2019,T&S UK - Public Transport,SMT,Corporate Travel Management (North) Ltd,98518192,97.80,T&S UK - Public Transport
BEIS,UKRI - AHRC,20/06/2019,T&S UK - Public Transport,SMT,Corporate Travel Management (North) Ltd,98518192,1.00,T&S UK - Public Transport
BEIS,UKRI - AHRC,20/06/2019,T&S UK - Public Transport,SMT,Corporate Travel Management (North) Ltd,98518192,33.70,T&S UK - Public Transport
BEIS,UKRI - AHRC,20/06/2019,T&S UK - Public Transport,SMT,Corporate Travel Management (North) Ltd,98518192,1.00,T&S UK - Public Transport
BEIS,UKRI - AHRC,20/06/2019,T&S UK - Public Transport,SMT,Corporate Travel Management (North) Ltd,98518192,94.10,T&S UK - Public Transport
BEIS,UKRI - AHRC,20/06/2019,T&S UK - Public Transport,SMT,Corporate Travel Management (North) Ltd,98518192,1.00,T&S UK - Public Transport
BEIS,UKRI - AHRC,20/06/2019,T&S UK - Public Transport,SMT,Corporate Travel Management (North) Ltd,98518192,158.30,T&S UK - Public Transport
BEIS,UKRI - AHRC,20/06/2019,T&S UK - Public Transport,Skills Strategy,Corporate Travel Management (North) Ltd,98518192,178.75,T&S UK - Public Transport
BEIS,UKRI - AHRC,20/06/2019,T&S UK - Public Transport,Skills Strategy,Corporate Travel Management (North) Ltd,98518192,220.45,T&S UK - Public Transport
BEIS,UKRI - AHRC,20/06/2019,T&S UK - Public Transport,Skills Strategy,Corporate Travel Management (North) Ltd,98518192,30.60,T&S UK - Public Transport
BEIS,UKRI - AHRC,20/06/2019,Meetings & Catering,Digital Arts and Humanities and Creative Industries,Baxter Storey Ltd,98518341,183.75,Meetings & Catering
BEIS,UKRI - AHRC,20/06/2019,Meetings & Catering,Digital Arts and Humanities and Creative Industries,Baxter Storey Ltd,98518341,36.75,Meetings & Catering
BEIS,UKRI - AHRC,20/06/2019,Meetings & Catering,GCRF - Programme Delivery,Baxter Storey Ltd,98518341,386.40,Meetings & Catering
BEIS,UKRI - AHRC,20/06/2019,Meetings & Catering,GCRF - Programme Delivery,Baxter Storey Ltd,98518341,77.28,Meetings & Catering
BEIS,UKRI - AHRC,20/06/2019,Meetings & Catering,HR,Baxter Storey Ltd,98518341,12.50,Meetings & Catering
BEIS,UKRI - AHRC,20/06/2019,Meetings & Catering,HR,Baxter Storey Ltd,98518341,2.50,Meetings & Catering
BEIS,UKRI - AHRC,20/06/2019,Meetings & Catering,SMT,Baxter Storey Ltd,98518341,178.65,Meetings & Catering
BEIS,UKRI - AHRC,20/06/2019,Meetings & Catering,SMT,Baxter Storey Ltd,98518341,35.73,Meetings & Catering
BEIS,UKRI - AHRC,20/06/2019,Meetings & Catering,Skills Strategy,Baxter Storey Ltd,98518341,188.40,Meetings & Catering
BEIS,UKRI - AHRC,20/06/2019,Meetings & Catering,Skills Strategy,Baxter Storey Ltd,98518341,37.68,Meetings & Catering
BEIS,UKRI - AHRC,20/06/2019,Recruitment Costs,Operations,Onefix Recruitment Ltd,98518497,150.00,Recruitment Costs
BEIS,UKRI - AHRC,21/06/2019,T&S UK - Mileage,PSU Project Office,Unspecified,98483405,68.00,T&S UK - Mileage
BEIS,UKRI - AHRC,21/06/2019,Research Grant Expenditure,Care for the Future,University of Nottingham,98505435,4376.05,Research Grant Expenditure
BEIS,UKRI - AHRC,21/06/2019,Research Grant Expenditure,Connected Communities Programme,University of Nottingham,98505435,4376.03,Research Grant Expenditure
BEIS,UKRI - AHRC,21/06/2019,Research Grant Expenditure,Research Grants,The Open University,98505436,54044.39,Research Grant Expenditure
BEIS,UKRI - AHRC,21/06/2019,Research Grant Expenditure,Research Grants,University of Glasgow,98505437,44777.34,Research Grant Expenditure
BEIS,UKRI - AHRC,21/06/2019,Research Grant Expenditure,Research Grants,The University of Manchester,98505438,45521.16,Research Grant Expenditure
BEIS,UKRI - AHRC,21/06/2019,Research Grant Expenditure,Research Grants,University of Newcastle Upon Tyne,98505439,36655.04,Research Grant Expenditure
BEIS,UKRI - AHRC,21/06/2019,Research Grant Expenditure,Research Grants,University of Leeds,98505440,36068.56,Research Grant Expenditure
BEIS,UKRI - AHRC,21/06/2019,Research Grant Expenditure,Research Grants,University of Stirling,98505441,7018.80,Research Grant Expenditure
BEIS,UKRI - AHRC,21/06/2019,Research Grant Expenditure,Research Grants,University College London,98505442,30559.11,Research Grant Expenditure
BEIS,UKRI - AHRC,21/06/2019,Research Grant Expenditure,Research Grants,University of Oxford,98505443,40176.96,Research Grant Expenditure
BEIS,UKRI - AHRC,21/06/2019,Research Grant Expenditure,Research Grants,The University of Manchester,98505444,48755.22,Research Grant Expenditure
BEIS,UKRI - AHRC,21/06/2019,Research Grant Expenditure,Research Grants,University of Durham,98505445,49611.02,Research Grant Expenditure
BEIS,UKRI - AHRC,21/06/2019,Research Grant Expenditure,Research Grants,University of Oxford,98505446,41538.95,Research Grant Expenditure
BEIS,UKRI - AHRC,21/06/2019,Research Grant Expenditure,Translating Cultures,University of Liverpool,98505447,35091.34,Research Grant Expenditure
BEIS,UKRI - AHRC,21/06/2019,Research Grant Expenditure,Connected Communities Programme,Brunel University London,98505448,101993.61,Research Grant Expenditure
BEIS,UKRI - AHRC,21/06/2019,Research Grant Expenditure,Research Grants,University of Cambridge,98505449,56013.69,Research Grant Expenditure
BEIS,UKRI - AHRC,21/06/2019,Research Grant Expenditure,Research Grants,University of Reading,98505450,50274.25,Research Grant Expenditure
BEIS,UKRI - AHRC,21/06/2019,Research Grant Expenditure,Research Grants,University of Exeter,98505451,42002.93,Research Grant Expenditure
BEIS,UKRI - AHRC,21/06/2019,Research Grant Expenditure,Research Grants,The University of Manchester,98505452,67207.81,Research Grant Expenditure
BEIS,UKRI - AHRC,21/06/2019,Research Grant Expenditure,Research Grants,University of Oxford,98505453,45655.42,Research Grant Expenditure
BEIS,UKRI - AHRC,21/06/2019,Research Grant Expenditure,Research Grants,University of Durham,98505454,16350.33,Research Grant Expenditure
BEIS,UKRI - AHRC,21/06/2019,Research Grant Expenditure,Open World Research Initiative (OWRI).,King's College London,98505455,194277.13,Research Grant Expenditure
BEIS,UKRI - AHRC,21/06/2019,Research Grant Expenditure,Open World Research Initiative (OWRI).,The University of Manchester,98505456,195501.31,Research Grant Expenditure
BEIS,UKRI - AHRC,21/06/2019,Research Grant Expenditure,Open World Research Initiative (OWRI).,University of Oxford,98505457,190520.71,Research Grant Expenditure
BEIS,UKRI - AHRC,21/06/2019,Research Grant Expenditure,Open World Research Initiative (OWRI).,University of Cambridge,98505458,180043.43,Research Grant Expenditure
BEIS,UKRI - AHRC,21/06/2019,Research Grant Expenditure,Research Grants,University of Newcastle Upon Tyne,98505459,52925.20,Research Grant Expenditure
BEIS,UKRI - AHRC,21/06/2019,Research Grant Expenditure,Research Grants,Queen's University Belfast GRANT,98505460,50922.62,Research Grant Expenditure
BEIS,UKRI - AHRC,21/06/2019,Research Grant Expenditure,Research Grants,University of Birmingham GRANT,98505461,52210.90,Research Grant Expenditure
BEIS,UKRI - AHRC,21/06/2019,Research Grant Expenditure,Research Grants,Loughborough University,98505462,47203.53,Research Grant Expenditure
BEIS,UKRI - AHRC,21/06/2019,Research Grant Expenditure,Research Grants,Birkbeck College,98505463,71641.57,Research Grant Expenditure
BEIS,UKRI - AHRC,21/06/2019,Research Grant Expenditure,Research Grants,Historic Environment Scotland (GRANT),98505464,35822.16,Research Grant Expenditure
BEIS,UKRI - AHRC,21/06/2019,Research Grant Expenditure,Research Grants,"Royal Holloway, University of London",98505465,73999.54,Research Grant Expenditure
BEIS,UKRI - AHRC,21/06/2019,Research Grant Expenditure,Research Grants,"SOAS, University of London",98505466,29970.10,Research Grant Expenditure
BEIS,UKRI - AHRC,21/06/2019,Research Grant Expenditure,Research Grants,University of Bristol GRANT,98505467,64426.18,Research Grant Expenditure
BEIS,UKRI - AHRC,21/06/2019,Research Grant Expenditure,Research Grants,University of Southampton GRANT,98505468,44127.03,Research Grant Expenditure
BEIS,UKRI - AHRC,21/06/2019,Research Grant Expenditure,Research Grants,University of Warwick,98505469,22923.84,Research Grant Expenditure
BEIS,UKRI - AHRC,21/06/2019,Research Grant Expenditure,Research Grants,University of Surrey,98505470,37470.25,Research Grant Expenditure
BEIS,UKRI - AHRC,21/06/2019,Research Grant Expenditure,Research Grants,Birkbeck College,98505471,15343.11,Research Grant Expenditure
BEIS,UKRI - AHRC,21/06/2019,Research Grant Expenditure,Research Grants,University of Warwick,98505472,37954.73,Research Grant Expenditure
BEIS,UKRI - AHRC,21/06/2019,Research Grant Expenditure,Global Challenges Research Fund (GCRF),Institute of Development Studies,98505473,53613.52,Research Grant Expenditure
BEIS,UKRI - AHRC,21/06/2019,Research Grant Expenditure,Global Uncertainties Programme,University of Oxford,98505474,43064.09,Research Grant Expenditure
BEIS,UKRI - AHRC,21/06/2019,Research Grant Expenditure,Global Challenges Research Fund (GCRF),London School of Economics and Political Science,98505475,58713.89,Research Grant Expenditure
BEIS,UKRI - AHRC,21/06/2019,Research Grant Expenditure,Global Uncertainties Programme,Queen's University Belfast GRANT,98505476,40947.60,Research Grant Expenditure
BEIS,UKRI - AHRC,21/06/2019,Research Grant Expenditure,Global Challenges Research Fund (GCRF),University College London,98505477,40977.88,Research Grant Expenditure
BEIS,UKRI - AHRC,21/06/2019,Research Grant Expenditure,Research Grants,University of Cambridge,98505478,29180.34,Research Grant Expenditure
BEIS,UKRI - AHRC,21/06/2019,Research Grant Expenditure,Research Grants,University of Surrey,98505479,31954.94,Research Grant Expenditure
BEIS,UKRI - AHRC,21/06/2019,Research Grant Expenditure,Research Grants,University of East Anglia,98505480,46785.49,Research Grant Expenditure
BEIS,UKRI - AHRC,21/06/2019,Research Grant Expenditure,Research Grants,University College London,98505481,42016.24,Research Grant Expenditure
BEIS,UKRI - AHRC,21/06/2019,Research Grant Expenditure,Care for the Future,University of Kent,98505482,21074.26,Research Grant Expenditure
BEIS,UKRI - AHRC,21/06/2019,Research Grant Expenditure,Connected Communities Programme,University of Kent,98505482,21074.21,Research Grant Expenditure
BEIS,UKRI - AHRC,21/06/2019,Research Grant Expenditure,Care for the Future,Queen's University Belfast GRANT,98505483,17389.03,Research Grant Expenditure
BEIS,UKRI - AHRC,21/06/2019,Research Grant Expenditure,Connected Communities Programme,Queen's University Belfast GRANT,98505483,17389.00,Research Grant Expenditure
BEIS,UKRI - AHRC,21/06/2019,Research Grant Expenditure,Care for the Future,University of Hertfordshire,98505484,25877.96,Research Grant Expenditure
BEIS,UKRI - AHRC,21/06/2019,Research Grant Expenditure,Connected Communities Programme,University of Hertfordshire,98505484,25877.90,Research Grant Expenditure
BEIS,UKRI - AHRC,21/06/2019,Research Grant Expenditure,Care for the Future,University of Birmingham GRANT,98505485,25733.42,Research Grant Expenditure
BEIS,UKRI - AHRC,21/06/2019,Research Grant Expenditure,Connected Communities Programme,University of Birmingham GRANT,98505485,25733.36,Research Grant Expenditure
BEIS,UKRI - AHRC,21/06/2019,Research Grant Expenditure,Research Grants,University of Liverpool,98505486,49512.01,Research Grant Expenditure
BEIS,UKRI - AHRC,21/06/2019,Research Grant Expenditure,Research Grants,Queen's University Belfast GRANT,98505487,51018.15,Research Grant Expenditure
BEIS,UKRI - AHRC,21/06/2019,Research Grant Expenditure,Global Challenges Research Fund (GCRF),"Royal Holloway, University of London",98505488,43496.00,Research Grant Expenditure
BEIS,UKRI - AHRC,21/06/2019,Research Grant Expenditure,Research Grants,University of Birmingham GRANT,98505489,31143.65,Research Grant Expenditure
BEIS,UKRI - AHRC,21/06/2019,Research Grant Expenditure,Research Grants,"SOAS, University of London",98505490,48422.95,Research Grant Expenditure
BEIS,UKRI - AHRC,21/06/2019,Research Grant Expenditure,Research Grants,University of Leeds,98505491,72983.20,Research Grant Expenditure
BEIS,UKRI - AHRC,21/06/2019,Research Grant Expenditure,Research Grants,University of Glasgow,98505492,40744.13,Research Grant Expenditure
BEIS,UKRI - AHRC,21/06/2019,Research Grant Expenditure,Research Grants,University of Surrey,98505493,47325.59,Research Grant Expenditure
BEIS,UKRI - AHRC,21/06/2019,Research Grant Expenditure,Research Grants,University of Birmingham GRANT,98505494,40495.49,Research Grant Expenditure
BEIS,UKRI - AHRC,21/06/2019,Research Grant Expenditure,Research Grants,University of Durham,98505495,58788.57,Research Grant Expenditure
BEIS,UKRI - AHRC,21/06/2019,Research Grant Expenditure,Research Grants,"SOAS, University of London",98505496,60224.82,Research Grant Expenditure
BEIS,UKRI - AHRC,21/06/2019,Research Grant Expenditure,Research Grants,University of Cambridge,98505497,62074.86,Research Grant Expenditure
BEIS,UKRI - AHRC,21/06/2019,Research Grant Expenditure,Networks & Workshops,Manchester Metropolitan University,98505498,5555.51,Research Grant Expenditure
BEIS,UKRI - AHRC,21/06/2019,Research Grant Expenditure,Science and Heritage Programme,University College London,98505499,77341.51,Research Grant Expenditure
BEIS,UKRI - AHRC,21/06/2019,Research Grant Expenditure,Research Grants,The University of Manchester,98505500,60454.10,Research Grant Expenditure
BEIS,UKRI - AHRC,21/06/2019,Research Grant Expenditure,Research Grants,Cardiff University,98505501,15782.42,Research Grant Expenditure
BEIS,UKRI - AHRC,21/06/2019,Research Grant Expenditure,Research Grants,University of Kent,98505502,67449.18,Research Grant Expenditure
BEIS,UKRI - AHRC,21/06/2019,Research Grant Expenditure,Research Grants,Cardiff University,98505503,16703.93,Research Grant Expenditure
BEIS,UKRI - AHRC,21/06/2019,Research Grant Expenditure,Research Grants,University of Cambridge,98505504,54719.30,Research Grant Expenditure
BEIS,UKRI - AHRC,21/06/2019,Research Grant Expenditure,Research Grants,Queen's University Belfast GRANT,98505505,54598.69,Research Grant Expenditure
BEIS,UKRI - AHRC,21/06/2019,Research Grant Expenditure,Research Grants,University of Leicester,98505506,50772.37,Research Grant Expenditure
BEIS,UKRI - AHRC,21/06/2019,Research Grant Expenditure,Research Grants,National Museums of Scotland,98505507,32523.87,Research Grant Expenditure
BEIS,UKRI - AHRC,21/06/2019,Research Grant Expenditure,Research Grants,University of Sheffield,98505508,34616.07,Research Grant Expenditure
BEIS,UKRI - AHRC,21/06/2019,Research Grant Expenditure,Research Grants,University of Wolverhampton,98505509,54643.52,Research Grant Expenditure
BEIS,UKRI - AHRC,21/06/2019,Research Grant Expenditure,Research Grants,University of Sussex,98505510,43506.45,Research Grant Expenditure
BEIS,UKRI - AHRC,21/06/2019,Research Grant Expenditure,Research Grants,UNIVERSITY OF ULSTER,98505511,24311.69,Research Grant Expenditure
BEIS,UKRI - AHRC,21/06/2019,Research Grant Expenditure,Care for the Future,University of Nottingham,98505512,73246.45,Research Grant Expenditure
BEIS,UKRI - AHRC,21/06/2019,Research Grant Expenditure,Design: Strategic Initiatives,Lancaster University,98505513,57839.81,Research Grant Expenditure
BEIS,UKRI - AHRC,21/06/2019,Research Grant Expenditure,Research Grants,University of Surrey,98505514,22283.10,Research Grant Expenditure
BEIS,UKRI - AHRC,21/06/2019,Research Grant Expenditure,Open World Research Initiative (OWRI).,Queen's University Belfast GRANT,98505515,94053.74,Research Grant Expenditure
BEIS,UKRI - AHRC,21/06/2019,Research Grant Expenditure,Research Grants,University of Exeter,98505516,25605.32,Research Grant Expenditure
BEIS,UKRI - AHRC,21/06/2019,Research Grant Expenditure,Research Grants,University of Exeter,98505516,25605.32,Research Grant Expenditure
BEIS,UKRI - AHRC,21/06/2019,Research Grant Expenditure,Research Grants,Royal College of Music,98505517,71184.66,Research Grant Expenditure
BEIS,UKRI - AHRC,21/06/2019,Research Grant Expenditure,Research Grants,University of Exeter,98505518,53816.33,Research Grant Expenditure
BEIS,UKRI - AHRC,21/06/2019,Research Grant Expenditure,Research Grants,Queen's University Belfast GRANT,98505519,46380.73,Research Grant Expenditure
BEIS,UKRI - AHRC,21/06/2019,Research Grant Expenditure,Research Grants,Aberystwyth University,98505520,48820.32,Research Grant Expenditure
BEIS,UKRI - AHRC,21/06/2019,Research Grant Expenditure,Connected Communities Programme,Bath Spa University,98505521,91367.02,Research Grant Expenditure
BEIS,UKRI - AHRC,21/06/2019,Research Grant Expenditure,Creative Economy,"Royal Holloway, University of London",98505522,74728.51,Research Grant Expenditure
BEIS,UKRI - AHRC,21/06/2019,Research Grant Expenditure,Networks & Workshops,University of Warwick,98505523,4570.55,Research Grant Expenditure
BEIS,UKRI - AHRC,21/06/2019,Research Grant Expenditure,Networks & Workshops,University of Leeds,98505524,4543.40,Research Grant Expenditure
BEIS,UKRI - AHRC,21/06/2019,Research Grant Expenditure,Research Grants,University of Southampton GRANT,98505525,58358.70,Research Grant Expenditure
BEIS,UKRI - AHRC,21/06/2019,Research Grant Expenditure,Research Grants,University of Birmingham GRANT,98505526,24026.79,Research Grant Expenditure
BEIS,UKRI - AHRC,21/06/2019,Research Grant Expenditure,Research Grants,Lancaster University,98505527,62323.20,Research Grant Expenditure
BEIS,UKRI - AHRC,21/06/2019,Research Grant Expenditure,Research Grants,University of Nottingham,98505528,48221.93,Research Grant Expenditure
BEIS,UKRI - AHRC,21/06/2019,Research Grant Expenditure,Research Grants,Queen Mary University of London,98505529,16937.30,Research Grant Expenditure
BEIS,UKRI - AHRC,21/06/2019,Research Grant Expenditure,Research Grants,University of Leeds,98505530,63313.38,Research Grant Expenditure
BEIS,UKRI - AHRC,21/06/2019,Research Grant Expenditure,Networks & Workshops,University of Birmingham GRANT,98505531,3500.39,Research Grant Expenditure
BEIS,UKRI - AHRC,21/06/2019,Research Grant Expenditure,Networks & Workshops,University of Newcastle Upon Tyne,98505532,4559.30,Research Grant Expenditure
BEIS,UKRI - AHRC,21/06/2019,Research Grant Expenditure,Networks & Workshops,Loughborough University,98505533,4361.73,Research Grant Expenditure
BEIS,UKRI - AHRC,21/06/2019,Research Grant Expenditure,Research Grants,King's College London,98505534,67745.11,Research Grant Expenditure
BEIS,UKRI - AHRC,21/06/2019,Research Grant Expenditure,Research Grants,University College London,98505535,32720.48,Research Grant Expenditure
BEIS,UKRI - AHRC,21/06/2019,Research Grant Expenditure,Research Grants,University of Leicester,98505536,60619.51,Research Grant Expenditure
BEIS,UKRI - AHRC,21/06/2019,Research Grant Expenditure,Research Grants,University of the Arts London,98505537,31837.79,Research Grant Expenditure
BEIS,UKRI - AHRC,21/06/2019,Research Grant Expenditure,Research Grants,"SOAS, University of London",98505538,66269.92,Research Grant Expenditure
BEIS,UKRI - AHRC,21/06/2019,Research Grant Expenditure,Research Grants,The University of Manchester,98505539,30832.62,Research Grant Expenditure
BEIS,UKRI - AHRC,21/06/2019,Research Grant Expenditure,Research Grants,University of Hull,98505540,30862.64,Research Grant Expenditure
BEIS,UKRI - AHRC,21/06/2019,Research Grant Expenditure,Research Grants,University of the West of England,98505541,16440.11,Research Grant Expenditure
BEIS,UKRI - AHRC,21/06/2019,Research Grant Expenditure,Research Grants,University of York,98505542,58200.97,Research Grant Expenditure
BEIS,UKRI - AHRC,21/06/2019,Research Grant Expenditure,Research Grants,University of Edinburgh,98505543,8677.63,Research Grant Expenditure
BEIS,UKRI - AHRC,21/06/2019,Research Grant Expenditure,Research Grants,University of Bradford,98505544,10157.00,Research Grant Expenditure
BEIS,UKRI - AHRC,21/06/2019,Research Grant Expenditure,Networks & Workshops,University of Kent,98505545,4503.44,Research Grant Expenditure
BEIS,UKRI - AHRC,21/06/2019,Research Grant Expenditure,Anti-microbial Resistance (AMR),University of Exeter,98505546,22264.76,Research Grant Expenditure
BEIS,UKRI - AHRC,21/06/2019,Research Grant Expenditure,Anti-microbial Resistance (AMR),Glasgow School of Art,98505547,23493.88,Research Grant Expenditure
BEIS,UKRI - AHRC,21/06/2019,Research Grant Expenditure,Anti-microbial Resistance (AMR),University of York,98505548,30137.35,Research Grant Expenditure
BEIS,UKRI - AHRC,21/06/2019,Research Grant Expenditure,Anti-microbial Resistance (AMR),University of Leeds,98505549,25743.37,Research Grant Expenditure
BEIS,UKRI - AHRC,21/06/2019,Research Grant Expenditure,Anti-microbial Resistance (AMR),Glasgow School of Art,98505550,26005.19,Research Grant Expenditure
BEIS,UKRI - AHRC,21/06/2019,Research Grant Expenditure,Research Grants,Birmingham City University,98505551,42558.28,Research Grant Expenditure
BEIS,UKRI - AHRC,21/06/2019,Research Grant Expenditure,Research Grants,University of Liverpool,98505552,47588.66,Research Grant Expenditure
BEIS,UKRI - AHRC,21/06/2019,Research Grant Expenditure,Research Grants,University of Exeter,98505553,9435.20,Research Grant Expenditure
BEIS,UKRI - AHRC,21/06/2019,Research Grant Expenditure,Research Grants,The Open University,98505554,36992.76,Research Grant Expenditure
BEIS,UKRI - AHRC,21/06/2019,Research Grant Expenditure,Research Grants,University of Nottingham,98505555,53575.46,Research Grant Expenditure
BEIS,UKRI - AHRC,21/06/2019,Research Grant Expenditure,Research Grants,Keele University,98505556,61681.33,Research Grant Expenditure
BEIS,UKRI - AHRC,21/06/2019,Research Grant Expenditure,Research Grants,Cardiff University,98505557,27158.03,Research Grant Expenditure
BEIS,UKRI - AHRC,21/06/2019,Research Grant Expenditure,Research Grants,University of Glasgow,98505558,43094.30,Research Grant Expenditure
BEIS,UKRI - AHRC,21/06/2019,Research Grant Expenditure,Research Grants,University of Birmingham GRANT,98505559,38138.02,Research Grant Expenditure
BEIS,UKRI - AHRC,21/06/2019,Research Grant Expenditure,Anti-microbial Resistance (AMR),Lancaster University,98505560,27335.66,Research Grant Expenditure
BEIS,UKRI - AHRC,21/06/2019,Research Grant Expenditure,Networks & Workshops,University of Chester,98505561,3120.60,Research Grant Expenditure
BEIS,UKRI - AHRC,21/06/2019,Research Grant Expenditure,Networks & Workshops,Cardiff University,98505562,4521.99,Research Grant Expenditure
BEIS,UKRI - AHRC,21/06/2019,Research Grant Expenditure,Global Challenges Research Fund (GCRF),University of Leeds,98505563,185887.06,Research Grant Expenditure
BEIS,UKRI - AHRC,21/06/2019,Research Grant Expenditure,Global Challenges Research Fund (GCRF),University of Nottingham,98505564,103068.31,Research Grant Expenditure
BEIS,UKRI - AHRC,21/06/2019,Research Grant Expenditure,Global Challenges Research Fund (GCRF),University College London,98505565,115336.62,Research Grant Expenditure
BEIS,UKRI - AHRC,21/06/2019,Research Grant Expenditure,Global Challenges Research Fund (GCRF),University of Liverpool,98505566,139362.09,Research Grant Expenditure
BEIS,UKRI - AHRC,21/06/2019,Research Grant Expenditure,Global Challenges Research Fund (GCRF),"SOAS, University of London",98505567,153580.33,Research Grant Expenditure
BEIS,UKRI - AHRC,21/06/2019,Research Grant Expenditure,Global Challenges Research Fund (GCRF),Coventry University,98505568,14856.92,Research Grant Expenditure
BEIS,UKRI - AHRC,21/06/2019,Research Grant Expenditure,Global Challenges Research Fund (GCRF),University of Birmingham GRANT,98505569,14395.70,Research Grant Expenditure
BEIS,UKRI - AHRC,21/06/2019,Research Grant Expenditure,Global Challenges Research Fund (GCRF),University of Birmingham GRANT,98505570,7774.90,Research Grant Expenditure
BEIS,UKRI - AHRC,21/06/2019,Research Grant Expenditure,Global Challenges Research Fund (GCRF),Lancaster University,98505571,12006.74,Research Grant Expenditure
BEIS,UKRI - AHRC,21/06/2019,Research Grant Expenditure,RCUK Global Challenges Research Fund (RCUK GCRF),Goldsmiths College University of London,98505572,203857.00,Research Grant Expenditure
BEIS,UKRI - AHRC,21/06/2019,Research Grant Expenditure,RCUK Global Challenges Research Fund (RCUK GCRF),University of Huddersfield,98505573,274300.00,Research Grant Expenditure
BEIS,UKRI - AHRC,21/06/2019,Research Grant Expenditure,Networks & Workshops,University of Warwick,98505574,3506.50,Research Grant Expenditure
BEIS,UKRI - AHRC,21/06/2019,Research Grant Expenditure,Research Grants,University of Durham,98505575,34802.03,Research Grant Expenditure
BEIS,UKRI - AHRC,21/06/2019,Research Grant Expenditure,Research Grants,University of York,98505576,23058.71,Research Grant Expenditure
BEIS,UKRI - AHRC,21/06/2019,Research Grant Expenditure,Research Grants,University of Leicester,98505577,68385.09,Research Grant Expenditure
BEIS,UKRI - AHRC,21/06/2019,Research Grant Expenditure,Research Grants,University College London,98505578,62699.82,Research Grant Expenditure
BEIS,UKRI - AHRC,21/06/2019,Research Grant Expenditure,Research Grants,Goldsmiths College University of London,98505579,71850.04,Research Grant Expenditure
BEIS,UKRI - AHRC,21/06/2019,Research Grant Expenditure,Research Grants,University College London,98505580,33825.56,Research Grant Expenditure
BEIS,UKRI - AHRC,21/06/2019,Research Grant Expenditure,Research Grants,University of Durham,98505581,64234.19,Research Grant Expenditure
BEIS,UKRI - AHRC,21/06/2019,Research Grant Expenditure,Research Grants,University of East Anglia,98505582,33942.72,Research Grant Expenditure
BEIS,UKRI - AHRC,21/06/2019,Research Grant Expenditure,Research Grants,University College London,98505583,30024.15,Research Grant Expenditure
BEIS,UKRI - AHRC,21/06/2019,Research Grant Expenditure,Global Challenges Research Fund (GCRF),University of Newcastle Upon Tyne,98505584,15224.72,Research Grant Expenditure
BEIS,UKRI - AHRC,21/06/2019,Research Grant Expenditure,Care for the Future,University of Essex,98505585,11413.30,Research Grant Expenditure
BEIS,UKRI - AHRC,21/06/2019,Research Grant Expenditure,Connected Communities Programme,University of Essex,98505585,11413.26,Research Grant Expenditure
BEIS,UKRI - AHRC,21/06/2019,Research Grant Expenditure,Research Grants,London School of Economics and Political Science,98505586,60864.19,Research Grant Expenditure
BEIS,UKRI - AHRC,21/06/2019,Research Grant Expenditure,Research Grants,Oxford Brookes University,98505587,61770.61,Research Grant Expenditure
BEIS,UKRI - AHRC,21/06/2019,Research Grant Expenditure,Research Grants,University of Surrey,98505588,34330.04,Research Grant Expenditure
BEIS,UKRI - AHRC,21/06/2019,Research Grant Expenditure,Research Grants,University of Sheffield,98505589,52381.55,Research Grant Expenditure
BEIS,UKRI - AHRC,21/06/2019,Research Grant Expenditure,Research Grants,University of Glasgow,98505590,56065.49,Research Grant Expenditure
BEIS,UKRI - AHRC,21/06/2019,Research Grant Expenditure,Research Grants,University of Newcastle Upon Tyne,98505591,60314.98,Research Grant Expenditure
BEIS,UKRI - AHRC,21/06/2019,Research Grant Expenditure,Research Grants,Cardiff University,98505592,22402.96,Research Grant Expenditure
BEIS,UKRI - AHRC,21/06/2019,Research Grant Expenditure,Research Grants,Manchester Metropolitan University,98505593,25849.98,Research Grant Expenditure
BEIS,UKRI - AHRC,21/06/2019,Research Grant Expenditure,Research Grants,University of Dundee,98505594,24229.26,Research Grant Expenditure
BEIS,UKRI - AHRC,21/06/2019,Research Grant Expenditure,Care for the Future,University of Exeter,98505595,83889.61,Research Grant Expenditure
BEIS,UKRI - AHRC,21/06/2019,Research Grant Expenditure,Networks & Workshops,Lancaster University,98505596,5179.97,Research Grant Expenditure
BEIS,UKRI - AHRC,21/06/2019,Research Grant Expenditure,Networks & Workshops,Northumbria University,98505597,4221.12,Research Grant Expenditure
BEIS,UKRI - AHRC,21/06/2019,Research Grant Expenditure,Networks & Workshops,The Open University,98505598,5198.19,Research Grant Expenditure
BEIS,UKRI - AHRC,21/06/2019,Research Grant Expenditure,Networks & Workshops,University of Glasgow,98505599,4617.08,Research Grant Expenditure
BEIS,UKRI - AHRC,21/06/2019,Research Grant Expenditure,Networks & Workshops,Cardiff University,98505600,4248.96,Research Grant Expenditure
BEIS,UKRI - AHRC,21/06/2019,Research Grant Expenditure,Networks & Workshops,King's College London,98505601,6096.09,Research Grant Expenditure
BEIS,UKRI - AHRC,21/06/2019,Research Grant Expenditure,Newton Programme,Cardiff University,98505602,13951.50,Research Grant Expenditure
BEIS,UKRI - AHRC,21/06/2019,Research Grant Expenditure,Newton Programme,University of Liverpool,98505603,23544.51,Research Grant Expenditure
BEIS,UKRI - AHRC,21/06/2019,Research Grant Expenditure,Newton Programme,University of Salford,98505604,11756.84,Research Grant Expenditure
BEIS,UKRI - AHRC,21/06/2019,Research Grant Expenditure,JPI Cultural Heritage,University College London,98505605,8064.52,Research Grant Expenditure
BEIS,UKRI - AHRC,21/06/2019,Research Grant Expenditure,JPI Cultural Heritage,University of Oxford,98505606,15321.31,Research Grant Expenditure
BEIS,UKRI - AHRC,21/06/2019,Research Grant Expenditure,JPI Cultural Heritage,De Montfort University,98505607,13222.05,Research Grant Expenditure
BEIS,UKRI - AHRC,21/06/2019,Research Grant Expenditure,Research Grants,University of Strathclyde,98505608,54541.72,Research Grant Expenditure
BEIS,UKRI - AHRC,21/06/2019,Research Grant Expenditure,Research Grants,The University of Manchester,98505609,56814.89,Research Grant Expenditure
BEIS,UKRI - AHRC,21/06/2019,Research Grant Expenditure,Research Grants,"Royal Holloway, University of London",98505610,32782.77,Research Grant Expenditure
BEIS,UKRI - AHRC,21/06/2019,Research Grant Expenditure,Research Grants,University of Westminster,98505611,40011.30,Research Grant Expenditure
BEIS,UKRI - AHRC,21/06/2019,Research Grant Expenditure,Research Grants,University of the Arts London,98505612,44877.19,Research Grant Expenditure
BEIS,UKRI - AHRC,21/06/2019,Research Grant Expenditure,Research Grants,The University of Manchester,98505613,57920.36,Research Grant Expenditure
BEIS,UKRI - AHRC,21/06/2019,Research Grant Expenditure,JPI Cultural Heritage,The Open University,98505614,13150.67,Research Grant Expenditure
BEIS,UKRI - AHRC,21/06/2019,Research Grant Expenditure,Research Grants,University of Reading,98505615,67145.01,Research Grant Expenditure
BEIS,UKRI - AHRC,21/06/2019,Research Grant Expenditure,JPI Cultural Heritage,University of Warwick,98505616,8814.10,Research Grant Expenditure
BEIS,UKRI - AHRC,21/06/2019,Research Grant Expenditure,Networks & Workshops,National Museums of Scotland,98505617,5646.61,Research Grant Expenditure
BEIS,UKRI - AHRC,21/06/2019,Research Grant Expenditure,Networks & Workshops,University of Lincoln,98505618,6677.77,Research Grant Expenditure
BEIS,UKRI - AHRC,21/06/2019,Research Grant Expenditure,Networks & Workshops,Northumbria University,98505619,6772.54,Research Grant Expenditure
BEIS,UKRI - AHRC,21/06/2019,Research Grant Expenditure,Networks & Workshops,Arts University Bournemouth,98505620,3005.46,Research Grant Expenditure
BEIS,UKRI - AHRC,21/06/2019,Research Grant Expenditure,Networks & Workshops,University of Birmingham GRANT,98505621,3831.74,Research Grant Expenditure
BEIS,UKRI - AHRC,21/06/2019,Research Grant Expenditure,Research Grants,University of Exeter,98505622,81585.13,Research Grant Expenditure
BEIS,UKRI - AHRC,21/06/2019,Research Grant Expenditure,Research Grants,British Institute Of International And Comparative Law,98505623,27977.86,Research Grant Expenditure
BEIS,UKRI - AHRC,21/06/2019,Research Grant Expenditure,Networks & Workshops,Birmingham City University,98505624,4090.71,Research Grant Expenditure
BEIS,UKRI - AHRC,21/06/2019,Research Grant Expenditure,Research Grants,The University of Manchester,98505625,66859.62,Research Grant Expenditure
BEIS,UKRI - AHRC,21/06/2019,Research Grant Expenditure,Research Grants,University of Warwick,98505626,57062.38,Research Grant Expenditure
BEIS,UKRI - AHRC,21/06/2019,Research Grant Expenditure,Research Grants,The Royal Central School of Speech and Drama,98505627,47574.45,Research Grant Expenditure
BEIS,UKRI - AHRC,21/06/2019,Research Grant Expenditure,Research Grants,Queen's University Belfast GRANT,98505628,20365.47,Research Grant Expenditure
BEIS,UKRI - AHRC,21/06/2019,Research Grant Expenditure,Networks & Workshops,University of Glasgow,98505629,4885.26,Research Grant Expenditure
BEIS,UKRI - AHRC,21/06/2019,Research Grant Expenditure,Networks & Workshops,University of Leeds,98505630,4297.81,Research Grant Expenditure
BEIS,UKRI - AHRC,21/06/2019,Research Grant Expenditure,Research Grants,Northumbria University,98505631,21499.96,Research Grant Expenditure
BEIS,UKRI - AHRC,21/06/2019,Research Grant Expenditure,Research Grants,University of Liverpool,98505632,48171.34,Research Grant Expenditure
BEIS,UKRI - AHRC,21/06/2019,Research Grant Expenditure,Research Grants,University of Newcastle Upon Tyne,98505633,54407.74,Research Grant Expenditure
BEIS,UKRI - AHRC,21/06/2019,Research Grant Expenditure,RCUK Newton Programme,University of Bristol GRANT,98505634,60297.88,Research Grant Expenditure
BEIS,UKRI - AHRC,21/06/2019,Research Grant Expenditure,Research Grants,Queen Mary University of London,98505635,33272.59,Research Grant Expenditure
BEIS,UKRI - AHRC,21/06/2019,Research Grant Expenditure,Research Grants,University of Liverpool,98505636,21836.75,Research Grant Expenditure
BEIS,UKRI - AHRC,21/06/2019,Research Grant Expenditure,Research Grants,King's College London,98505637,65274.21,Research Grant Expenditure
BEIS,UKRI - AHRC,21/06/2019,Research Grant Expenditure,RCUK Newton Programme,"Royal Holloway, University of London",98505638,34307.36,Research Grant Expenditure
BEIS,UKRI - AHRC,21/06/2019,Research Grant Expenditure,Research Grants,University of Sussex,98505639,49594.42,Research Grant Expenditure
BEIS,UKRI - AHRC,21/06/2019,Research Grant Expenditure,Research Grants,University of Southampton GRANT,98505640,69170.11,Research Grant Expenditure
BEIS,UKRI - AHRC,21/06/2019,Research Grant Expenditure,Research Grants,University of Reading,98505641,55722.66,Research Grant Expenditure
BEIS,UKRI - AHRC,21/06/2019,Research Grant Expenditure,Research Grants,University of Exeter,98505642,19890.46,Research Grant Expenditure
BEIS,UKRI - AHRC,21/06/2019,Research Grant Expenditure,Research Grants,University of Oxford,98505643,61957.28,Research Grant Expenditure
BEIS,UKRI - AHRC,21/06/2019,Research Grant Expenditure,Networks & Workshops,Kingston University,98505644,4506.86,Research Grant Expenditure
BEIS,UKRI - AHRC,21/06/2019,Research Grant Expenditure,RCUK Newton Programme,Aberystwyth University,98505645,30956.48,Research Grant Expenditure
BEIS,UKRI - AHRC,21/06/2019,Research Grant Expenditure,RCUK Newton Programme,University of Nottingham,98505646,43604.35,Research Grant Expenditure
BEIS,UKRI - AHRC,21/06/2019,Research Grant Expenditure,Research Grants,The University of Manchester,98505647,27342.62,Research Grant Expenditure
BEIS,UKRI - AHRC,21/06/2019,Research Grant Expenditure,Research Grants,Birkbeck College,98505648,66354.48,Research Grant Expenditure
BEIS,UKRI - AHRC,21/06/2019,Research Grant Expenditure,Research Grants,University of East Anglia,98505649,34447.74,Research Grant Expenditure
BEIS,UKRI - AHRC,21/06/2019,Research Grant Expenditure,Research Grants,University of Chester,98505650,37616.38,Research Grant Expenditure
BEIS,UKRI - AHRC,21/06/2019,Research Grant Expenditure,Newton Programme,Loughborough University,98505651,29653.19,Research Grant Expenditure
BEIS,UKRI - AHRC,21/06/2019,Research Grant Expenditure,Newton Programme,Queen Mary University of London,98505652,32088.41,Research Grant Expenditure
BEIS,UKRI - AHRC,21/06/2019,Research Grant Expenditure,Newton Programme,Lancaster University,98505653,16444.18,Research Grant Expenditure
BEIS,UKRI - AHRC,21/06/2019,Research Grant Expenditure,Newton Programme,Brunel University London,98505654,18479.91,Research Grant Expenditure
BEIS,UKRI - AHRC,21/06/2019,Research Grant Expenditure,Newton Programme,University College London,98505655,25190.52,Research Grant Expenditure
BEIS,UKRI - AHRC,21/06/2019,Research Grant Expenditure,Newton Programme,Liverpool John Moores University,98505656,16485.42,Research Grant Expenditure
BEIS,UKRI - AHRC,21/06/2019,Research Grant Expenditure,Newton Programme,Science Museum Group,98505657,41494.11,Research Grant Expenditure
BEIS,UKRI - AHRC,21/06/2019,Research Grant Expenditure,Research Grants,University of Leeds,98505658,25804.88,Research Grant Expenditure
BEIS,UKRI - AHRC,21/06/2019,Research Grant Expenditure,Research Grants,The University of Manchester,98505659,45247.89,Research Grant Expenditure
BEIS,UKRI - AHRC,21/06/2019,Research Grant Expenditure,Research Grants,University of Kent,98505660,53827.04,Research Grant Expenditure
BEIS,UKRI - AHRC,21/06/2019,Research Grant Expenditure,Research Grants,University of Wales Trinity St David,98505661,62819.51,Research Grant Expenditure
BEIS,UKRI - AHRC,21/06/2019,Research Grant Expenditure,Research Grants,University of Bristol GRANT,98505662,42943.45,Research Grant Expenditure
BEIS,UKRI - AHRC,21/06/2019,Research Grant Expenditure,Research Grants,UNIVERSITY OF ULSTER,98505663,22337.90,Research Grant Expenditure
BEIS,UKRI - AHRC,21/06/2019,Research Grant Expenditure,Research Grants,University of Oxford,98505664,71431.30,Research Grant Expenditure
BEIS,UKRI - AHRC,21/06/2019,Research Grant Expenditure,Research Grants,University of the Arts London,98505665,40126.17,Research Grant Expenditure
BEIS,UKRI - AHRC,21/06/2019,Research Grant Expenditure,Industrial Strategy Challenge Fund (ISCF) - Creative Clusters,NESTA,98505666,315868.13,Research Grant Expenditure
BEIS,UKRI - AHRC,21/06/2019,Research Grant Expenditure,Research Grants,University of Exeter,98505667,33414.55,Research Grant Expenditure
BEIS,UKRI - AHRC,21/06/2019,Research Grant Expenditure,Networks & Workshops,Northumbria University,98505668,5890.95,Research Grant Expenditure
BEIS,UKRI - AHRC,21/06/2019,Research Grant Expenditure,Research Grants,The University of Manchester,98505669,67324.13,Research Grant Expenditure
BEIS,UKRI - AHRC,21/06/2019,Research Grant Expenditure,Research Grants,University of the Arts London,98505670,31927.93,Research Grant Expenditure
BEIS,UKRI - AHRC,21/06/2019,Research Grant Expenditure,Research Grants,University of Sussex,98505671,60375.94,Research Grant Expenditure
BEIS,UKRI - AHRC,21/06/2019,Research Grant Expenditure,Research Grants,Birkbeck College,98505672,30168.50,Research Grant Expenditure
BEIS,UKRI - AHRC,21/06/2019,Research Grant Expenditure,Research Grants,Birkbeck College,98505672,30168.50,Research Grant Expenditure
BEIS,UKRI - AHRC,21/06/2019,Research Grant Expenditure,Networks & Workshops,Birmingham City University,98505673,3377.71,Research Grant Expenditure
BEIS,UKRI - AHRC,21/06/2019,Research Grant Expenditure,Research Grants,University of Oxford,98505674,56828.64,Research Grant Expenditure
BEIS,UKRI - AHRC,21/06/2019,Research Grant Expenditure,Research Grants,University of Newcastle Upon Tyne,98505675,55240.84,Research Grant Expenditure
BEIS,UKRI - AHRC,21/06/2019,Research Grant Expenditure,Research Grants,University of Exeter,98505676,43393.94,Research Grant Expenditure
BEIS,UKRI - AHRC,21/06/2019,Research Grant Expenditure,Newton Programme,University of Leeds,98505677,16546.06,Research Grant Expenditure
BEIS,UKRI - AHRC,21/06/2019,Research Grant Expenditure,JPI Cultural Heritage,University of Hull,98505678,11191.91,Research Grant Expenditure
BEIS,UKRI - AHRC,21/06/2019,Research Grant Expenditure,Global Challenges Research Fund (GCRF),University of York,98505679,21564.17,Research Grant Expenditure
BEIS,UKRI - AHRC,21/06/2019,Research Grant Expenditure,Research Grants,University of Glasgow,98505680,72191.97,Research Grant Expenditure
BEIS,UKRI - AHRC,21/06/2019,Research Grant Expenditure,JPI Cultural Heritage,University of Lincoln,98505681,14551.11,Research Grant Expenditure
BEIS,UKRI - AHRC,21/06/2019,Research Grant Expenditure,JPI Cultural Heritage,University of Lincoln,98505681,14551.11,Research Grant Expenditure
BEIS,UKRI - AHRC,21/06/2019,Research Grant Expenditure,Newton Programme,University of Salford,98505682,20891.36,Research Grant Expenditure
BEIS,UKRI - AHRC,21/06/2019,Research Grant Expenditure,JPI Cultural Heritage,University of Bradford,98505683,11740.23,Research Grant Expenditure
BEIS,UKRI - AHRC,21/06/2019,Research Grant Expenditure,Audience of the Future (ISCF 2),The National Film & Television School,98505684,423293.39,Research Grant Expenditure
BEIS,UKRI - AHRC,21/06/2019,Research Grant Expenditure,Follow-on Fund,University of Bradford,98505685,42499.90,Research Grant Expenditure
BEIS,UKRI - AHRC,21/06/2019,Research Grant Expenditure,Follow-on Fund,Lancaster University,98505686,20156.01,Research Grant Expenditure
BEIS,UKRI - AHRC,21/06/2019,Research Grant Expenditure,Industrial Strategy Challenge Fund (ISCF) - Creative Clusters,University of Edinburgh,98505687,277698.30,Research Grant Expenditure
BEIS,UKRI - AHRC,21/06/2019,Research Grant Expenditure,Industrial Strategy Challenge Fund (ISCF) - Creative Clusters,University of Leeds,98505688,272512.48,Research Grant Expenditure
BEIS,UKRI - AHRC,21/06/2019,Research Grant Expenditure,Industrial Strategy Challenge Fund (ISCF) - Creative Clusters,University of the Arts London,98505689,275264.49,Research Grant Expenditure
BEIS,UKRI - AHRC,21/06/2019,Research Grant Expenditure,Industrial Strategy Challenge Fund (ISCF) - Creative Clusters,UNIVERSITY OF ULSTER,98505690,277444.77,Research Grant Expenditure
BEIS,UKRI - AHRC,21/06/2019,Research Grant Expenditure,Industrial Strategy Challenge Fund (ISCF) - Creative Clusters,Abertay University,98505691,259011.77,Research Grant Expenditure
BEIS,UKRI - AHRC,21/06/2019,Research Grant Expenditure,Industrial Strategy Challenge Fund (ISCF) - Creative Clusters,University of the West of England,98505692,278292.84,Research Grant Expenditure
BEIS,UKRI - AHRC,21/06/2019,Research Grant Expenditure,Creative Economy,University of Edinburgh,98505693,7856.07,Research Grant Expenditure
BEIS,UKRI - AHRC,21/06/2019,Research Grant Expenditure,Creative Economy,University of Edinburgh,98505693,16486.21,Research Grant Expenditure
BEIS,UKRI - AHRC,21/06/2019,Research Grant Expenditure,Innovation Placements (NPIF),University of Glasgow,98506694,16059.83,Research Grant Expenditure
BEIS,UKRI - AHRC,21/06/2019,Research Grant Expenditure,Innovation Placements (NPIF),University of York,98506695,16059.83,Research Grant Expenditure
BEIS,UKRI - AHRC,21/06/2019,Research Grant Expenditure,Innovation Placements (NPIF),The University of Manchester,98506696,15877.57,Research Grant Expenditure
BEIS,UKRI - AHRC,21/06/2019,Research Grant Expenditure,Innovation Placements (NPIF),"Royal Holloway, University of London",98506697,15877.58,Research Grant Expenditure
BEIS,UKRI - AHRC,21/06/2019,Research Grant Expenditure,Industrial Strategy Challenge Fund (ISCF) - Creative Clusters,University of York,98506698,273467.32,Research Grant Expenditure
BEIS,UKRI - AHRC,21/06/2019,Research Grant Expenditure,Industrial Strategy Challenge Fund (ISCF) - Creative Clusters,Cardiff University,98506699,265994.55,Research Grant Expenditure
BEIS,UKRI - AHRC,21/06/2019,Research Grant Expenditure,Industrial Strategy Challenge Fund (ISCF) - Creative Clusters,"Royal Holloway, University of London",98506700,277442.89,Research Grant Expenditure
BEIS,UKRI - AHRC,21/06/2019,Research Grant Expenditure,Creative Economy,University of Nottingham,98506701,11542.61,Research Grant Expenditure
BEIS,UKRI - AHRC,21/06/2019,Research Grant Expenditure,Creative Economy,University of Nottingham,98506701,11542.61,Research Grant Expenditure
BEIS,UKRI - AHRC,21/06/2019,Research Grant Expenditure,Newton Programme,Nottingham Trent University,98506702,21130.73,Research Grant Expenditure
BEIS,UKRI - AHRC,21/06/2019,Research Grant Expenditure,Creative Economy,Goldsmiths College University of London,98506703,8024.94,Research Grant Expenditure
BEIS,UKRI - AHRC,21/06/2019,Research Grant Expenditure,Innovation Placements (NPIF),University of the West of England,98506704,7560.75,Research Grant Expenditure
BEIS,UKRI - AHRC,21/06/2019,Research Grant Expenditure,Innovation Placements (NPIF),University of Newcastle Upon Tyne,98506705,15877.58,Research Grant Expenditure
BEIS,UKRI - AHRC,21/06/2019,Research Grant Expenditure,Global Challenges Research Fund (GCRF),Goldsmiths College University of London,98506706,53.62,Research Grant Expenditure
BEIS,UKRI - AHRC,21/06/2019,Research Grant Expenditure,Networks & Workshops,Birkbeck College,98506707,6953.67,Research Grant Expenditure
BEIS,UKRI - AHRC,21/06/2019,Research Grant Expenditure,Global Challenges Research Fund (GCRF),University of Leeds,98506708,75.90,Research Grant Expenditure
BEIS,UKRI - AHRC,21/06/2019,Research Grant Expenditure,Global Challenges Research Fund (GCRF),University of Glasgow,98506709,0.05,Research Grant Expenditure
BEIS,UKRI - AHRC,21/06/2019,Research Grant Expenditure,Networks & Workshops,University of Birmingham GRANT,98506710,3134.33,Research Grant Expenditure
BEIS,UKRI - AHRC,21/06/2019,Research Grant Expenditure,Networks & Workshops,University of the Arts London,98506711,7819.20,Research Grant Expenditure
BEIS,UKRI - AHRC,21/06/2019,Research Grant Expenditure,Networks & Workshops,Coventry University,98506712,3850.90,Research Grant Expenditure
BEIS,UKRI - AHRC,21/06/2019,Research Grant Expenditure,Networks & Workshops,Coventry University,98506712,3850.90,Research Grant Expenditure
BEIS,UKRI - AHRC,21/06/2019,Research Grant Expenditure,Networks & Workshops,University of the Arts London,98506713,5913.36,Research Grant Expenditure
BEIS,UKRI - AHRC,21/06/2019,Research Grant Expenditure,Newton Programme,University of Durham,98506714,26911.03,Research Grant Expenditure
BEIS,UKRI - AHRC,21/06/2019,Research Grant Expenditure,Innovation Placements (NPIF),University of Nottingham,98506715,16513.47,Research Grant Expenditure
BEIS,UKRI - AHRC,21/06/2019,Research Grant Expenditure,Newton Programme,University of Durham,98506716,24019.64,Research Grant Expenditure
BEIS,UKRI - AHRC,21/06/2019,Research Grant Expenditure,Research Grants,University of Leicester,98506717,28295.06,Research Grant Expenditure
BEIS,UKRI - AHRC,21/06/2019,Research Grant Expenditure,Research Grants,University of Stirling,98506718,34949.68,Research Grant Expenditure
BEIS,UKRI - AHRC,21/06/2019,Research Grant Expenditure,Research Grants,University of Stirling,98506718,34949.68,Research Grant Expenditure
BEIS,UKRI - AHRC,21/06/2019,Research Grant Expenditure,Research Grants,University of the Arts London,98506719,63298.08,Research Grant Expenditure
BEIS,UKRI - AHRC,21/06/2019,Research Grant Expenditure,Research Grants,University of Exeter,98506720,39556.32,Research Grant Expenditure
BEIS,UKRI - AHRC,21/06/2019,Research Grant Expenditure,Newton Programme,Oxford Brookes University,98506721,16728.87,Research Grant Expenditure
BEIS,UKRI - AHRC,21/06/2019,Research Grant Expenditure,Research Grants,University of Newcastle Upon Tyne,98506722,50156.21,Research Grant Expenditure
BEIS,UKRI - AHRC,21/06/2019,Research Grant Expenditure,Research Grants,University of Kent,98506723,60010.53,Research Grant Expenditure
BEIS,UKRI - AHRC,21/06/2019,Research Grant Expenditure,Research Grants,University of York,98506724,71659.33,Research Grant Expenditure
BEIS,UKRI - AHRC,21/06/2019,Research Grant Expenditure,Research Grants,Northumbria University,98506725,25201.99,Research Grant Expenditure
BEIS,UKRI - AHRC,21/06/2019,Research Grant Expenditure,Newton Programme,University of Liverpool,98506726,26525.62,Research Grant Expenditure
BEIS,UKRI - AHRC,21/06/2019,Research Grant Expenditure,Living with Machines (SPF),The Alan Turing Institute,98506727,539127.09,Research Grant Expenditure
BEIS,UKRI - AHRC,21/06/2019,Research Grant Expenditure,Newton Programme,Imperial College London,98506728,16754.57,Research Grant Expenditure
BEIS,UKRI - AHRC,21/06/2019,Research Grant Expenditure,Follow-on Fund,University College London,98506729,75777.14,Research Grant Expenditure
BEIS,UKRI - AHRC,21/06/2019,Research Grant Expenditure,Follow-on Fund,University of East Anglia,98506730,29705.28,Research Grant Expenditure
BEIS,UKRI - AHRC,21/06/2019,Research Grant Expenditure,Networks & Workshops,Loughborough University,98506731,4730.52,Research Grant Expenditure
BEIS,UKRI - AHRC,21/06/2019,Research Grant Expenditure,Networks & Workshops,The Royal Central School of Speech and Drama,98506732,18440.40,Research Grant Expenditure
BEIS,UKRI - AHRC,21/06/2019,Research Grant Expenditure,Networks & Workshops,University of Southampton GRANT,98506733,4453.38,Research Grant Expenditure
BEIS,UKRI - AHRC,21/06/2019,Research Grant Expenditure,Follow-on Fund,University of Birmingham GRANT,98506734,20130.52,Research Grant Expenditure
BEIS,UKRI - AHRC,21/06/2019,Research Grant Expenditure,Networks & Workshops,University of Newcastle Upon Tyne,98506735,5991.27,Research Grant Expenditure
BEIS,UKRI - AHRC,21/06/2019,Research Grant Expenditure,Networks & Workshops,University of Kent,98506736,4533.17,Research Grant Expenditure
BEIS,UKRI - AHRC,21/06/2019,Research Grant Expenditure,Networks & Workshops,Liverpool John Moores University,98506737,6110.84,Research Grant Expenditure
BEIS,UKRI - AHRC,21/06/2019,Research Grant Expenditure,Networks & Workshops,Liverpool John Moores University,98506737,6110.84,Research Grant Expenditure
BEIS,UKRI - AHRC,21/06/2019,Research Grant Expenditure,RCUK Global Challenges Research Fund (RCUK GCRF),London School of Economics and Political Science,98506738,749270.03,Research Grant Expenditure
BEIS,UKRI - AHRC,21/06/2019,Research Grant Expenditure,Networks & Workshops,University of East Anglia,98506739,4917.38,Research Grant Expenditure
BEIS,UKRI - AHRC,21/06/2019,Research Grant Expenditure,Networks & Workshops,University of London,98506740,11953.36,Research Grant Expenditure
BEIS,UKRI - AHRC,21/06/2019,Research Grant Expenditure,NPIF Research Talent (RCUK Innovation Fellowships),The University of Manchester,98506741,44810.00,Research Grant Expenditure
BEIS,UKRI - AHRC,21/06/2019,Research Grant Expenditure,NPIF Research Talent (RCUK Innovation Fellowships),University of Glasgow,98506742,44707.97,Research Grant Expenditure
BEIS,UKRI - AHRC,21/06/2019,Research Grant Expenditure,NPIF Research Talent (RCUK Innovation Fellowships),University of Sheffield,98506743,44451.34,Research Grant Expenditure
BEIS,UKRI - AHRC,21/06/2019,Research Grant Expenditure,NPIF Research Talent (RCUK Innovation Fellowships),University of Cambridge,98506744,45201.05,Research Grant Expenditure
BEIS,UKRI - AHRC,21/06/2019,Research Grant Expenditure,NPIF Research Talent (RCUK Innovation Fellowships),"Royal Holloway, University of London",98506745,44426.02,Research Grant Expenditure
BEIS,UKRI - AHRC,21/06/2019,Research Grant Expenditure,NPIF Research Talent (RCUK Innovation Fellowships),University of Nottingham,98506746,44169.94,Research Grant Expenditure
BEIS,UKRI - AHRC,21/06/2019,Research Grant Expenditure,Newton Programme,King's College London,98506747,22732.61,Research Grant Expenditure
BEIS,UKRI - AHRC,21/06/2019,Research Grant Expenditure,Newton Programme,University of Leeds,98506748,20355.48,Research Grant Expenditure
BEIS,UKRI - AHRC,21/06/2019,Research Grant Expenditure,Newton Programme,University of Reading,98506749,25658.72,Research Grant Expenditure
BEIS,UKRI - AHRC,21/06/2019,Research Grant Expenditure,JPI Cultural Heritage,University of Leeds,98506750,8418.35,Research Grant Expenditure
BEIS,UKRI - AHRC,21/06/2019,Research Grant Expenditure,JPI Cultural Heritage,University of Leeds,98506750,8418.35,Research Grant Expenditure
BEIS,UKRI - AHRC,21/06/2019,Research Grant Expenditure,NPIF Research Talent (RCUK Innovation Fellowships),University of Newcastle Upon Tyne,98506751,146171.28,Research Grant Expenditure
BEIS,UKRI - AHRC,21/06/2019,Research Grant Expenditure,Audience of the Future (ISCF 2),Digital Catapult Services Ltd,98506752,101527.98,Research Grant Expenditure
BEIS,UKRI - AHRC,21/06/2019,Research Grant Expenditure,Follow-on Fund,Lancaster University,98506753,78758.02,Research Grant Expenditure
BEIS,UKRI - AHRC,21/06/2019,Research Grant Expenditure,Research Grants,University College London,98506754,50644.72,Research Grant Expenditure
BEIS,UKRI - AHRC,21/06/2019,Research Grant Expenditure,Research Grants,Museum of London Archaeology,98506755,18477.58,Research Grant Expenditure
BEIS,UKRI - AHRC,21/06/2019,Research Grant Expenditure,Fund for International Collaboration (FIC),University of Leicester,98506756,12572.31,Research Grant Expenditure
BEIS,UKRI - AHRC,21/06/2019,Research Grant Expenditure,Fund for International Collaboration (FIC),University of Leicester,98506756,12572.31,Research Grant Expenditure
BEIS,UKRI - AHRC,21/06/2019,Research Grant Expenditure,Fund for International Collaboration (FIC),Bangor University,98506757,7566.09,Research Grant Expenditure
BEIS,UKRI - AHRC,21/06/2019,Research Grant Expenditure,Research Grants,Manchester Metropolitan University,98506758,35871.49,Research Grant Expenditure
BEIS,UKRI - AHRC,21/06/2019,Research Grant Expenditure,Fund for International Collaboration (FIC),University of Nottingham,98506759,10866.42,Research Grant Expenditure
BEIS,UKRI - AHRC,21/06/2019,Research Grant Expenditure,Fund for International Collaboration (FIC),University of Nottingham,98506759,10866.41,Research Grant Expenditure
BEIS,UKRI - AHRC,21/06/2019,Research Grant Expenditure,Fund for International Collaboration (FIC),University of Nottingham,98506760,12400.43,Research Grant Expenditure
BEIS,UKRI - AHRC,21/06/2019,Research Grant Expenditure,Fund for International Collaboration (FIC),University of Nottingham,98506760,12400.43,Research Grant Expenditure
BEIS,UKRI - AHRC,21/06/2019,Research Grant Expenditure,Fund for International Collaboration (FIC),Birmingham City University,98506761,12350.03,Research Grant Expenditure
BEIS,UKRI - AHRC,21/06/2019,Research Grant Expenditure,Fund for International Collaboration (FIC),Robert Gordon University,98506762,11258.76,Research Grant Expenditure
BEIS,UKRI - AHRC,21/06/2019,Research Grant Expenditure,Fund for International Collaboration (FIC),Queen Mary University of London,98506763,10485.04,Research Grant Expenditure
BEIS,UKRI - AHRC,21/06/2019,Research Grant Expenditure,Fund for International Collaboration (FIC),Queen Mary University of London,98506763,10485.04,Research Grant Expenditure
BEIS,UKRI - AHRC,21/06/2019,Research Grant Expenditure,Fund for International Collaboration (FIC),Cardiff University,98506764,12602.05,Research Grant Expenditure
BEIS,UKRI - AHRC,21/06/2019,Research Grant Expenditure,Fund for International Collaboration (FIC),Goldsmiths College University of London,98506765,12517.87,Research Grant Expenditure
BEIS,UKRI - AHRC,21/06/2019,Research Grant Expenditure,Fund for International Collaboration (FIC),University of Newcastle Upon Tyne,98506766,12138.48,Research Grant Expenditure
BEIS,UKRI - AHRC,21/06/2019,Research Grant Expenditure,Research Grants,University of Durham,98506767,-372.41,Research Grant Expenditure
BEIS,UKRI - AHRC,21/06/2019,Research Grant Expenditure,Research Grants,University of York,98506768,-2407.23,Research Grant Expenditure
BEIS,UKRI - AHRC,21/06/2019,Research Grant Expenditure,Science in Culture,University of Oxford,98506769,8044.15,Research Grant Expenditure
BEIS,UKRI - AHRC,21/06/2019,Research Grant Expenditure,Digital Transformations,University of Liverpool,98506770,-9565.42,Research Grant Expenditure
BEIS,UKRI - AHRC,21/06/2019,Research Grant Expenditure,Research Grants,University College London,98506771,-411.54,Research Grant Expenditure
BEIS,UKRI - AHRC,21/06/2019,Research Grant Expenditure,Research Grants,Lancaster University,98506772,8290.58,Research Grant Expenditure
BEIS,UKRI - AHRC,21/06/2019,Research Grant Expenditure,Research Grants,University of Warwick,98506773,-0.03,Research Grant Expenditure
BEIS,UKRI - AHRC,21/06/2019,Research Grant Expenditure,Research Grants,University of Liverpool,98506774,-2005.80,Research Grant Expenditure
BEIS,UKRI - AHRC,21/06/2019,Research Grant Expenditure,Research Grants,University of York,98506775,-24246.13,Research Grant Expenditure
BEIS,UKRI - AHRC,21/06/2019,Research Grant Expenditure,Research Grants,University of York,98506776,-182.48,Research Grant Expenditure
BEIS,UKRI - AHRC,21/06/2019,Research Grant Expenditure,Research Grants,University of Central Lancashire,98506777,13648.74,Research Grant Expenditure
BEIS,UKRI - AHRC,21/06/2019,Research Grant Expenditure,Research Grants,"SOAS, University of London",98506778,47776.76,Research Grant Expenditure
BEIS,UKRI - AHRC,21/06/2019,Research Grant Expenditure,Research Grants,University of Exeter,98506779,20899.78,Research Grant Expenditure
BEIS,UKRI - AHRC,21/06/2019,Research Grant Expenditure,Research Grants,Birkbeck College,98506780,35913.18,Research Grant Expenditure
BEIS,UKRI - AHRC,21/06/2019,Research Grant Expenditure,Research Grants,University of Durham,98506781,64224.43,Research Grant Expenditure
BEIS,UKRI - AHRC,21/06/2019,Research Grant Expenditure,Research Grants,Cardiff University,98506782,27583.49,Research Grant Expenditure
BEIS,UKRI - AHRC,21/06/2019,Research Grant Expenditure,Networks & Workshops,University of Kent,98506783,4543.79,Research Grant Expenditure
BEIS,UKRI - AHRC,21/06/2019,Research Grant Expenditure,Networks & Workshops,University of Birmingham GRANT,98506784,4039.70,Research Grant Expenditure
BEIS,UKRI - AHRC,21/06/2019,Research Grant Expenditure,Networks & Workshops,University of Chester,98506785,-9010.50,Research Grant Expenditure
BEIS,UKRI - AHRC,21/06/2019,Research Grant Expenditure,Networks & Workshops,University of Leeds,98506786,3046.55,Research Grant Expenditure
BEIS,UKRI - AHRC,21/06/2019,Research Grant Expenditure,RCUK Newton Programme,University of Newcastle Upon Tyne,98506787,-1090.74,Research Grant Expenditure
BEIS,UKRI - AHRC,21/06/2019,Research Grant Expenditure,Commissioned Research,University of Bristol GRANT,98506788,-1576.85,Research Grant Expenditure
BEIS,UKRI - AHRC,21/06/2019,Research Grant Expenditure,Research Grants,University of Reading,98506789,35922.41,Research Grant Expenditure
BEIS,UKRI - AHRC,21/06/2019,Research Grant Expenditure,Networks & Workshops,University of Sussex,98506790,5881.32,Research Grant Expenditure
BEIS,UKRI - AHRC,21/06/2019,Research Grant Expenditure,Global Challenges Research Fund (GCRF),Queen's University Belfast GRANT,98506791,-1962.23,Research Grant Expenditure
BEIS,UKRI - AHRC,21/06/2019,Research Grant Expenditure,Global Challenges Research Fund (GCRF),University of Brighton,98506792,-33.26,Research Grant Expenditure
BEIS,UKRI - AHRC,21/06/2019,Research Grant Expenditure,Research Grants,University of Newcastle Upon Tyne,98506793,38832.18,Research Grant Expenditure
BEIS,UKRI - AHRC,21/06/2019,Research Grant Expenditure,Research Grants,University of Cambridge,98506794,20161.46,Research Grant Expenditure
BEIS,UKRI - AHRC,21/06/2019,Research Grant Expenditure,Global Challenges Research Fund (GCRF),University of Birmingham GRANT,98506795,5977.36,Research Grant Expenditure
BEIS,UKRI - AHRC,21/06/2019,Research Grant Expenditure,Research Grants,University of East Anglia,98506796,26920.48,Research Grant Expenditure
BEIS,UKRI - AHRC,21/06/2019,Research Grant Expenditure,Networks & Workshops,University of Leeds,98506797,3475.78,Research Grant Expenditure
BEIS,UKRI - AHRC,21/06/2019,Research Grant Expenditure,Commissioned Research,Historic Environment Scotland (GRANT),98506798,13056.99,Research Grant Expenditure
BEIS,UKRI - AHRC,21/06/2019,Research Grant Expenditure,Global Challenges Research Fund (GCRF),University of Bristol GRANT,98506799,-2957.40,Research Grant Expenditure
BEIS,UKRI - AHRC,21/06/2019,Research Grant Expenditure,Networks & Workshops,Birmingham City University,98506800,1545.43,Research Grant Expenditure
BEIS,UKRI - AHRC,21/06/2019,Research Grant Expenditure,Research Grants,Queen Mary University of London,98506801,10343.06,Research Grant Expenditure
BEIS,UKRI - AHRC,21/06/2019,Research Grant Expenditure,Follow-on Fund,University of Glasgow,98506802,-26.54,Research Grant Expenditure
BEIS,UKRI - AHRC,21/06/2019,Research Grant Expenditure,Follow-on Fund,University of the West of England,98506803,-1320.51,Research Grant Expenditure
BEIS,UKRI - AHRC,21/06/2019,Research Grant Expenditure,Follow-on Fund,Glasgow School of Art,98506804,-2229.62,Research Grant Expenditure
BEIS,UKRI - AHRC,21/06/2019,Research Grant Expenditure,Follow-on Fund,UNIVERSITY OF ULSTER,98506806,-7902.06,Research Grant Expenditure
BEIS,UKRI - AHRC,21/06/2019,Research Grant Expenditure,Networks & Workshops,University of Stirling,98506807,-3360.09,Research Grant Expenditure
BEIS,UKRI - AHRC,21/06/2019,Research Grant Expenditure,Follow-on Fund,University of West London,98506808,22970.66,Research Grant Expenditure
BEIS,UKRI - AHRC,21/06/2019,Research Grant Expenditure,Follow-on Fund,University of Nottingham,98506809,-10190.95,Research Grant Expenditure
BEIS,UKRI - AHRC,21/06/2019,Research Grant Expenditure,Follow-on Fund,University of Warwick,98506810,-8433.52,Research Grant Expenditure
BEIS,UKRI - AHRC,21/06/2019,Research Grant Expenditure,Follow-on Fund,Cardiff University,98506811,18758.41,Research Grant Expenditure
BEIS,UKRI - AHRC,21/06/2019,Research Grant Expenditure,Networks & Workshops,Victoria and Albert Museum,98506812,5748.90,Research Grant Expenditure
BEIS,UKRI - AHRC,21/06/2019,Research Grant Expenditure,Networks & Workshops,University of York,98506813,3988.87,Research Grant Expenditure
BEIS,UKRI - AHRC,21/06/2019,Research Grant Expenditure,Follow-on Fund,The University of Manchester,98506814,25992.24,Research Grant Expenditure
BEIS,UKRI - AHRC,21/06/2019,Research Grant Expenditure,Follow-on Fund,University of Brighton,98506815,19982.92,Research Grant Expenditure
BEIS,UKRI - AHRC,21/06/2019,Research Grant Expenditure,Global Challenges Research Fund (GCRF),University of Stirling,98506816,15251.79,Research Grant Expenditure
BEIS,UKRI - AHRC,21/06/2019,Research Grant Expenditure,Global Challenges Research Fund (GCRF),The Open University,98506817,-10307.16,Research Grant Expenditure
BEIS,UKRI - AHRC,21/06/2019,Research Grant Expenditure,Global Challenges Research Fund (GCRF),University of York,98506818,-9038.01,Research Grant Expenditure
BEIS,UKRI - AHRC,21/06/2019,Research Grant Expenditure,Global Challenges Research Fund (GCRF),University of Cambridge,98506819,5975.46,Research Grant Expenditure
BEIS,UKRI - AHRC,21/06/2019,Research Grant Expenditure,Follow-on Fund,University of York,98506820,18989.79,Research Grant Expenditure
BEIS,UKRI - AHRC,21/06/2019,Research Grant Expenditure,Follow-on Fund,University of West London,98506821,14205.79,Research Grant Expenditure
BEIS,UKRI - AHRC,21/06/2019,Research Grant Expenditure,Global Challenges Research Fund (GCRF),The Open University,98506822,-333.47,Research Grant Expenditure
BEIS,UKRI - AHRC,21/06/2019,Research Grant Expenditure,Follow-on Fund,University of Kent,98506823,13472.83,Research Grant Expenditure
BEIS,UKRI - AHRC,21/06/2019,Research Grant Expenditure,Follow-on Fund,Cardiff University,98506824,18249.63,Research Grant Expenditure
BEIS,UKRI - AHRC,21/06/2019,Research Grant Expenditure,NPIF Research Talent (RCUK Innovation Fellowships),University of Nottingham,98506825,-77.92,Research Grant Expenditure
BEIS,UKRI - AHRC,21/06/2019,Research Grant Expenditure,NPIF Research Talent (RCUK Innovation Fellowships),University of Glasgow,98506826,-13136.93,Research Grant Expenditure
BEIS,UKRI - AHRC,21/06/2019,Research Grant Expenditure,Networks & Workshops,Queen Mary University of London,98506827,-7012.01,Research Grant Expenditure
BEIS,UKRI - AHRC,21/06/2019,Research Grant Expenditure,Creative Economy,University of Birmingham GRANT,98506828,-0.03,Research Grant Expenditure
BEIS,UKRI - AHRC,21/06/2019,Research Grant Expenditure,Creative Economy,Manchester Metropolitan University,98506829,-1094.89,Research Grant Expenditure
BEIS,UKRI - AHRC,21/06/2019,Research Grant Expenditure,Creative Economy,Queen Mary University of London,98506830,-0.01,Research Grant Expenditure
BEIS,UKRI - AHRC,21/06/2019,Research Grant Expenditure,Creative Economy,University of Sussex,98506831,-3475.21,Research Grant Expenditure
BEIS,UKRI - AHRC,21/06/2019,Research Grant Expenditure,Creative Economy,University of Edinburgh,98506832,-0.46,Research Grant Expenditure
BEIS,UKRI - AHRC,21/06/2019,Research Grant Expenditure,Creative Economy,University of Nottingham,98506833,-5453.40,Research Grant Expenditure
BEIS,UKRI - AHRC,21/06/2019,Research Grant Expenditure,Creative Economy,University of Newcastle Upon Tyne,98506834,331.36,Research Grant Expenditure
BEIS,UKRI - AHRC,21/06/2019,Research Grant Expenditure,Creative Economy,Abertay University,98506835,-159.36,Research Grant Expenditure
BEIS,UKRI - AHRC,21/06/2019,Research Grant Expenditure,Creative Economy,Northumbria University,98506836,-888.37,Research Grant Expenditure
BEIS,UKRI - AHRC,21/06/2019,Research Grant Expenditure,Creative Economy,University of Exeter,98506837,-4367.98,Research Grant Expenditure
BEIS,UKRI - AHRC,21/06/2019,Research Grant Expenditure,Research Grants,University of Glasgow,98506838,5340.48,Research Grant Expenditure
BEIS,UKRI - AHRC,21/06/2019,Fellowships,Research Fellowships,Kingston University,98506839,14354.40,Fellowships
BEIS,UKRI - AHRC,21/06/2019,Fellowships,Research Fellowships,University of Sheffield,98506840,18720.42,Fellowships
BEIS,UKRI - AHRC,21/06/2019,Fellowships,Research Fellowships,University of Sheffield,98506841,13839.40,Fellowships
BEIS,UKRI - AHRC,21/06/2019,Fellowships,Research Fellowships,University of Southampton GRANT,98506842,24459.07,Fellowships
BEIS,UKRI - AHRC,21/06/2019,Fellowships,Research Fellowships,Cardiff Metropolitan University,98506843,20194.66,Fellowships
BEIS,UKRI - AHRC,21/06/2019,Fellowships,Research Fellowships,University of Sussex,98506844,25404.41,Fellowships
BEIS,UKRI - AHRC,21/06/2019,Fellowships,Research Fellowships,Northumbria University,98506845,17424.79,Fellowships
BEIS,UKRI - AHRC,21/06/2019,Fellowships,Research Fellowships,Keele University,98506846,28502.90,Fellowships
BEIS,UKRI - AHRC,21/06/2019,Fellowships,Research Fellowships,University of Aberdeen,98506847,17986.97,Fellowships
BEIS,UKRI - AHRC,21/06/2019,Fellowships,Research Fellowships,University of Birmingham GRANT,98506848,22691.28,Fellowships
BEIS,UKRI - AHRC,21/06/2019,Fellowships,Research Fellowships,University of Edinburgh,98506849,20773.86,Fellowships
BEIS,UKRI - AHRC,21/06/2019,Fellowships,Research Fellowships,Cardiff University,98506850,29796.65,Fellowships
BEIS,UKRI - AHRC,21/06/2019,Fellowships,Research Fellowships,University of Sheffield,98506851,21554.78,Fellowships
BEIS,UKRI - AHRC,21/06/2019,Fellowships,Research Fellowships,University of Bristol GRANT,98506852,21202.34,Fellowships
BEIS,UKRI - AHRC,21/06/2019,Fellowships,Research Fellowships,University of Plymouth,98506853,21749.20,Fellowships
BEIS,UKRI - AHRC,21/06/2019,Fellowships,Research Fellowships,Northumbria University,98506854,18798.89,Fellowships
BEIS,UKRI - AHRC,21/06/2019,Fellowships,Research Fellowships,Nottingham Trent University,98506855,23616.09,Fellowships
BEIS,UKRI - AHRC,21/06/2019,Fellowships,Research Fellowships,University of Sussex,98506856,21855.60,Fellowships
BEIS,UKRI - AHRC,21/06/2019,Fellowships,Research Fellowships,King's College London,98506857,27064.51,Fellowships
BEIS,UKRI - AHRC,21/06/2019,Fellowships,Research Fellowships,University of Leicester,98506858,23531.31,Fellowships
BEIS,UKRI - AHRC,21/06/2019,Fellowships,Research Fellowships,University of Glasgow,98506859,22133.15,Fellowships
BEIS,UKRI - AHRC,21/06/2019,Fellowships,Research Fellowships,University of Essex,98506860,32445.64,Fellowships
BEIS,UKRI - AHRC,21/06/2019,Fellowships,Research Fellowships,Historic Royal Palaces,98506861,35841.68,Fellowships
BEIS,UKRI - AHRC,21/06/2019,Fellowships,Research Fellowships,Nottingham Trent University,98506862,33422.16,Fellowships
BEIS,UKRI - AHRC,21/06/2019,Fellowships,Research Fellowships,University of East Anglia,98506863,23309.50,Fellowships
BEIS,UKRI - AHRC,21/06/2019,Fellowships,Research Fellowships,University of Edinburgh,98506864,34753.68,Fellowships
BEIS,UKRI - AHRC,21/06/2019,Fellowships,Research Fellowships,University of Stirling,98506865,30663.34,Fellowships
BEIS,UKRI - AHRC,21/06/2019,Fellowships,Research Fellowships,University of Edinburgh,98506866,22391.62,Fellowships
BEIS,UKRI - AHRC,21/06/2019,Fellowships,Research Fellowships,University of Surrey,98506867,19569.52,Fellowships
BEIS,UKRI - AHRC,21/06/2019,Fellowships,Research Fellowships,University of Birmingham GRANT,98506868,25746.88,Fellowships
BEIS,UKRI - AHRC,21/06/2019,Fellowships,Research Fellowships,Loughborough University,98506869,25823.77,Fellowships
BEIS,UKRI - AHRC,21/06/2019,Fellowships,Research Fellowships,University of Exeter,98506870,26320.59,Fellowships
BEIS,UKRI - AHRC,21/06/2019,Fellowships,Research Fellowships,Queen Mary University of London,98506871,24861.25,Fellowships
BEIS,UKRI - AHRC,21/06/2019,Fellowships,Research Fellowships,Liverpool John Moores University,98506872,32544.68,Fellowships
BEIS,UKRI - AHRC,21/06/2019,Fellowships,Research Fellowships,University of Exeter,98506873,33638.24,Fellowships
BEIS,UKRI - AHRC,21/06/2019,Fellowships,Research Fellowships,Goldsmiths College University of London,98506874,22263.79,Fellowships
BEIS,UKRI - AHRC,21/06/2019,Fellowships,Research Fellowships,University of Bristol GRANT,98506875,35063.20,Fellowships
BEIS,UKRI - AHRC,21/06/2019,Fellowships,Research Fellowships,University of West London,98506876,21701.76,Fellowships
BEIS,UKRI - AHRC,21/06/2019,Fellowships,Research Fellowships,University of Birmingham GRANT,98506877,43081.36,Fellowships
BEIS,UKRI - AHRC,21/06/2019,Fellowships,Research Fellowships,University of Newcastle Upon Tyne,98506878,22504.01,Fellowships
BEIS,UKRI - AHRC,21/06/2019,Fellowships,Research Fellowships,University of Bristol GRANT,98506879,41925.84,Fellowships
BEIS,UKRI - AHRC,21/06/2019,Fellowships,Research Fellowships,"Royal Holloway, University of London",98506880,39090.76,Fellowships
BEIS,UKRI - AHRC,21/06/2019,Fellowships,Research Fellowships,"Royal Holloway, University of London",98506880,39090.76,Fellowships
BEIS,UKRI - AHRC,21/06/2019,Fellowships,Research Fellowships,Bournemouth University GRANT,98506881,26444.03,Fellowships
BEIS,UKRI - AHRC,21/06/2019,Fellowships,Research Fellowships,University of Exeter,98506882,24175.04,Fellowships
BEIS,UKRI - AHRC,21/06/2019,Fellowships,Research Fellowships,University of Brighton,98506883,10721.35,Fellowships
BEIS,UKRI - AHRC,21/06/2019,Fellowships,Research Fellowships,University of Bristol GRANT,98506884,28067.99,Fellowships
BEIS,UKRI - AHRC,21/06/2019,Fellowships,Research Fellowships,University of Bristol GRANT,98506884,28067.99,Fellowships
BEIS,UKRI - AHRC,21/06/2019,Fellowships,Research Fellowships,University of Kent,98506885,30583.07,Fellowships
BEIS,UKRI - AHRC,21/06/2019,Fellowships,Research Fellowships,University of Newcastle Upon Tyne,98506886,24094.46,Fellowships
BEIS,UKRI - AHRC,21/06/2019,Fellowships,Research Fellowships,Goldsmiths College University of London,98506887,39077.76,Fellowships
BEIS,UKRI - AHRC,21/06/2019,Fellowships,NPIF Research Talent (RCUK Innovation Fellowships),Victoria and Albert Museum,98506888,4463.84,Fellowships
BEIS,UKRI - AHRC,21/06/2019,Fellowships,NPIF Research Talent (RCUK Innovation Fellowships),Northumbria University,98506889,23804.54,Fellowships
BEIS,UKRI - AHRC,21/06/2019,Fellowships,NPIF Research Talent (RCUK Innovation Fellowships),University of the West of England,98506890,23419.68,Fellowships
BEIS,UKRI - AHRC,21/06/2019,Fellowships,NPIF Research Talent (RCUK Innovation Fellowships),University of Brighton,98506891,21692.44,Fellowships
BEIS,UKRI - AHRC,21/06/2019,Fellowships,Research Fellowships,University of Leicester,98506892,23673.33,Fellowships
BEIS,UKRI - AHRC,21/06/2019,Fellowships,NPIF Research Talent (RCUK Innovation Fellowships),University of Leicester,98506893,25172.30,Fellowships
BEIS,UKRI - AHRC,21/06/2019,Fellowships,NPIF Research Talent (RCUK Innovation Fellowships),University of Leicester,98506893,25172.30,Fellowships
BEIS,UKRI - AHRC,21/06/2019,Fellowships,NPIF Research Talent (RCUK Innovation Fellowships),University of Brighton,98506894,23132.48,Fellowships
BEIS,UKRI - AHRC,21/06/2019,Fellowships,NPIF Research Talent (RCUK Innovation Fellowships),Glasgow School of Art,98506895,25171.15,Fellowships
BEIS,UKRI - AHRC,21/06/2019,Fellowships,NPIF Research Talent (RCUK Innovation Fellowships),University of Sheffield,98506896,26010.70,Fellowships
BEIS,UKRI - AHRC,21/06/2019,Fellowships,NPIF Research Talent (RCUK Innovation Fellowships),University College London,98506897,24912.97,Fellowships
BEIS,UKRI - AHRC,21/06/2019,Fellowships,NPIF Research Talent (RCUK Innovation Fellowships),University College London,98506897,24912.97,Fellowships
BEIS,UKRI - AHRC,21/06/2019,Fellowships,NPIF Research Talent (RCUK Innovation Fellowships),University of Glasgow,98506898,25187.72,Fellowships
BEIS,UKRI - AHRC,21/06/2019,Fellowships,NPIF Research Talent (RCUK Innovation Fellowships),University of Glasgow,98506898,25187.72,Fellowships
BEIS,UKRI - AHRC,21/06/2019,Fellowships,NPIF Research Talent (RCUK Innovation Fellowships),University of Southampton GRANT,98506899,22997.27,Fellowships
BEIS,UKRI - AHRC,21/06/2019,Fellowships,NPIF Research Talent (RCUK Innovation Fellowships),Birmingham City University,98506900,22868.53,Fellowships
BEIS,UKRI - AHRC,21/06/2019,Fellowships,NPIF Research Talent (RCUK Innovation Fellowships),University College London,98506901,20849.26,Fellowships
BEIS,UKRI - AHRC,21/06/2019,Fellowships,NPIF Research Talent (RCUK Innovation Fellowships),University of Edinburgh,98506902,20940.37,Fellowships
BEIS,UKRI - AHRC,21/06/2019,Fellowships,NPIF Research Talent (RCUK Innovation Fellowships),University of Edinburgh,98506902,20940.37,Fellowships
BEIS,UKRI - AHRC,21/06/2019,Fellowships,Research Fellowships,University of St Andrews,98506903,31052.93,Fellowships
BEIS,UKRI - AHRC,21/06/2019,Fellowships,Research Fellowships,University of Bristol GRANT,98506904,12010.82,Fellowships
BEIS,UKRI - AHRC,21/06/2019,Fellowships,Research Fellowships,University of Leeds,98506905,21668.72,Fellowships
BEIS,UKRI - AHRC,21/06/2019,Fellowships,Research Fellowships,Historic Royal Palaces,98506906,7111.37,Fellowships
BEIS,UKRI - AHRC,21/06/2019,Fellowships,Research Fellowships,King's College London,98506907,37803.26,Fellowships
BEIS,UKRI - AHRC,21/06/2019,Fellowships,Research Fellowships,The University of Manchester,98506908,25511.66,Fellowships
BEIS,UKRI - AHRC,21/06/2019,Recruitment Costs,Corporate Services,Warwick University Services Ltd,98516566,245.00,Recruitment Costs
BEIS,UKRI - AHRC,21/06/2019,Recruitment Costs,Digital Arts and Humanities and Creative Industries,Warwick University Services Ltd,98516566,245.00,Recruitment Costs
BEIS,UKRI - AHRC,24/06/2019,Contract Staff,PSU Project Office,Alexander Mann Solutions Ltd,98519235,1677.35,Contract Staff
BEIS,UKRI - AHRC,24/06/2019,Cleaning & Sterilisation,Corporate Services,Scientific Laboratory Supplies Ltd (Sls),98519324,12.24,Cleaning & Sterilisation
BEIS,UKRI - AHRC,24/06/2019,T&S Overseas - Accommodation,JPI Cultural Heritage Project,Unspecified,98519531,29.17,T&S Overseas - Accommodation
BEIS,UKRI - AHRC,24/06/2019,T&S Overseas - Public Transport,JPI Cultural Heritage Project,Unspecified,98519531,17.00,T&S Overseas - Public Transport
BEIS,UKRI - AHRC,24/06/2019,T&S Overseas - Public Transport,JPI Cultural Heritage Project,Unspecified,98519531,18.34,T&S Overseas - Public Transport
BEIS,UKRI - AHRC,24/06/2019,T&S Overseas - Subsistence,JPI Cultural Heritage Project,Unspecified,98519531,37.31,T&S Overseas - Subsistence
BEIS,UKRI - AHRC,24/06/2019,T&S Overseas - Subsistence,JPI Cultural Heritage Project,Unspecified,98519531,7.94,T&S Overseas - Subsistence
BEIS,UKRI - AHRC,24/06/2019,T&S UK - Public Transport,SMT,Unspecified,98519533,10.60,T&S UK - Public Transport
BEIS,UKRI - AHRC,24/06/2019,T&S UK - Subsistence,SMT,Unspecified,98519533,7.92,T&S UK - Subsistence
BEIS,UKRI - AHRC,24/06/2019,T&S UK - Subsistence,SMT,Unspecified,98519533,8.30,T&S UK - Subsistence
BEIS,UKRI - AHRC,24/06/2019,T&S UK - Subsistence,SMT,Unspecified,98519533,2.90,T&S UK - Subsistence
BEIS,UKRI - AHRC,24/06/2019,T&S Overseas - Public Transport,JPI Cultural Heritage Project,Unspecified,98519534,42.26,T&S Overseas - Public Transport
BEIS,UKRI - AHRC,24/06/2019,T&S Overseas - Subsistence,JPI Cultural Heritage Project,Unspecified,98519534,12.33,T&S Overseas - Subsistence
BEIS,UKRI - AHRC,24/06/2019,T&S Overseas - Subsistence,JPI Cultural Heritage Project,Unspecified,98519534,12.83,T&S Overseas - Subsistence
BEIS,UKRI - AHRC,24/06/2019,T&S Overseas - Subsistence,JPI Cultural Heritage Project,Unspecified,98519534,1.63,T&S Overseas - Subsistence
BEIS,UKRI - AHRC,24/06/2019,Marketing & PR,Public and Stakeholder Engagement,Unspecified,98520601,3000.00,Marketing & PR
BEIS,UKRI - AHRC,25/06/2019,Voluntary Deductions,Balance Sheet,Swindon Office Sports and Social Club,98510084,70.00,Voluntary Deductions
BEIS,UKRI - AHRC,25/06/2019,Research Grant Expenditure,Cross Council Responsive Mode Awards,UKRI - Economic & Social Research Council,98518639,29262.66,Research Grant Expenditure
BEIS,UKRI - AHRC,25/06/2019,Research Grant Expenditure,Commissioned Research,UKRI - Economic & Social Research Council,98518641,28541.44,Research Grant Expenditure
BEIS,UKRI - AHRC,25/06/2019,Research Grant Expenditure,Cross Council Responsive Mode Awards,UKRI - Economic & Social Research Council,98518643,14201.08,Research Grant Expenditure
BEIS,UKRI - AHRC,25/06/2019,Research Grant Expenditure,Urban Living,UKRI - Economic & Social Research Council,98518646,3527.65,Research Grant Expenditure
BEIS,UKRI - AHRC,25/06/2019,Research Grant Expenditure,Urban Living,UKRI - Economic & Social Research Council,98518665,2518.36,Research Grant Expenditure
BEIS,UKRI - AHRC,25/06/2019,Research Grant Expenditure,Urban Living,UKRI - Economic & Social Research Council,98518671,4009.37,Research Grant Expenditure
BEIS,UKRI - AHRC,25/06/2019,Research Grant Expenditure,Urban Living,UKRI - Economic & Social Research Council,98518677,7274.73,Research Grant Expenditure
BEIS,UKRI - AHRC,25/06/2019,Research Grant Expenditure,Urban Living,UKRI - Economic & Social Research Council,98518681,7169.00,Research Grant Expenditure
BEIS,UKRI - AHRC,25/06/2019,Research Grant Expenditure,Urban Living,UKRI - Economic & Social Research Council,98518686,5683.58,Research Grant Expenditure
BEIS,UKRI - AHRC,25/06/2019,Research Grant Expenditure,Urban Living,UKRI - Economic & Social Research Council,98518692,3466.63,Research Grant Expenditure
BEIS,UKRI - AHRC,25/06/2019,Research Grant Expenditure,Urban Living,UKRI - Economic & Social Research Council,98519701,6299.70,Research Grant Expenditure
BEIS,UKRI - AHRC,25/06/2019,Research Grant Expenditure,Cross Council Responsive Mode Awards,UKRI - Economic & Social Research Council,98519704,15890.03,Research Grant Expenditure
BEIS,UKRI - AHRC,25/06/2019,Research Grant Expenditure,Urban Living,UKRI - Economic & Social Research Council,98519706,3921.89,Research Grant Expenditure
BEIS,UKRI - AHRC,25/06/2019,Research Grant Expenditure,Urban Living,UKRI - Economic & Social Research Council,98519709,2796.34,Research Grant Expenditure
BEIS,UKRI - AHRC,25/06/2019,Research Grant Expenditure,Urban Living,UKRI - Economic & Social Research Council,98519711,5026.21,Research Grant Expenditure
BEIS,UKRI - AHRC,25/06/2019,Research Grant Expenditure,Urban Living,UKRI - Economic & Social Research Council,98519713,3363.10,Research Grant Expenditure
BEIS,UKRI - AHRC,25/06/2019,Research Grant Expenditure,Urban Living,UKRI - Economic & Social Research Council,98519715,4561.73,Research Grant Expenditure
BEIS,UKRI - AHRC,25/06/2019,Non-staff travel and subsistance,Executive Office,Non Employee Expenses Supplier,98520710,220.90,Non-staff travel and subsistance
BEIS,UKRI - AHRC,25/06/2019,Non-staff travel and subsistance,Executive Office,Non Employee Expenses Supplier,98520711,195.90,Non-staff travel and subsistance
BEIS,UKRI - AHRC,25/06/2019,Non-staff travel and subsistance,Executive Office,Non Employee Expenses Supplier,98520712,155.50,Non-staff travel and subsistance
BEIS,UKRI - AHRC,25/06/2019,Non-staff travel and subsistance,GCRF - Programme Delivery,Non Employee Expenses Supplier,98520713,11.90,Non-staff travel and subsistance
BEIS,UKRI - AHRC,25/06/2019,Non-staff travel and subsistance,Operations,Non Employee Expenses Supplier,98520714,183.35,Non-staff travel and subsistance
BEIS,UKRI - AHRC,25/06/2019,Non-staff travel and subsistance,Executive Office,Non Employee Expenses Supplier,98520715,179.00,Non-staff travel and subsistance
BEIS,UKRI - AHRC,25/06/2019,Non-staff travel and subsistance,Public and Stakeholder Engagement,Non Employee Expenses Supplier,98520716,50.90,Non-staff travel and subsistance
BEIS,UKRI - AHRC,25/06/2019,Non-staff travel and subsistance,Public and Stakeholder Engagement,Non Employee Expenses Supplier,98520717,141.00,Non-staff travel and subsistance
BEIS,UKRI - AHRC,25/06/2019,Non-staff travel and subsistance,Public and Stakeholder Engagement,Non Employee Expenses Supplier,98520718,101.80,Non-staff travel and subsistance
BEIS,UKRI - AHRC,25/06/2019,Non-staff travel and subsistance,GCRF - Programme Delivery,Non Employee Expenses Supplier,98520719,269.21,Non-staff travel and subsistance
BEIS,UKRI - AHRC,25/06/2019,Non-staff travel and subsistance,GCRF - Programme Delivery,Non Employee Expenses Supplier,98520720,267.20,Non-staff travel and subsistance
BEIS,UKRI - AHRC,25/06/2019,Non-staff travel and subsistance,GCRF - Programme Delivery,Non Employee Expenses Supplier,98520721,87.75,Non-staff travel and subsistance
BEIS,UKRI - AHRC,25/06/2019,Non-staff travel and subsistance,International Development and Area Studies,Non Employee Expenses Supplier,98520722,187.80,Non-staff travel and subsistance
BEIS,UKRI - AHRC,25/06/2019,Non-staff travel and subsistance,GCRF - Programme Delivery,Non Employee Expenses Supplier,98520723,178.00,Non-staff travel and subsistance
BEIS,UKRI - AHRC,25/06/2019,Non-staff travel and subsistance,GCRF - Programme Delivery,Non Employee Expenses Supplier,98520724,204.80,Non-staff travel and subsistance
BEIS,UKRI - AHRC,25/06/2019,Non-staff travel and subsistance,GCRF - Programme Delivery,Non Employee Expenses Supplier,98520726,261.55,Non-staff travel and subsistance
BEIS,UKRI - AHRC,25/06/2019,Non-staff travel and subsistance,GCRF - Programme Delivery,Non Employee Expenses Supplier,98520727,47.70,Non-staff travel and subsistance
BEIS,UKRI - AHRC,25/06/2019,Non-staff travel and subsistance,GCRF - Programme Delivery,Non Employee Expenses Supplier,98520728,34.10,Non-staff travel and subsistance
BEIS,UKRI - AHRC,25/06/2019,Staff Training,SMT,The Foundation Trust Network Ltd ( NHS Providers),98522033,534.00,Staff Training
BEIS,UKRI - AHRC,25/06/2019,T&S UK - Other Charges,Digital Arts and Humanities and Creative Industries,Unspecified,98522182,4.10,T&S UK - Other Charges
BEIS,UKRI - AHRC,25/06/2019,T&S UK - Parking Tolls Congestion Charges,Digital Arts and Humanities and Creative Industries,Unspecified,98522182,176.70,T&S UK - Parking Tolls Congestion Charges
BEIS,UKRI - AHRC,25/06/2019,T&S UK - Subsistence,Digital Arts and Humanities and Creative Industries,Unspecified,98522182,7.35,T&S UK - Subsistence
BEIS,UKRI - AHRC,25/06/2019,T&S UK - Subsistence,Digital Arts and Humanities and Creative Industries,Unspecified,98522182,10.00,T&S UK - Subsistence
BEIS,UKRI - AHRC,25/06/2019,T&S UK - Public Transport,Strategy and Evidence,Unspecified,98522183,66.90,T&S UK - Public Transport
BEIS,UKRI - AHRC,25/06/2019,T&S UK - Subsistence,Strategy and Evidence,Unspecified,98522183,34.55,T&S UK - Subsistence
BEIS,UKRI - AHRC,25/06/2019,T&S UK - Subsistence,Strategy and Evidence,Unspecified,98522183,8.49,T&S UK - Subsistence
BEIS,UKRI - AHRC,25/06/2019,T&S UK - Subsistence,Strategy and Evidence,Unspecified,98522183,5.00,T&S UK - Subsistence
BEIS,UKRI - AHRC,25/06/2019,T&S Overseas - Public Transport,SMT,Unspecified,98522184,6.09,T&S Overseas - Public Transport
BEIS,UKRI - AHRC,25/06/2019,T&S Overseas - Subsistence,SMT,Unspecified,98522184,9.25,T&S Overseas - Subsistence
BEIS,UKRI - AHRC,25/06/2019,T&S UK - Public Transport,SMT,Unspecified,98522185,6.00,T&S UK - Public Transport
BEIS,UKRI - AHRC,25/06/2019,T&S UK - Subsistence,SMT,Unspecified,98522185,9.40,T&S UK - Subsistence
BEIS,UKRI - AHRC,25/06/2019,T&S UK - Subsistence,SMT,Unspecified,98522185,5.10,T&S UK - Subsistence
BEIS,UKRI - AHRC,25/06/2019,T&S UK - Public Transport,SMT,Unspecified,98522186,8.50,T&S UK - Public Transport
BEIS,UKRI - AHRC,25/06/2019,T&S UK - Subsistence,SMT,Unspecified,98522186,15.50,T&S UK - Subsistence
BEIS,UKRI - AHRC,25/06/2019,T&S UK - Subsistence,Public and Stakeholder Engagement,Unspecified,98522187,5.00,T&S UK - Subsistence
BEIS,UKRI - AHRC,25/06/2019,T&S UK - Flights,International Partnership and Engagement,Unspecified,98522190,22.00,T&S UK - Flights
BEIS,UKRI - AHRC,25/06/2019,T&S UK - Public Transport,International Partnership and Engagement,Unspecified,98522190,79.70,T&S UK - Public Transport
BEIS,UKRI - AHRC,25/06/2019,T&S UK - Subsistence,International Partnership and Engagement,Unspecified,98522190,37.00,T&S UK - Subsistence
BEIS,UKRI - AHRC,26/06/2019,Advertising & Promotion,Public and Stakeholder Engagement,Benjamin Ward Communications Ltd,98510102,1400.00,Advertising & Promotion
BEIS,UKRI - AHRC,26/06/2019,Advertising & Promotion,Public and Stakeholder Engagement,Benjamin Ward Communications Ltd,98510102,200.00,Advertising & Promotion
BEIS,UKRI - AHRC,26/06/2019,Contract Staff,PSU JRS,Alexander Mann Solutions Ltd,98519349,3423.12,Contract Staff
BEIS,UKRI - AHRC,26/06/2019,Advertising & Promotion,Public and Stakeholder Engagement,Benjamin Ward Communications Ltd,98521422,-200.00,Advertising & Promotion
BEIS,UKRI - AHRC,26/06/2019,Non-staff travel and subsistance,GCRF - Programme Delivery,Non Employee Expenses Supplier,98521777,688.74,Non-staff travel and subsistance
BEIS,UKRI - AHRC,26/06/2019,Non-staff travel and subsistance,GCRF - Programme Delivery,Non Employee Expenses Supplier,98521778,984.16,Non-staff travel and subsistance
BEIS,UKRI - AHRC,26/06/2019,T&S UK - Subsistence,Public and Stakeholder Engagement,Unspecified,98522607,6.95,T&S UK - Subsistence
BEIS,UKRI - AHRC,26/06/2019,T&S UK - Public Transport,International Partnership and Engagement,Unspecified,98522608,20.00,T&S UK - Public Transport
BEIS,UKRI - AHRC,26/06/2019,T&S UK - Subsistence,International Partnership and Engagement,Unspecified,98522608,10.45,T&S UK - Subsistence
BEIS,UKRI - AHRC,26/06/2019,T&S UK - Subsistence,International Partnership and Engagement,Unspecified,98522608,7.50,T&S UK - Subsistence
BEIS,UKRI - AHRC,27/06/2019,Recruitment Costs,Corporate Services,Onefix Recruitment Ltd,98521669,270.00,Recruitment Costs
BEIS,UKRI - AHRC,27/06/2019,Recruitment Costs,SMT,Onefix Recruitment Ltd,98522067,528.00,Recruitment Costs
BEIS,UKRI - AHRC,28/06/2019,Council & Committee Honoraria,SMT,Non Employee Expenses Supplier,98523310,793.23,Council & Committee Honoraria
BEIS,UKRI - AHRC,28/06/2019,Printing & Stationery,Corporate Services,Banner Group Ltd,98523821,0.13,Printing & Stationery
BEIS,UKRI - AHRC,28/06/2019,Printing & Stationery,Corporate Services,Banner Group Ltd,98523821,0.28,Printing & Stationery
BEIS,UKRI - AHRC,28/06/2019,Printing & Stationery,Corporate Services,Banner Group Ltd,98523821,0.71,Printing & Stationery
BEIS,UKRI - AHRC,28/06/2019,Printing & Stationery,Corporate Services,Banner Group Ltd,98523821,2.27,Printing & Stationery
BEIS,UKRI - AHRC,28/06/2019,Printing & Stationery,Corporate Services,Banner Group Ltd,98523821,5.82,Printing & Stationery
BEIS,UKRI - AHRC,28/06/2019,Printing & Stationery,Corporate Services,Banner Group Ltd,98523821,58.46,Printing & Stationery
BEIS,UKRI - AHRC,28/06/2019,Conferences & Seminars,SMT,Jurys Inns (UK) Ltd,98524283,305.00,Conferences & Seminars
BEIS,UKRI - AHRC,28/06/2019,Conferences & Seminars,SMT,Calder Conference Ltd,98524713,850.00,Conferences & Seminars
BEIS,UKRI - AHRC,28/06/2019,T&S UK - Public Transport,GCRF - Programme Delivery,Unspecified,98525008,2.10,T&S UK - Public Transport
BEIS,UKRI - AHRC,28/06/2019,T&S UK - Subsistence,GCRF - Programme Delivery,Unspecified,98525008,5.44,T&S UK - Subsistence
BEIS,UKRI - AHRC,28/06/2019,T&S UK - Public Transport,GCRF - Programme Delivery,Unspecified,98525009,4.90,T&S UK - Public Transport
BEIS,UKRI - AHRC,28/06/2019,T&S UK - Subsistence,GCRF - Programme Delivery,Unspecified,98525009,3.99,T&S UK - Subsistence
BEIS,UKRI - AHRC,28/06/2019,T&S UK - Public Transport,Industrial Strategy Challenge Fund (ISCF) - Creative Clusters,Unspecified,98525010,33.80,T&S UK - Public Transport
BEIS,UKRI - AHRC,28/06/2019,T&S Overseas - Public Transport,International Development and Area Studies,Unspecified,98525011,1.82,T&S Overseas - Public Transport
BEIS,UKRI - AHRC,28/06/2019,T&S Overseas - Subsistence,International Development and Area Studies,Unspecified,98525011,21.23,T&S Overseas - Subsistence
BEIS,UKRI - AHRC,28/06/2019,T&S UK - Public Transport,International Development and Area Studies,Unspecified,98525012,34.00,T&S UK - Public Transport
BEIS,UKRI - AHRC,28/06/2019,T&S UK - Subsistence,International Development and Area Studies,Unspecified,98525012,5.49,T&S UK - Subsistence
BEIS,UKRI - AHRC,28/06/2019,T&S UK - Subsistence,International Development and Area Studies,Unspecified,98525012,9.30,T&S UK - Subsistence
BEIS,UKRI - AHRC,28/06/2019,T&S UK - Subsistence,International Development and Area Studies,Unspecified,98525012,5.00,T&S UK - Subsistence
BEIS,UKRI - BBSRC,03/06/2019,Printing & Stationery,JBOS - Administration,Banner Group Ltd,98493491,14.21,Printing & Stationery
BEIS,UKRI - BBSRC,03/06/2019,Legal & Professional Services,FG - Estates,Coulters Legal LLP,98494350,1388.57,Legal & Professional Services
BEIS,UKRI - BBSRC,03/06/2019,Agency Staff,FG - Accounts & Business Planning,Reed Specialist Recruitment Ltd,98495171,388.98,Agency Staff
BEIS,UKRI - BBSRC,03/06/2019,Electricity,FG - Estates,Haven Power Ltd,98495249,658.68,Electricity
BEIS,UKRI - BBSRC,03/06/2019,Recruitment Costs,PDG - Director,Onefix Recruitment Ltd,98495846,660.00,Recruitment Costs
BEIS,UKRI - BBSRC,03/06/2019,Recruitment Costs,PDG - Director,Onefix Recruitment Ltd,98495847,300.00,Recruitment Costs
BEIS,UKRI - BBSRC,03/06/2019,Recruitment Costs,PDG - Director,Onefix Recruitment Ltd,98495848,738.00,Recruitment Costs
BEIS,UKRI - BBSRC,03/06/2019,Recruitment Costs,PDG - Director,Onefix Recruitment Ltd,98495850,450.00,Recruitment Costs
BEIS,UKRI - BBSRC,03/06/2019,T&S UK - Subsistence,CE - IRU,Unspecified,98496044,15.00,T&S UK - Subsistence
BEIS,UKRI - BBSRC,03/06/2019,T&S UK - Public Transport,CE - IRU,Unspecified,98496045,7.00,T&S UK - Public Transport
BEIS,UKRI - BBSRC,03/06/2019,T&S UK - Subsistence,CE - IRU,Unspecified,98496045,24.13,T&S UK - Subsistence
BEIS,UKRI - BBSRC,03/06/2019,T&S UK - Subsistence,CE - IRU,Unspecified,98496045,4.58,T&S UK - Subsistence
BEIS,UKRI - BBSRC,03/06/2019,T&S UK - Subsistence,Innovation and Skills Group CDSU,Unspecified,98496046,20.00,T&S UK - Subsistence
BEIS,UKRI - BBSRC,03/06/2019,T&S UK - Public Transport,Science Group,Unspecified,98496047,10.60,T&S UK - Public Transport
BEIS,UKRI - BBSRC,03/06/2019,T&S UK - Other Charges,Science Group,Unspecified,98496048,9.28,T&S UK - Other Charges
BEIS,UKRI - BBSRC,03/06/2019,T&S UK - Public Transport,Science Group,Unspecified,98496048,99.18,T&S UK - Public Transport
BEIS,UKRI - BBSRC,03/06/2019,T&S UK - Public Transport,Science Group,Unspecified,98496048,9.80,T&S UK - Public Transport
BEIS,UKRI - BBSRC,03/06/2019,T&S UK - Public Transport,FG - Estates,Unspecified,98496049,88.00,T&S UK - Public Transport
BEIS,UKRI - BBSRC,03/06/2019,T&S UK - Subsistence,Innovation and Skills Group CDSU,Unspecified,98496050,25.00,T&S UK - Subsistence
BEIS,UKRI - BBSRC,03/06/2019,T&S UK - Subsistence,Innovation and Skills Group CDSU,Unspecified,98496050,5.00,T&S UK - Subsistence
BEIS,UKRI - BBSRC,04/06/2019,Other Programme Costs,Innovation and Skills Group CDSU,Calder Conference Ltd,98487019,1207.83,Other Programme Costs
BEIS,UKRI - BBSRC,04/06/2019,Other Programme Costs,Science Group,Calder Conference Ltd,98489079,1472.00,Other Programme Costs
BEIS,UKRI - BBSRC,04/06/2019,Staff Training,PDG - Director,Calder Conference Ltd,98491187,261.60,Staff Training
BEIS,UKRI - BBSRC,04/06/2019,Non-Capital Building Construction,JBOS - Maintenance,Turner and Townsend,98495551,10800.00,Non-Capital Building Construction
BEIS,UKRI - BBSRC,04/06/2019,Meetings & Catering,CE - Chief Executive,Baxter Storey Ltd,98495658,44.22,Meetings & Catering
BEIS,UKRI - BBSRC,04/06/2019,Meetings & Catering,CE - IRU,Baxter Storey Ltd,98495658,330.30,Meetings & Catering
BEIS,UKRI - BBSRC,04/06/2019,Meetings & Catering,CIMG - Director,Baxter Storey Ltd,98495658,104.40,Meetings & Catering
BEIS,UKRI - BBSRC,04/06/2019,Meetings & Catering,Innovation and Skills Group,Baxter Storey Ltd,98495658,12.06,Meetings & Catering
BEIS,UKRI - BBSRC,04/06/2019,Meetings & Catering,Science Group,Baxter Storey Ltd,98495658,47.52,Meetings & Catering
